Workbook

Sheet Investment
A1: =LEFT(H5,FIND("/",H5)-1)/100 -> 0.15 | B1: =RIGHT(H5,LEN(H5)-FIND("/",H5))/100 -> 0.0075
A2: % end@ | E2: F: Roth, historical return, no tax,cost = | K2: 0 | L2: K: FFIUL, historical return
A3: 2020 | E3: G: Mutual funcd, historical return, taxed on dividend, cost= | K3: 0.001 | L3: P: FFIUL, illustration return (fixed)
E4: SP 500 | H4: SP 500 with CAP / Floor | L4: Return (Fixed), no cost | P4: IUL costed | S4: years | T4: IUL Participating Loan | X4: IUL AV | AA4: Year | AB4: Stock Average Return | AG4: Year | AH4: Annual Returns on Investments | AK4: Compounded Value of | AN4: Apply Cap/Floor | AR4: https://www.slickcharts.com/sp500/returns/details
A5: Year | B5: yrs | C5: Monthly Input | D5: Yearly put | E5: % | F5: Acc. Value | G5: -0.33 | H5: 15/0.75 | I5: Value | J5: IULcost @yr | K5: Value | L5: 0.022 | M5: 0.04 | N5: 0.06 | O5: 0.08 | P5: 0.077 | Q5: 0.06 | T5: 30000 | U5: 0.06 | V5: Reserve credit difference | W5: Yearly deduct | X5: 500000 | Y5: 500000 | AB5: S$P 500 | AD5: Apply Cap/Floor | AK5: 1
A6: Initial $ ==> | D6: 1000000 | F6: =D6 -> 1000000 | G6: =$D6 -> 1000000 | H6: 0.722 | I6: =$D6 -> 1000000 | J6: 21 | K6: =$D6 -> 1000000 | L6: 1000000 | M6: 1000000 | N6: 1000000 | O6: 1000000 | P6: 1000000 | Q6: =D6 -> 1000000 | T6: Balance | U6: Interest | X6: With COI | Y6: Without COI | AB6: 10 years | AC6: 20 Years | AD6: 10 years | AE6: 20 Years | AH6: Stocks | AI6: T.Bills | AJ6: T.Bonds | AK6: Stocks | AL6: T.Bills | AM6: T.Bonds | AN6: % | AO6: $1 | AQ6: Year | AR6: Price Return | AS6: Dividend Return | AT6: Total Return
A7: 1928 | B7: 1 | C7: 0 | D7: -50000 | E7: =IF($A$7>0,LOOKUP(MOD(B7-1,(A$3-A$7+1))+A$7,AQ$7:AQ$112,AT$7:AT$112),11)/100 -> 0.4361 | F7: =FV((1+E7-K$2)^(1/12)-1,12,-C7,-(F6+D7),1) -> 1364295 | G7: =FV((1+E7-K$3)^(1/12)-1,12,-C7,-(G6+D7),1) + (G6+D7)*IF($A$7>0,LOOKUP(MOD(B7-1,(A$3-A$7+1))+A$7,AQ$7:AQ$112,AS$7:AS$112),11)/100*$G$5 -> 1345381.45 | H7: =MIN(MAX(IF($A$7>0,LOOKUP(MOD(B7-1,(A$3-A$7+1))+A$7,AQ$7:AQ$112,AR$7:AR$112),11)/100,B$1),A$1) - $H$6/100 -> 0.14278 | I7: =FV((1+H7)^(1/12)-1,12,-C7,-(I6+D7),1) -> 1085641 | J7: =-OFFSET(FFIUL!Q3:Q67,J$6-1,0,1,1) -> -2701 | K7: =FV((1+H7)^(1/12)-1,12,-C7,-(K6+D7+J7),1) -> 1082554.351 | L7: =FV((1+L$5)^(1/12)-1,12,-$C7,-($M$6+$D7),1) -> 970900 | M7: =FV((1+M$5)^(1/12)-1,12,-$C7,-($M$6+$D7),1) -> 988000 | N7: =FV((1+N$5)^(1/12)-1,12,-$C7,-($D$6+$D7),1) -> 1007000 | O7: =FV((1+O$5)^(1/12)-1,12,-$C7,-($O$6+$D7),1) -> 1026000 | P7: =FV((1+P$5)^(1/12)-1.0006,12,-$C7,-(P6+$D7),1) + FV((1+P$5)^(1/12)-1.0006,12,-J7/12,0,1) -> 1013051.304 | Q7: =FV((1+Q$5)^(1/12)-1.0006,12,-$C7,-(Q6+$D7),1) + FV((1+Q$5)^(1/12)-1.0006,12,-J7/12,0,1) -> 997031.2605 | S7: 1 | T7: =T5*(1+U5) -> 31800 | U7: =T5*U$5 -> 1800 | V7: =(T5+0)*(1+H7)-T7 -> 2483.4 | W7: =V7 -> 2483.4 | X7: =IF(X5>T5, FV((1+H7)^(1/12)-1,12,0,-(X5+W7+J7),1), 0) -> 571141.3311 | Y7: =IF(Y5>T5,FV((1+H7)^(1/12)-1,12,0,-(Y5+W7),1),0) -> 574227.9799 | AA7: 1928 | AG7: 1928 | AH7: 0.4381 | AI7: 0.0308 | AJ7: 0.0084 | AK7: =$AK$5*(1+AH7) -> 1.4381 | AL7: =$AK$5*(1+AI7) -> 1.0308 | AM7: =$AK$5*(1+AJ7) -> 1.0084 | AN7: =IF(AH7>A$1,A$1,IF(AH7<B$1,B$1,AH7)) -> 0.15 | AO7: =1+AN7 -> 1.15 | AQ7: 1928 | AR7: 37.88 | AS7: 5.73 | AT7: 43.61
A8: =A7+1 -> 1929 | B8: 2 | C8: 0 | D8: -50000 | E8: -0.0842 | F8: =FV((1+E8-K$2)^(1/12)-1,12,-C8,-(F7+D8),1) -> 1203631.361 | G8: 1170096.042 | H8: 0.00028 | I8: =FV((1+H8)^(1/12)-1,12,-C8,-(I7+D8),1) -> 1035930.979 | J8: =-OFFSET(FFIUL!Q4:Q68,J$6-1,0,1,1) -> -2842 | K8: =FV((1+H8)^(1/12)-1,12,-C8,-(K7+D8+J8),1) -> 1030000.671 | L8: =FV((1+L$5)^(1/12)-1,12,-$C8,-(L7+$D8),1) -> 941159.8 | M8: =FV((1+M$5)^(1/12)-1,12,-$C8,-(M7+$D8),1) -> 975520 | N8: =FV((1+N$5)^(1/12)-1,12,-$C8,-(N7+$D8),1) -> 1014420 | O8: =FV((1+O$5)^(1/12)-1,12,-$C8,-(O7+$D8),1) -> 1054080 | P8: =FV((1+P$5)^(1/12)-1.0006,12,-$C8,-(P7+$D8),1) + FV((1+P$5)^(1/12)-1.0006,12,-J8/12,0,1) -> 1026861.065 | Q8: =FV((1+Q$5)^(1/12)-1.0006,12,-$C8,-(Q7+$D8),1) + FV((1+Q$5)^(1/12)-1.0006,12,-J8/12,0,1) -> 993761.8973 | S8: 2 | T8: =(T7+T$5)*(1+U$5) -> 65508 | U8: =(T7+T$5)*U$5 -> 3708 | V8: =(T7+T$5)*(1+H8)-T8 -> -3690.696 | W8: =V8 -> -3690.696 | X8: =IF(X7>T7, FV((1+H8)^(1/12)-1,12,0,-(X7+W8+J8),1), 0) -> 564766.7255 | Y8: =IF(Y7>T7,FV((1+H8)^(1/12)-1,12,0,-(Y7+W8),1),0) -> 570697.0343 | AA8: 1929 | AG8: 1929 | AH8: -0.083 | AI8: 0.0316 | AJ8: 0.042 | AK8: =AK7*(1+AH8) -> 1.3187377 | AL8: =AL7*(1+AI8) -> 1.06337328 | AM8: =AM7*(1+AJ8) -> 1.0507528 | AN8: 0.0075 | AO8: =AO7*(1+AN8) -> 1.158625 | AQ8: 1929 | AR8: -11.91 | AS8: 3.49 | AT8: -8.42
A9: =A8+1 -> 1930 | B9: 3 | C9: 0 | D9: -50000 | E9: -0.249 | F9: 866377.1521 | G9: 826839.2171 | H9: 0.00028 | I9: =FV((1+H9)^(1/12)-1,12,-C9,-(I8+D9),1) -> 986207.0402 | J9: =-OFFSET(FFIUL!Q5:Q69,J$6-1,0,1,1) -> -3024 | K9: 977250.2241 | L9: 910765.3156 | M9: 962540.8 | N9: 1022285.2 | O9: 1084406.4 | P9: 1041439.337 | Q9: 990133.9935 | S9: 3 | T9: 101238.48 | U9: 5730.48 | V9: -5703.73776 | W9: -5703.73776 | X9: 556194.6786 | Y9: 565151.4947 | AA9: 1930 | AG9: 1930 | AH9: -0.2512 | AI9: 0.0455 | AJ9: 0.0454 | AK9: =AK8*(1+AH9) -> 0.9874707898 | AL9: 1.111756764 | AM9: 1.098456977 | AN9: 0.0075 | AO9: =AO8*(1+AN9) -> 1.167314688 | AQ9: 1930 | AR9: -28.48 | AS9: 3.58 | AT9: -24.9
A10: 1931 | B10: 4 | C10: 0 | D10: -50000 | E10: -0.4334 | F10: 462559.2944 | G10: 429818.1473 | H10: 0.00028 | I10: 936469.1781 | J10: =-OFFSET(FFIUL!Q6:Q70,J$6-1,0,1,1) -> -3259 | K10: 924249.9417 | L10: 879702.1525 | M10: 949042.432 | N10: 1030622.312 | O10: 1117158.912 | P10: 1056784.421 | Q10: 986074.2574 | S10: 4 | T10: 139112.7888 | U10: 7874.3088 | V10: -7837.562026 | W10: -7837.562026 | X10: 545250.7441 | Y10: 557469.9805 | AA10: 1931 | AG10: 1931 | AH10: -0.4384 | AI10: 0.0231 | AJ10: -0.0256 | AK10: 0.5545635955 | AL10: 1.137438345 | AM10: 1.070336479 | AN10: 0.0075 | AO10: 1.176069548 | AQ10: 1931 | AR10: -47.07 | AS10: 3.73 | AT10: -43.34
A11: 1932 | B11: 5 | C11: 0 | D11: -50000 | E11: -0.0819 | F11: 378770.6882 | G11: 340071.3176 | H11: 0.00028 | I11: 886717.3895 | J11: =-OFFSET(FFIUL!Q7:Q71,J$6-1,0,1,1) -> -3499 | K11: 870994.752 | L11: 847955.5999 | M11: 935004.1293 | N11: 1039459.651 | O11: 1152531.625 | P11: 1072944.285 | Q11: 981554.9073 | S11: 5 | T11: 179259.5561 | U11: 10146.76733 | V11: -10099.41575 | W11: -10099.41575 | X11: 531801.191 | Y11: 547523.8285 | AA11: 1932 | AG11: 1932 | AH11: -0.0864 | AI11: 0.0107 | AJ11: 0.0879 | AK11: 0.5066493009 | AL11: 1.149608936 | AM11: 1.164419055 | AN11: 0.0075 | AO11: 1.184890069 | AQ11: 1932 | AR11: -14.78 | AS11: 6.59 | AT11: -8.19
A12: 1933 | B12: 6 | C12: 0 | D12: -50000 | E12: 0.5399 | F12: 506273.9827 | G12: 436904.5484 | H12: 0.14278 | I12: 956183.8984 | J12: =-OFFSET(FFIUL!Q8:Q72,J$6-1,0,1,1) -> -3826 | K12: 933844.1064 | L12: 815510.6231 | M12: 920404.2945 | N12: 1048827.23 | O12: 1190734.155 | P12: 1089885.177 | Q12: 976462.3941 | S12: 6 | T12: 221815.1295 | U12: 12555.57337 | V12: 17322.50606 | W12: 17322.50606 | X12: 623155.3022 | Y12: 645495.0943 | AA12: 1933 | AG12: 1933 | AH12: 0.4998 | AI12: 0.0096 | AJ12: 0.0186 | AK12: 0.7598726215 | AL12: 1.160645182 | AM12: 1.186077249 | AN12: 0.15 | AO12: 1.36262358 | AQ12: 1933 | AR12: 44.08 | AS12: 9.91 | AT12: 53.99
A13: 1934 | B13: 7 | C13: 0 | D13: -50000 | E13: -0.0144 | F13: 449703.6374 | G13: 376771.1313 | H13: 0.00028 | I13: 906437.6299 | J13: =-OFFSET(FFIUL!Q9:Q73,J$6-1,0,1,1) -> -4004 | K13: 880086.4616 | L13: 782351.8568 | M13: 905220.4662 | N13: 1058756.864 | O13: 1231992.887 | P13: 1107815.773 | Q13: 970919.8655 | S13: 7 | T13: 266924.0373 | U13: 15108.90777 | V13: -15038.39953 | W13: -15038.39953 | X13: 604282.0543 | Y13: 630633.2226 | AA13: 1934 | AG13: 1934 | AH13: -0.0119 | AI13: 0.0032 | AJ13: 0.0796 | AK13: 0.7508301373 | AL13: 1.164359246 | AM13: 1.280488998 | AN13: 0.0075 | AO13: 1.372843257 | AQ13: 1934 | AR13: -4.71 | AS13: 3.27 | AT13: -1.44
A14: 1935 | B14: 8 | C14: 0 | D14: -50000 | E14: 0.4767 | F14: 590242.3613 | G14: 475422.5867 | H14: 0.14278 | I14: 978719.7947 | J14: =-OFFSET(FFIUL!Q10:Q74,J$6-1,0,1,1) -> -4196 | K14: 943811.1017 | L14: 748463.5977 | M14: 889429.2849 | N14: 1069282.275 | O14: 1276552.318 | P14: 1126790.157 | Q14: 964889.3327 | S14: 8 | T14: 314739.4795 | U14: 17815.44224 | V14: 24579.3718 | W14: 24579.3718 | X14: 713855.1557 | Y14: 748763.8486 | AA14: 1935 | AG14: 1935 | AH14: 0.4674 | AI14: 0.0018 | AJ14: 0.0447 | AK14: 1.101768143 | AL14: 1.166455093 | AM14: 1.337726857 | AN14: 0.15 | AO14: 1.578769745 | AQ14: 1935 | AR14: 41.37 | AS14: 6.3 | AT14: 47.67
A15: 1936 | B15: 9 | C15: 0 | D15: -50000 | E15: 0.3392 | F15: 723492.5703 | G15: 560877.1383 | H15: 0.14278 | I15: 1061322.407 | J15: =-OFFSET(FFIUL!Q11:Q75,J$6-1,0,1,1) -> -4403 | K15: 1016397.79 | L15: 713829.7968 | M15: 873006.4563 | N15: 1080439.212 | O15: 1324676.504 | P15: 1146865.127 | Q15: 958329.7872 | S15: 9 | T15: 365423.8483 | U15: 20684.36877 | V15: 28537.53411 | W15: 28537.53411 | X15: 843359.8577 | Y15: 888284.4742 | AA15: 1936 | AG15: 1936 | AH15: 0.3194 | AI15: 0.0017 | AJ15: 0.0502 | AK15: 1.453672888 | AL15: 1.168438066 | AM15: 1.404880745 | AN15: 0.15 | AO15: 1.815585207 | AQ15: 1936 | AR15: 27.92 | AS15: 6 | AT15: 33.92
A16: 1937 | B16: 10 | C16: 0 | D16: -50000 | E16: -0.3503 | F16: 437568.1229 | G16: 325404.215 | H16: 0.00028 | I16: 1011605.577 | J16: =-OFFSET(FFIUL!Q12:Q76,J$6-1,0,1,1) -> -4764 | K16: 961903.0479 | L16: 678434.0523 | M16: 855926.7145 | N16: 1092265.565 | O16: 1376650.624 | P16: 1167957.249 | Q16: 951055.1534 | S16: 10 | T16: 419149.2792 | U16: 23725.4309 | V16: -23614.71222 | W16: -23614.71222 | X16: 815209.3402 | Y16: 864911.8695 | AA16: 1937 | AB16: =(AK16/AK5)^(1/10)-1 -> -0.006174263758 | AD16: =(AO16)^(1/10)-1 -> 0.06224860403 | AG16: 1937 | AH16: -0.3534 | AI16: 0.003 | AJ16: 0.0138 | AK16: 0.9399448897 | AL16: 1.171943381 | AM16: 1.424268099 | AN16: 0.0075 | AO16: 1.829202096 | AQ16: 1937 | AR16: -38.59 | AS16: 3.56 | AT16: -35.03
A17: 1938 | B17: 11 | C17: 0 | D17: -50000 | E17: 0.3112 | F17: 508179.3227 | G17: 354863.5637 | H17: 0.14278 | I17: 1098903.622 | J17: =-OFFSET(FFIUL!Q13:Q77,J$6-1,0,1,1) -> -4216 | K17: 1037286.605 | L17: 642259.6015 | M17: 838163.7831 | N17: 1104801.498 | O17: 1432782.674 | P17: 1191079.814 | Q17: 943962.553 | S17: 11 | T17: 476098.2359 | U17: 26948.95675 | V17: 37180.57733 | W17: 37180.57733 | X17: 969276.1895 | Y17: 1030893.206 | AA17: 1938 | AB17: =(AK17/AK7)^(1/10)-1 -> -0.01670356452 | AD17: =(AO17/AO7)^(1/10)-1 -> 0.06224860403 | AG17: 1938 | AH17: 0.2928 | AI17: 0.0008 | AJ17: 0.0421 | AK17: 1.215160753 | AL17: 1.172880935 | AM17: 1.484229786 | AN17: 0.15 | AO17: 2.10358241 | AQ17: 1938 | AR17: 24.55 | AS17: 6.57 | AT17: 31.12
A18: 1939 | B18: 12 | C18: 0 | D18: -50000 | E18: -0.0041 | F18: 456300.7875 | G18: 298509.9022 | H18: 0.00028 | I18: 1049197.315 | J18: =-OFFSET(FFIUL!Q14:Q78,J$6-1,0,1,1) -> -4131 | K18: 983430.8882 | L18: 605289.3127 | M18: 819690.3344 | N18: 1118089.588 | O18: 1493405.288 | P18: 1215893.362 | Q18: 936585.4836 | S18: 12 | T18: 536464.1301 | U18: 30365.89416 | V18: -30224.18665 | W18: -30224.18665 | X18: 935182.7807 | Y18: 1000949.207 | AA18: 1939 | AB18: =(AK18/AK7)^(1/10)-1 -> -0.01779058225 | AD18: 0.06224860403 | AG18: 1939 | AH18: -0.011 | AI18: 0.0004 | AJ18: 0.0441 | AK18: 1.201793985 | AL18: 1.173350088 | AM18: 1.54968432 | AN18: 0.0075 | AO18: 2.119359278 | AQ18: 1939 | AR18: -5.18 | AS18: 4.77 | AT18: -0.41
A19: 1940 | B19: 13 | C19: 0 | D19: -50000 | E19: -0.0978 | F19: 366564.5705 | G19: 219602.4848 | H19: 0.00028 | I19: 999477.0898 | J19: =-OFFSET(FFIUL!Q15:Q79,J$6-1,0,1,1) -> -3974 | K19: 929717.1361 | L19: 567505.6776 | M19: 800477.9478 | N19: 1132174.964 | O19: 1558877.711 | P19: 1242589.785 | Q19: 928983.0594 | S19: 13 | T19: 600451.9779 | U19: 33987.8478 | V19: -33829.23785 | W19: -33829.23785 | X19: 897630.8091 | Y19: 967390.7628 | AA19: 1940 | AB19: =(AK19/AK9)^(1/10)-1 -> 0.008394133045 | AD19: 0.06224860403 | AG19: 1940 | AH19: -0.1067 | AI19: 0.0003 | AJ19: 0.054 | AK19: 1.073562567 | AL19: 1.173702093 | AM19: 1.633367273 | AN19: 0.0075 | AO19: 2.135254473 | AQ19: 1940 | AR19: -15.09 | AS19: 5.31 | AT19: -9.78
A20: 1941 | B20: 14 | C20: 0 | D20: -50000 | E20: -0.1159 | F20: 279874.7368 | G20: 146266.7093 | H20: 0.00028 | I20: 949742.9434 | J20: =-OFFSET(FFIUL!Q16:Q80,J$6-1,0,1,1) -> -3722 | K20: 876240.4147 | L20: 528890.8025 | M20: 780497.0657 | N20: 1147105.462 | O20: 1629587.928 | P20: 1271398.132 | Q20: 921241.142 | S20: 14 | T20: 668279.0965 | U20: 37827.11867 | V20: -37650.59212 | W20: -37650.59212 | X20: 856497.9693 | Y20: 930000.4979 | AA20: 1941 | AB20: =(AK20/AK9)^(1/10)-1 -> -0.005289052967 | AD20: 0.06224860403 | AG20: 1941 | AH20: -0.1277 | AI20: 0.0008 | AJ20: -0.0202 | AK20: 0.9364686271 | AL20: 1.174641054 | AM20: 1.600373254 | AN20: 0.0075 | AO20: 2.151268881 | AQ20: 1941 | AR20: -17.86 | AS20: 6.27 | AT20: -11.59
A21: 1942 | B21: 15 | C21: 0 | D21: -50000 | E21: 0.2034 | F21: 276631.2582 | G21: 113238.2414 | H21: 0.11708 | I21: 1005084.847 | J21: =-OFFSET(FFIUL!Q17:Q81,J$6-1,0,1,1) -> -3351 | K21: 919233.3074 | L21: 489426.4002 | M21: 759716.9483 | N21: 1162931.789 | O21: 1705954.962 | P21: 1302588.221 | Q21: 913474.7709 | S21: 15 | T21: 740175.8423 | U21: 41896.74579 | V21: 39857.77083 | W21: 39857.77083 | X21: 997557.7351 | Y21: 1083409.275 | AA21: 1942 | AB21: =(AK21/AK11)^(1/10)-1 -> 0.08216945728 | AD21: 0.07639444443 | AG21: 1942 | AH21: 0.1917 | AI21: 0.0034 | AJ21: 0.0229 | AK21: 1.115989663 | AL21: 1.178634834 | AM21: 1.637021802 | AN21: 0.15 | AO21: 2.473959214 | AQ21: 1942 | AR21: 12.43 | AS21: 7.91 | AT21: 20.34
A22: =A21+1 -> 1943 | B22: 16 | C22: 0 | D22: -50000 | E22: 0.259 | F22: 285328.7541 | G22: 78207.68168 | H22: 0.14278 | I22: 1091451.862 | J22: =-OFFSET(FFIUL!Q18:Q82,J$6-1,0,1,1) -> -2827 | K22: 990111.8 | L22: 449093.781 | M22: 738105.6263 | N22: 1179707.697 | O22: 1788431.359 | P22: 1336483.838 | Q22: 905839.9752 | S22: 16 | T22: 816386.3929 | U22: 46210.55054 | V22: 63755.15623 | W22: 63755.15623 | X22: 1209616.507 | Y22: 1310956.569 | AA22: 1943 | AB22: =(AK22/AK11)^(1/10)-1 -> 0.1066419134 | AD22: 0.07639444443 | AG22: 1943 | AH22: 0.2506 | AI22: 0.0038 | AJ22: 0.0249 | AK22: 1.395656672 | AL22: 1.183113646 | AM22: 1.677783644 | AN22: 0.15 | AO22: 2.845053096 | AQ22: 1943 | AR22: 19.45 | AS22: 6.45 | AT22: 25.9
A23: 1944 | B23: 17 | C23: 0 | D23: -50000 | E23: 0.1975 | F23: 281806.1831 | G23: 33196.63331 | H23: 0.13078 | I23: 1177652.936 | J23: =-OFFSET(FFIUL!Q19:Q83,J$6-1,0,1,1) -> -2425 | K23: 1060317.48 | L23: 407873.8441 | M23: 715629.8513 | N23: 1197490.158 | O23: 1877505.868 | P23: 1373145.991 | Q23: 898218.2157 | S23: 17 | T23: 897169.5765 | U23: 50783.18357 | V23: 59907.22889 | W23: 59907.22889 | X23: 1432809.908 | Y23: 1550145.365 | AA23: 1944 | AB23: =(AK23/AK13)^(1/10)-1 -> 0.08265312391 | AD23: 0.09072866333 | AG23: 1944 | AH23: 0.1903 | AI23: 0.0038 | AJ23: 0.0258 | AK23: 1.661250137 | AL23: 1.187609478 | AM23: 1.721070462 | AN23: 0.15 | AO23: 3.27181106 | AQ23: 1944 | AR23: 13.8 | AS23: 5.95 | AT23: 19.75
A24: 1945 | B24: 18 | C24: 0 | D24: -50000 | E24: 0.3644 | F24: 316276.3562 | G24: -22592.5298 | H24: 0.14278 | I24: 1288659.222 | J24: =-OFFSET(FFIUL!Q20:Q84,J$6-1,0,1,1) -> -2460 | K24: 1151759.371 | L24: 365747.0687 | M24: 692255.0454 | N24: 1216339.568 | O24: 1973706.337 | P24: 1412313.213 | Q24: 890160.8621 | S24: 18 | T24: 982799.751 | U24: 55630.17459 | V24: 76751.09754 | W24: 76751.09754 | X24: 1722284.888 | Y24: 1859184.739 | AA24: 1945 | AB24: =(AK24/AK13)^(1/10)-1 -> 0.1163122896 | AD24: 0.09072866333 | AG24: 1945 | AH24: 0.3582 | AI24: 0.0038 | AJ24: 0.038 | AK24: 2.256309936 | AL24: 1.192122394 | AM24: 1.78647114 | AN24: 0.15 | AO24: 3.762582719 | AQ24: 1945 | AR24: 30.72 | AS24: 5.72 | AT24: 36.44
A25: 1946 | B25: 19 | C25: 0 | D25: -50000 | E25: -0.0807 | F25: 244787.8542 | G25: -65751.40979 | H25: 0.00028 | I25: 1239006.047 | J25: =-OFFSET(FFIUL!Q21:Q85,J$6-1,0,1,1) -> -2411 | K25: 1099656.188 | L25: 322693.5042 | M25: 667945.2472 | N25: 1236319.942 | O25: 2077602.844 | P25: 1454246.273 | Q25: 881731.4434 | S25: 19 | T25: 1073567.736 | U25: 60767.98506 | V25: -60484.40113 | W25: -60484.40113 | X25: 1659854.116 | Y25: 1799203.974 | AA25: 1946 | AB25: =(AK25/AK15)^(1/10)-1 -> 0.03578240171 | AD25: 0.07639444443 | AG25: 1946 | AH25: -0.0843 | AI25: 0.0038 | AJ25: 0.0313 | AK25: =AK24*(1+AH25) -> 2.066103009 | AL25: 1.196652459 | AM25: 1.842387687 | AN25: 0.0075 | AO25: 3.790802089 | AQ25: 1946 | AR25: -11.87 | AS25: 3.8 | AT25: -8.07
A26: 1947 | B26: 20 | C26: 0 | D26: -50000 | E26: 0.0571 | F26: 205910.2407 | G26: -120063.9601 | H26: 0.00028 | I26: 1189338.969 | J26: =-OFFSET(FFIUL!Q22:Q86,J$6-1,0,1,1) -> -2247 | K26: 1047702.463 | L26: 278692.7613 | M26: 642663.0571 | N26: 1257499.138 | O26: 2189811.072 | P26: 1499256.17 | Q26: 873028.6925 | S26: 20 | T26: 1169781.8 | U26: 66214.06417 | V26: -65905.0652 | W26: -65905.0652 | X26: 1592147.727 | Y26: 1733784.233 | AA26: 1947 | AB26: =(AK26/AK15)^(1/10)-1 -> 0.04104643653 | AC26: =(AK26/AK5)^(1/20)-1 -> 0.03958112452 | AD26: 0.08105680793 | AE26: =(AO26/1)^(1/20)-1 -> 0.07161144316 | AG26: 1947 | AH26: 0.052 | AI26: 0.0057 | AJ26: 0.0092 | AK26: 2.173540365 | AL26: 1.203473378 | AM26: 1.859337653 | AN26: 0.052 | AO26: 3.987923798 | AQ26: 1947 | AR26: 0 | AS26: 5.71 | AT26: 5.71
A27: 1948 | B27: 21 | C27: 0 | D27: -50000 | E27: 0.055 | F27: 164485.3039 | G27: -175795.9658 | H27: 0.00028 | I27: 1139657.984 | J27: =-OFFSET(FFIUL!Q23:Q87,J$6-1,0,1,1) -> -1927 | K27: 996054.2799 | L27: 233724.0021 | M27: 616369.5794 | N27: 1279949.087 | O27: 2310995.957 | P27: 1547717.982 | Q27: 864198.6745 | S27: 21 | T27: 1271768.708 | U27: 71986.90802 | V27: -71650.96911 | W27: -71650.96911 | X27: 1518994.957 | Y27: 1662598.661 | AA27: 1948 | AB27: =(AK27/AK17)^(1/10)-1 -> 0.06576363185 | AC27: =(AK27/AK7)^(1/20)-1 -> 0.0236999464 | AD27: 0.07197888433 | AE27: =(AO27/AO7)^(1/20)-1 -> 0.06710265366 | AG27: 1948 | AH27: 0.057 | AI27: 0.0102 | AJ27: 0.0195 | AK27: 2.297432166 | AL27: 1.215748807 | AM27: 1.895594738 | AN27: 0.057 | AO27: 4.215235454 | AQ27: 1948 | AR27: -0.65 | AS27: 6.15 | AT27: 5.5
A28: 1949 | B28: 22 | C28: 0 | D28: -50000 | E28: 0.1879 | F28: 135997.0926 | G28: -261790.3266 | H28: 0.09738 | I28: 1195768.878 | J28: =-OFFSET(FFIUL!Q24:Q88,J$6-1,0,1,1) -> -2296 | K28: 1035661.461 | L28: 187765.9301 | M28: 589024.3625 | N28: 1303746.032 | O28: 2441875.634 | P28: 1599156.387 | Q28: 854526.3023 | S28: 22 | T28: 1379874.831 | U28: 78106.1225 | V28: 48660.11432 | W28: 48660.11432 | X28: 1717793.738 | Y28: 1877901.155 | AA28: 1949 | AB28: =(AK28/AK17)^(1/10)-1 -> 0.08382551488 | AC28: 0.03682020282 | AD28: 0.08625430173 | AE28: 0.07418439555 | AG28: 1949 | AH28: 0.183 | AI28: 0.011 | AJ28: 0.0466 | AK28: 2.717862252 | AL28: 1.229122044 | AM28: 1.983929452 | AN28: 0.15 | AO28: 4.847520773 | AQ28: 1949 | AR28: 10.46 | AS28: 8.33 | AT28: 18.79
A29: 1950 | B29: 23 | C29: 0 | D29: -50000 | E29: 0.3171 | F29: 113266.7706 | G29: -400027.3008 | H29: 0.14278 | I29: 1309361.758 | J29: =-OFFSET(FFIUL!Q25:Q89,J$6-1,0,1,1) -> -2731 | K29: 1123273.272 | L29: 140796.7806 | M29: 560585.3371 | N29: 1328970.794 | O29: 2583225.685 | P29: 1653709.265 | Q29: 843899.5515 | S29: 23 | T29: 1494467.321 | U29: 84592.48985 | V29: 116709.4385 | W29: 116709.4385 | X29: 2093312.608 | Y29: 2279401.094 | AA29: 1950 | AB29: =(AK29/AK19)^(1/10)-1 -> 0.1272081048 | AC29: 0.06614728794 | AD29: 0.1007198232 | AE29: 0.08131313486 | AG29: 1950 | AH29: 0.3081 | AI29: 0.0117 | AJ29: 0.0043 | AK29: 3.555235612 | AL29: 1.243502772 | AM29: 1.992460349 | AN29: 0.15 | AO29: 5.574648888 | AQ29: 1950 | AR29: 21.68 | AS29: 10.03 | AT29: 31.71
A30: 1951 | B30: 24 | C30: 0 | D30: -50000 | E30: 0.2402 | F30: 78463.44891 | G30: -546283.1901 | H30: 0.14278 | I30: 1439173.43 | J30: =-OFFSET(FFIUL!Q26:Q90,J$6-1,0,1,1) -> -3243 | K30: 1222809.195 | L30: 92794.30975 | M30: 531008.7505 | N30: 1355709.041 | O30: 2735883.74 | P30: 1711512.645 | Q30: 832189.2147 | S30: 24 | T30: 1615935.36 | U30: 91468.03924 | V30: 126195.4048 | W30: 126195.4048 | X30: 2532703.331 | Y30: 2749067.567 | AA30: 1951 | AB30: =(AK30/AK19)^(1/10)-1 -> 0.1514207466 | AC30: 0.109074769 | AD30: 0.1153779803 | AE30: 0.08848918349 | AG30: 1951 | AH30: 0.2368 | AI30: 0.0148 | AJ30: -0.003 | AK30: 4.397115405 | AL30: 1.261906613 | AM30: 1.986482968 | AN30: 0.15 | AO30: 6.410846222 | AQ30: 1951 | AR30: 16.35 | AS30: 7.67 | AT30: 24.02
A31: 1952 | B31: 25 | C31: 0 | D31: -50000 | E31: 0.1837 | F31: 33692.18447 | G31: -692256.7584 | H31: 0.11058 | I31: 1542788.228 | J31: =-OFFSET(FFIUL!Q27:Q91,J$6-1,0,1,1) -> -3841 | K31: 1298232.698 | L31: 43735.78456 | M31: 500249.1006 | N31: 1384051.584 | O31: 2900754.439 | P31: 1772702.651 | Q31: 819250.0562 | S31: 25 | T31: 1744691.481 | U31: 98756.12159 | V31: 83251.4105 | W31: 83251.4105 | X31: 2900961.279 | Y31: 3145516.81 | AA31: 1952 | AB31: =(AK31/AK21)^(1/10)-1 -> 0.1662566734 | AC31: 0.1234266114 | AD31: 0.1153779803 | AE31: 0.09571285538 | AG31: 1952 | AH31: 0.1815 | AI31: 0.0167 | AJ31: 0.0227 | AK31: 5.195191851 | AL31: 1.282980453 | AM31: 2.031576131 | AN31: 0.15 | AO31: 7.372473155 | AQ31: 1952 | AR31: 11.78 | AS31: 6.59 | AT31: 18.37
A32: 1953 | B32: 26 | C32: 0 | D32: -50000 | E32: -0.0099 | F32: -16146.36815 | G32: -720375.7714 | H32: 0.00028 | I32: 1493206.209 | J32: =-OFFSET(FFIUL!Q28:Q92,J$6-1,0,1,1) -> -4549 | K32: 1244031.929 | L32: -6402.028176 | M32: 468259.0646 | N32: 1414094.679 | O32: 3078814.794 | P32: 1837399.952 | Q32: 804904.5496 | S32: 26 | T32: 1881172.97 | U32: 106481.4889 | V32: -105984.5753 | W32: -105984.5753 | X32: 2791209.024 | Y32: 3040383.303 | AA32: 1953 | AB32: =(AK32/AK21)^(1/10)-1 -> 0.1648377596 | AC32: 0.1002178557 | AD32: 0.1007198232 | AE32: 0.08848918349 | AG32: 1953 | AH32: -0.0121 | AI32: 0.0189 | AJ32: 0.0414 | AK32: 5.13233003 | AL32: 1.307228784 | AM32: 2.115683383 | AN32: 0.0075 | AO32: 7.427766704 | AQ32: 1953 | AR32: -6.62 | AS32: 5.63 | AT32: -0.99
A33: 1954 | B33: 27 | C33: 0 | D33: -50000 | E33: 0.5262 | F33: -100952.5871 | G33: -1155656.102 | H33: 0.14278 | I33: 1649267.191 | J33: =-OFFSET(FFIUL!Q29:Q93,J$6-1,0,1,1) -> -5383 | K33: 1358364.223 | L33: -57642.8728 | M33: 434989.4272 | N33: 1445940.36 | O33: 3271119.977 | P33: 1905716.986 | Q33: 788949.4097 | S33: 27 | T33: 2025843.349 | U33: 114670.3782 | V33: 158206.8985 | W33: 158206.8985 | X33: 3364381.943 | Y33: 3655284.911 | AA33: 1954 | AB33: =(AK33/AK23)^(1/10)-1 -> 0.167701996 | AC33: 0.1243736985 | AD33: 0.1007198232 | AE33: 0.09571285538 | AG33: 1954 | AH33: 0.5256 | AI33: 0.0096 | AJ33: 0.0329 | AK33: 7.829882693 | AL33: 1.31977818 | AM33: 2.185289367 | AN33: 0.15 | AO33: 8.541931709 | AQ33: 1954 | AR33: 45.02 | AS33: 7.6 | AT33: 52.62
A34: 1955 | B34: 28 | C34: 0 | D34: -50000 | E34: 0.3156 | F34: -198593.2236 | G34: -1564425.6 | H34: 0.14278 | I34: 1827610.561 | J34: =-OFFSET(FFIUL!Q30:Q94,J$6-1,0,1,1) -> -6353 | K34: 1487912.386 | L34: -110011.016 | M34: 400389.0042 | N34: 1479696.781 | O34: 3478809.576 | P34: 1977763.614 | Q34: 771160.4116 | S34: 28 | T34: 2179193.949 | U34: 123350.6009 | V34: 170182.7124 | W34: 170182.7124 | X34: 4031969.715 | Y34: 4371667.891 | AA34: 1955 | AB34: =(AK34/AK23)^(1/10)-1 -> 0.2011199349 | AC34: 0.1186917323 | AD34: 0.1007198232 | AE34: 0.09571285538 | AG34: 1955 | AH34: 0.326 | AI34: 0.0166 | AJ34: -0.0134 | AK34: 10.38242445 | AL34: 1.341686498 | AM34: 2.156006489 | AN34: 0.15 | AO34: 9.823221466 | AQ34: 1955 | AR34: 26.4 | AS34: 5.16 | AT34: 31.56
A35: =A34+1 -> 1956 | B35: 29 | C35: 0 | D35: -50000 | E35: 0.0656 | F35: -264900.939 | G35: -1697726.732 | H35: 0.01898 | I35: 1811349.609 | J35: =-OFFSET(FFIUL!Q31:Q95,J$6-1,0,1,1) -> -7515 | K35: 1457546.328 | L35: -163531.2583 | M35: 364404.5644 | N35: 1515478.588 | O35: 3703114.342 | P35: 2053599.231 | Q35: 751243.9962 | S35: 29 | T35: 2341745.586 | U35: 132551.637 | V35: -90621.13581 | W35: -90621.13581 | X35: 4008497.741 | Y35: 4362301.022 | AA35: 1956 | AB35: =(AK35/AK25)^(1/10)-1 -> 0.1836717452 | AC35: 0.1072607475 | AD35: 0.1078191862 | AE35: 0.09199378087 | AG35: 1956 | AH35: 0.0744 | AI35: 0.0256 | AJ35: -0.0226 | AK35: 11.15487683 | AL35: 1.376033672 | AM35: 2.107280742 | AN35: 0.0744 | AO35: 10.55406914 | AQ35: 1956 | AR35: 2.62 | AS35: 3.94 | AT35: 6.56
A36: 1957 | B36: 30 | C36: 0 | D36: -50000 | E36: -0.1078 | F36: -280954.6178 | G36: -1537214.795 | H36: 0.00028 | I36: 1761842.787 | J36: =-OFFSET(FFIUL!Q32:Q96,J$6-1,0,1,1) -> -8925 | K36: 1399012.942 | L36: -218228.946 | M36: 326980.747 | N36: 1553407.304 | O36: 3945363.489 | P36: 2133229.267 | Q36: 728833.6352 | S36: 30 | T36: 2514050.322 | U36: 142304.7352 | V36: -141640.6464 | W36: -141640.6464 | X36: 3859012.316 | Y36: 4221842.161 | AA36: 1957 | AB36: =(AK36/AK25)^(1/10)-1 -> 0.1706659588 | AC36: 0.1254312599 | AD36: 0.1030414024 | AE36: 0.09199378087 | AG36: 1957 | AH36: -0.1046 | AI36: 0.0323 | AJ36: 0.068 | AK36: 9.988076714 | AL36: 1.42047956 | AM36: 2.250575833 | AN36: 0.0075 | AO36: 10.63322466 | AQ36: 1957 | AR36: -14.31 | AS36: 3.53 | AT36: -10.78
A37: 1958 | B37: 31 | C37: 0 | D37: -50000 | E37: 0.4336 | F37: -474456.5401 | G37: -2246083.528 | H37: 0.14278 | I37: 1956259.7 | J37: =-OFFSET(FFIUL!Q33:Q97,J$6-1,0,1,1) -> -10619 | K37: 1529489.829 | L37: -274129.9828 | M37: 288059.9769 | N37: 1593611.742 | O37: 4206992.568 | P37: 2216622.192 | Q37: 703506.5688 | S37: 31 | T37: 2696693.341 | U37: 152643.0193 | V37: 210596.4856 | W37: 210596.4856 | X37: 4638532.365 | Y37: 5065302.236 | AA37: 1958 | AB37: =(AK37/AK27)^(1/10)-1 -> 0.2010902404 | AC37: 0.131405452 | AD37: 0.1123823751 | AE37: 0.09199378087 | AG37: 1958 | AH37: 0.4372 | AI37: 0.0178 | AJ37: -0.021 | AK37: 14.35486385 | AL37: 1.445764096 | AM37: 2.20331374 | AN37: 0.15 | AO37: 12.22820836 | AQ37: 1958 | AR37: 38.06 | AS37: 5.3 | AT37: 43.36
A38: 1959 | B38: 32 | C38: 0 | D38: -50000 | E38: 0.1196 | F38: -587181.5423 | G38: -2542030.811 | H38: 0.07758 | I38: 2054147.328 | J38: =-OFFSET(FFIUL!Q34:Q98,J$6-1,0,1,1) -> -12641 | K38: 1580646.961 | L38: -331260.8425 | M38: 247582.3759 | N38: 1636228.446 | O38: 4489551.974 | P38: 2303698.656 | Q38: 674772.6324 | S38: 32 | T38: 2890294.941 | U38: 163601.6005 | V38: 47935.26893 | W38: 47935.26893 | X38: 5036422.104 | Y38: 5509922.471 | AA38: 1959 | AB38: =(AK38/AK27)^(1/10)-1 -> 0.2148445225 | AC38: 0.1384946221 | AD38: 0.1095052893 | AE38: 0.09781824236 | AG38: 1959 | AH38: 0.1206 | AI38: 0.0326 | AJ38: -0.0265 | AK38: 16.08606043 | AL38: 1.492896005 | AM38: 2.144925926 | AN38: 0.1206 | AO38: 13.70293029 | AQ38: 1959 | AR38: 8.48 | AS38: 3.48 | AT38: 11.96
A39: 1960 | B39: 33 | C39: 0 | D39: -50000 | E39: =IF($A$7>0,LOOKUP(MOD(B39-1,(A$3-A$7+1))+A$7,AQ$7:AQ$112,AT$7:AT$112),11)/100 -> 0.0047 | F39: -640176.2955 | G39: =FV((1+E39-K$3)^(1/12)-1,12,-C39,-(G38+D39),1) + (G38+D39)*IF($A$7>0,LOOKUP(MOD(B39-1,(A$3-A$7+1))+A$7,AQ$7:AQ$112,AS$7:AS$112),11)/100*$G$5 -> -2572196.592 | H39: =MIN(MAX(IF($A$7>0,LOOKUP(MOD(B39-1,(A$3-A$7+1))+A$7,AQ$7:AQ$112,AR$7:AR$112),11)/100,B$1),A$1) - $H$6/100 -> 0.00028 | I39: 2004708.489 | J39: =-OFFSET(FFIUL!Q35:Q99,J$6-1,0,1,1) -> -15019 | K39: 1516052.337 | L39: -389648.581 | M39: 205485.671 | N39: 1681402.153 | O39: 4794716.131 | P39: 2394344.765 | Q39: 642087.1728 | S39: 33 | T39: 3095512.638 | U39: 175217.6965 | V39: -174400.0139 | W39: -174400.0139 | X39: 4848360.251 | Y39: 5337016.403 | AA39: 1960 | AB39: =(AK39/AK29)^(1/10)-1 -> 0.1633369985 | AC39: 0.145130077 | AD39: 0.09492431031 | AE39: 0.09781824236 | AG39: 1960 | AH39: 0.0034 | AI39: 0.0305 | AJ39: 0.1164 | AK39: 16.14075304 | AL39: 1.538429334 | AM39: 2.394595304 | AN39: =IF(AH39>A$1,A$1,IF(AH39<B$1,B$1,AH39)) -> 0.0075 | AO39: 13.80570227 | AQ39: 1960 | AR39: -2.97 | AS39: 3.44 | AT39: 0.47
A40: 1961 | B40: 34 | C40: 0 | D40: -50000 | E40: 0.2689 | F40: -875764.7014 | G40: -3292146.843 | H40: 0.14278 | I40: 2233801.767 | J40: =-OFFSET(FFIUL!Q36:Q100,J$6-1,0,1,1) -> -17922 | K40: 1654894.387 | L40: =FV((1+L$5)^(1/12)-1,12,-$C40,-(L39+$D40),1) -> -449320.8498 | M40: =FV((1+M$5)^(1/12)-1,12,-$C40,-(M39+$D40),1) -> 161705.0978 | N40: =FV((1+N$5)^(1/12)-1,12,-$C40,-(N39+$D40),1) -> 1729286.282 | O40: =FV((1+O$5)^(1/12)-1,12,-$C40,-(O39+$D40),1) -> 5124293.422 | P40: 2488263.451 | Q40: 604703.219 | S40: 34 | T40: =(T39+T$5)*(1+U$5) -> 3313043.396 | U40: =(T39+T$5)*U$5 -> 187530.7583 | V40: =(T39+T$5)*(1+H40)-T40 -> 258729.9362 | W40: 258729.9362 | X40: 5815799.621 | Y40: 6394707.002 | AA40: 1961 | AB40: =(AK40/AK29)^(1/10)-1 -> 0.1911395108 | AC40: 0.1666754872 | AD40: 0.09492431031 | AE40: 0.1051038258 | AG40: 1961 | AH40: 0.2664 | AI40: 0.0227 | AJ40: 0.0206 | AK40: 20.44064965 | AL40: 1.573351679 | AM40: 2.443923967 | AN40: 0.15 | AO40: 15.87655761 | AQ40: 1961 | AR40: 23.13 | AS40: 3.76 | AT40: 26.89
A41: 1962 | B41: 35 | C41: 0 | D41: -50000 | E41: -0.0873 | F41: -844945.4429 | G41: -3013065.697 | H41: 0.00028 | I41: 2184413.232 | J41: =-OFFSET(FFIUL!Q37:Q101,J$6-1,0,1,1) -> -21311 | K41: 1584026.79 | L41: -510305.9085 | M41: 116173.3017 | N41: 1780043.459 | O41: 5480236.896 | P41: 2585177.505 | Q41: 561874.7351 | S41: 35 | T41: 3543626 | U41: 200582.6038 | V41: -199646.5516 | W41: -199646.5516 | X41: 5596408.625 | Y41: 6196795.067 | AA41: 1962 | AB41: =(AK41/AK31)^(1/10)-1 -> 0.1362765187 | AC41: 0.1511690027 | AD41: 0.08053495275 | AE41: 0.09781824236 | AG41: 1962 | AH41: -0.0881 | AI41: 0.0278 | AJ41: 0.0569 | AK41: =AK40*(1+AH41) -> 18.63982842 | AL41: 1.617090856 | AM41: 2.582983241 | AN41: 0.0075 | AO41: 15.99563179 | AQ41: 1962 | AR41: -11.81 | AS41: 3.08 | AT41: -8.73
A42: 1963 | B42: 36 | C42: 0 | D42: -50000 | E42: 0.228 | F42: -1098993.004 | G42: -3718858.873 | H42: 0.14278 | I42: 2439164.753 | J42: =-OFFSET(FFIUL!Q38:Q102,J$6-1,0,1,1) -> -25246 | K42: 1724204.511 | L42: -572632.6385 | M42: 68820.23381 | N42: 1833846.067 | O42: 5864655.847 | P42: 2684728.27 | Q42: 512754.88 | S42: 36 | T42: 3788043.56 | U42: 214417.56 | V42: 295824.7603 | W42: 295824.7603 | X42: 6704675.844 | Y42: 7419636.086 | AA42: 1963 | AB42: =(AK42/AK31)^(1/10)-1 -> 0.1596758716 | AC42: 0.1500307698 | AD42: 0.09492431031 | AE42: 0.09781824236 | AG42: 1963 | AH42: 0.2261 | AI42: 0.0311 | AJ42: 0.0168 | AK42: 22.85429362 | AL42: 1.667382382 | AM42: 2.62637736 | AN42: 0.15 | AO42: 18.39497656 | AQ42: 1963 | AR42: 18.89 | AS42: 3.91 | AT42: 22.8
A43: 1964 | B43: 37 | C43: 0 | D43: -50000 | E43: 0.1648 | F43: -1338347.051 | G43: -4342543.264 | H43: 0.12248 | I43: 2681789.652 | J43: =-OFFSET(FFIUL!Q39:Q103,J$6-1,0,1,1) -> -23929 | K43: 1852401.256 | L43: -636330.5565 | M43: 19573.04316 | N43: 1890876.831 | O43: 6279828.315 | P43: 2792545.699 | Q43: 462413.7879 | S43: 37 | T43: 4047126.174 | U43: 229082.6136 | V43: 238551.3616 | W43: 238551.3616 | X43: 7766773.85 | Y43: 8596162.247 | AA43: 1964 | AB43: =(AK43/AK33)^(1/10)-1 -> 0.1301185777 | AC43: 0.1487565969 | AD43: 0.09492431031 | AE43: 0.09781824236 | AG43: 1964 | AH43: 0.1642 | AI43: 0.0351 | AJ43: 0.0373 | AK43: 26.60696863 | AL43: 1.725907503 | AM43: 2.724341235 | AN43: 0.15 | AO43: 21.15422304 | AQ43: 1964 | AR43: 12.97 | AS43: 3.51 | AT43: 16.48
A44: 1965 | B44: 38 | C44: 0 | D44: -50000 | E44: 0.1245 | F44: -1561196.259 | G44: -4885882.976 | H44: 0.08338 | I44: 2851228.273 | J44: =-OFFSET(FFIUL!Q40:Q104,J$6-1,0,1,1) -> -21130 | K44: 1929793.653 | L44: -701429.8288 | M44: -31644.03512 | N44: 1951329.44 | O44: 6728214.58 | P44: 2910739.903 | Q44: 412311.1889 | S44: 38 | T44: 4321753.744 | U44: 244627.5704 | V44: 95323.20994 | W44: 95323.20994 | X44: 8494746.894 | Y44: 9416181.514 | AA44: 1965 | AB44: =(AK44/AK33)^(1/10)-1 -> 0.1434064699 | AC44: 0.1379368137 | AD44: 0.09242327729 | AE44: 0.09656370387 | AG44: 1965 | AH44: 0.124 | AI44: 0.039 | AJ44: 0.0072 | AK44: 29.90623274 | AL44: 1.793217896 | AM44: 2.743956492 | AN44: 0.124 | AO44: 23.7773467 | AQ44: 1965 | AR44: 9.06 | AS44: 3.39 | AT44: 12.45
A45: 1966 | B45: 39 | C45: 0 | D45: -50000 | E45: -0.1006 | F45: -1449109.915 | G45: -4385043.371 | H45: 0.00028 | I45: 2802012.617 | J45: =-OFFSET(FFIUL!Q41:Q105,J$6-1,0,1,1) -> -16570 | K45: 1863745.356 | L45: -767961.285 | M45: -84909.79652 | N45: 2015409.207 | O45: 7212471.747 | P45: 3041856.628 | Q45: 364270.2084 | S45: 39 | T45: 4612858.969 | U45: 261105.2246 | V45: -259886.7336 | W45: -259886.7336 | X45: 8220591.281 | Y45: 9158858.543 | AA45: 1966 | AB45: =(AK45/AK35)^(1/10)-1 -> 0.09211511535 | AC45: 0.1369722092 | AD45: 0.08542257764 | AE45: 0.09656370387 | AG45: 1966 | AH45: -0.0997 | AI45: 0.0484 | AJ45: 0.0291 | AK45: 26.92458134 | AL45: 1.880009642 | AM45: 2.823805626 | AN45: 0.0075 | AO45: 23.9556768 | AQ45: 1966 | AR45: -13.09 | AS45: 3.03 | AT45: -10.06
A46: 1967 | B46: 40 | C46: 0 | D46: -50000 | E46: 0.2398 | F46: -1858596.473 | G46: -5437199.077 | H46: 0.14278 | I46: 3144944.979 | J46: =-OFFSET(FFIUL!Q42:Q106,J$6-1,0,1,1) -> -9644 | K46: 2061690.947 | L46: -835956.4333 | M46: -140306.1884 | N46: 2083333.759 | O46: 7735469.486 | P46: 3189245.575 | Q46: 320831.6053 | S46: 40 | T46: 4921430.507 | U46: 278571.5381 | V46: 384335.8654 | W46: 384335.8654 | X46: 9822517.675 | Y46: 10905771.71 | AA46: 1967 | AB46: =(AK46/AK35)^(1/10)-1 -> 0.115682144 | AC46: 0.1462651658 | AD46: 0.09987702313 | AE46: 0.1014580764 | AG46: 1967 | AH46: 0.238 | AI46: 0.0433 | AJ46: -0.0158 | AK46: 33.3326317 | AL46: 1.96141406 | AM46: 2.779189497 | AN46: 0.15 | AO46: 27.54902832 | AQ46: 1967 | AR46: 20.09 | AS46: 3.89 | AT46: 23.98
A47: 1968 | B47: 41 | C47: 0 | D47: -50000 | E47: 0.1106 | F47: -2119687.243 | G47: -6027029.722 | H47: 0.06938 | I47: 3309672.261 | J47: =-OFFSET(FFIUL!Q43:Q107,J$6-1,0,1,1) -> -120 | K47: 2151133.74 | L47: -905447.4748 | M47: -197918.4359 | N47: 2155333.785 | O47: 8300307.045 | P47: 3356729.261 | Q47: 284907.8876 | S47: 41 | T47: 5248516.337 | U47: 297085.8304 | V47: 46444.41815 | W47: 46444.41815 | X47: 10553542.36 | Y47: 11712080.88 | AA47: 1968 | AB47: =(AK47/AK37)^(1/10)-1 -> 0.09911958886 | AC47: 0.148974243 | AD47: 0.09580238418 | AE47: 0.1040612568 | AG47: 1968 | AH47: 0.1081 | AI47: 0.0526 | AJ47: 0.0327 | AK47: 36.93588918 | AL47: 2.064584439 | AM47: 2.870068994 | AN47: 0.1081 | AO47: 30.52707828 | AQ47: 1968 | AR47: 7.66 | AS47: 3.4 | AT47: 11.06
A48: 1969 | B48: 42 | C48: 0 | D48: -50000 | E48: -0.085 | F48: -1985263.827 | G48: -5497050.159 | H48: 0.00028 | I48: 3260584.969 | J48: =-OFFSET(FFIUL!Q44:Q108,J$6-1,0,1,1) -> -120 | K48: 2101602.024 | L48: -976467.3192 | M48: -257835.1734 | N48: 2231653.812 | O48: 8910331.609 | P48: 3535822.683 | Q48: 247100.6944 | S48: 42 | T48: 5595227.317 | U48: 316710.9802 | V48: -315232.9957 | W48: -315232.9957 | X48: 10241056.05 | Y48: 11400039 | AA48: 1969 | AB48: =(AK48/AK37)^(1/10)-1 -> 0.08970837465 | AC48: 0.1344718552 | AD48: 0.08420569628 | AE48: 0.09678254667 | AG48: 1969 | AH48: -0.0824 | AI48: 0.0656 | AJ48: -0.0501 | AK48: 33.89237192 | AL48: 2.200021178 | AM48: 2.726278537 | AN48: 0.0075 | AO48: 30.75603136 | AQ48: 1969 | AR48: -11.36 | AS48: 2.86 | AT48: -8.5
A49: =A48+1 -> 1970 | B49: 43 | C49: 0 | D49: -50000 | E49: 0.0401 | F49: -2116877.907 | G49: -5692366.232 | H49: 0.00028 | I49: 3211483.933 | J49: =-OFFSET(FFIUL!Q45:Q109,J$6-1,0,1,1) -> -120 | K49: 2052056.438 | L49: -1049049.6 | M49: -320148.5803 | N49: 2312553.041 | O49: 9569158.138 | P49: 3727330.613 | Q49: 207311.2752 | S49: 43 | T49: 5962740.956 | U49: 337513.639 | V49: -335938.5754 | W49: -335938.5754 | X49: 9907770.878 | Y49: 11067198.37 | AA49: 1970 | AB49: =(AK49/AK39)^(1/10)-1 -> 0.0807793078 | AC49: 0.1212986025 | AD49: =(AO49/AO39)^(1/10)-1 -> 0.08719233883 | AE49: 0.09105147531 | AG49: 1970 | AH49: 0.0356 | AI49: 0.0669 | AJ49: 0.1675 | AK49: 35.09894036 | AL49: 2.347202595 | AM49: 3.182930192 | AN49: 0.0356 | AO49: 31.85094608 | AQ49: 1970 | AR49: 0.1 | AS49: 3.91 | AT49: 4.01
A50: 1971 | B50: 44 | C50: 0 | D50: -50000 | E50: 0.1431 | F50: -2476958.135 | G50: -6491653.148 | H50: 0.10068 | I50: 3479782.136 | J50: =-OFFSET(FFIUL!Q46:Q110,J$6-1,0,1,1) -> -120 | K50: 2203491.399 | L50: -1123228.691 | M50: -384954.5235 | N50: 2398306.223 | O50: 10280690.79 | P50: 3932113.606 | Q50: 165435.7023 | S50: 44 | T50: 6352305.414 | U50: 359564.4574 | V50: 243784.7021 | W50: 243784.7021 | X50: 11173482.11 | Y50: 12449772.85 | AA50: 1971 | AB50: =(AK50/AK39)^(1/10)-1 -> 0.09524489312 | AC50: 0.1168463131 | AD50: 0.08645267842 | AE50: 0.09068026919 | AG50: 1971 | AH50: 0.1422 | AI50: 0.0454 | AJ50: 0.0979 | AK50: 40.09000967 | AL50: 2.453765593 | AM50: 3.494539058 | AN50: 0.1422 | AO50: 36.38015061 | AQ50: 1971 | AR50: 10.79 | AS50: 3.52 | AT50: 14.31
A51: 1972 | B51: 45 | C51: 0 | D51: -50000 | E51: 0.1898 | F51: -3006574.789 | G51: -7704399.287 | H51: 0.14278 | I51: 3919486.429 | J51: =-OFFSET(FFIUL!Q47:Q111,J$6-1,0,1,1) -> -120 | K51: 2460829.767 | L51: -1199039.723 | M51: -452352.7044 | N51: 2489204.597 | O51: 11049146.05 | P51: 4151091.873 | Q51: 121364.5989 | S51: 45 | T51: 6765243.739 | U51: 382938.3248 | V51: 528327.2421 | W51: 528327.2421 | X51: 13372456.56 | Y51: 14831113.22 | AA51: 1972 | AB51: =(AK51/AK41)^(1/10)-1 -> 0.09831380898 | AC51: 0.1171339182 | AD51: 0.1009208416 | AE51: 0.09068026919 | AG51: 1972 | AH51: 0.1876 | AI51: 0.0395 | AJ51: 0.0282 | AK51: 47.61089549 | AL51: 2.550689334 | AM51: 3.593085059 | AN51: 0.15 | AO51: 41.83717321 | AQ51: 1972 | AR51: 15.63 | AS51: 3.35 | AT51: 18.98
A52: 1973 | B52: 46 | C52: 0 | D52: -50000 | E52: -0.1466 | F52: -2608480.925 | G52: -6540502.359 | H52: 0.00028 | I52: 3870569.885 | J52: =-OFFSET(FFIUL!Q48:Q112,J$6-1,0,1,1) -> 0 | K52: 2411504.8 | L52: -1276518.597 | M52: -522446.8126 | N52: 2585556.872 | O52: 11879077.74 | P52: 4385373.868 | Q52: 75106.23493 | S52: 46 | T52: 7202958.363 | U52: 407714.6243 | V52: -405811.9561 | W52: -405811.9561 | X52: 12970275.27 | Y52: 14429340.35 | AA52: 1973 | AB52: =(AK52/AK41)^(1/10)-1 -> 0.08148240526 | AC52: 0.1092159244 | AD52: 0.08645267842 | AE52: 0.09068026919 | AG52: 1973 | AH52: -0.1431 | AI52: 0.0673 | AJ52: 0.0366 | AK52: 40.79777634 | AL52: 2.722350726 | AM52: 3.724591972 | AN52: 0.0075 | AO52: 42.150952 | AQ52: 1973 | AR52: -17.37 | AS52: 2.71 | AT52: -14.66
A53: 1974 | B53: 47 | C53: 0 | D53: -50000 | E53: -0.2647 | F53: -1954781.024 | G53: -4768722.745 | H53: 0.00028 | I53: 3821639.645 | J53: =-OFFSET(FFIUL!Q49:Q113,J$6-1,0,1,1) -> 0 | K53: 2362166.021 | L53: -1355702.006 | M53: -595344.6851 | N53: 2687690.285 | O53: 12775403.95 | P53: 4635895.967 | Q53: 26422.55136 | S53: 47 | T53: 7666935.865 | U53: 433977.5018 | V53: -431952.2734 | W53: -431952.2734 | X53: 12541833.72 | Y53: 14001307.35 | AA53: 1974 | AB53: =(AK53/AK43)^(1/10)-1 -> 0.0128518608 | AC53: 0.06987976161 | AD53: 0.07217465398 | AE53: 0.08348977547 | AG53: 1974 | AH53: -0.259 | AI53: 0.0778 | AJ53: 0.0199 | AK53: 30.23115227 | AL53: 2.934149613 | AM53: 3.798711353 | AN53: 0.0075 | AO53: 42.46708414 | AQ53: 1974 | AR53: -29.72 | AS53: 3.25 | AT53: -26.47
A54: 1975 | B54: 48 | C54: 0 | D54: -50000 | E54: 0.372 | F54: -2750559.565 | G54: -6516623.797 | H54: 0.14278 | I54: 4310154.353 | J54: =-OFFSET(FFIUL!Q50:Q114,J$6-1,0,1,1) -> 0 | K54: 2642297.086 | L54: -1436627.45 | M54: -671158.4725 | N54: 2795951.702 | O54: 13743436.27 | P54: 4903783.909 | Q54: -24813.61102 | S54: 48 | T54: 8158752.017 | U54: 461816.1519 | V54: 637152.3509 | W54: 637152.3509 | X54: 15060681.71 | Y54: 16728538.97 | AA54: 1975 | AB54: =(AK54/AK43)^(1/10)-1 -> 0.04524473112 | AC54: 0.07162743711 | AD54: 0.07462932908 | AE54: 0.08348977547 | AG54: 1975 | AH54: 0.37 | AI54: 0.0599 | AJ54: 0.0361 | AK54: 41.41667861 | AL54: 3.109905174 | AM54: 3.935844832 | AN54: 0.15 | AO54: 48.83714677 | AQ54: 1975 | AR54: 31.55 | AS54: 5.65 | AT54: 37.2
A55: 1976 | B55: 49 | C55: 0 | D55: -50000 | E55: 0.2384 | F55: -3468212.965 | G55: -8023908.65 | H55: 0.14278 | I55: 4868419.192 | J55: =-OFFSET(FFIUL!Q51:Q115,J$6-1,0,1,1) -> 0 | K55: 2962425.264 | L55: -1519333.254 | M55: -750004.8114 | N55: 2910708.804 | O55: 14788911.17 | P55: 5190241.471 | Q55: -78736.0783 | S55: 49 | T55: 8680077.137 | U55: 491325.121 | V55: 677864.8919 | W55: 677864.8919 | X55: 17985696.28 | Y55: 19891690.21 | AA55: 1976 | AB55: =(AK55/AK45)^(1/10)-1 -> 0.06655981877 | AC55: 0.07926183084 | AD55: 0.08894004214 | AE55: 0.08717988734 | AG55: 1976 | AH55: 0.2383 | AI55: 0.0497 | AJ55: 0.1598 | AK55: 51.28627312 | AL55: 3.264467462 | AM55: 4.564792837 | AN55: 0.15 | AO55: 56.16271878 | AQ55: 1976 | AR55: 19.15 | AS55: 4.69 | AT55: 23.84
A56: 1977 | B56: 50 | C56: 0 | D56: -50000 | E56: -0.0718 | F56: -3265605.275 | G56: -7371026.459 | H56: 0.00028 | I56: 4819768.349 | J56: =-OFFSET(FFIUL!Q52:Q116,J$6-1,0,1,1) -> 0 | K56: 2913240.743 | L56: -1603858.585 | M56: -832005.0039 | N56: 3032351.332 | O56: 15918024.07 | P56: 5496555.875 | Q56: -135485.6931 | S56: 50 | T56: 9232681.766 | U56: 522604.6282 | V56: -520165.8067 | W56: -520165.8067 | X56: 17470420.82 | Y56: 19376948.43 | AA56: 1977 | AB56: =(AK56/AK45)^(1/10)-1 -> 0.05887050639 | AC56: 0.08132135596 | AD56: 0.07462932908 | AE56: 0.08717988734 | AG56: 1977 | AH56: -0.0698 | AI56: 0.0513 | AJ56: 0.0129 | AK56: 47.70649126 | AL56: 3.431934642 | AM56: 4.623678664 | AN56: 0.0075 | AO56: 56.58393917 | AQ56: 1977 | AR56: -11.5 | AS56: 4.32 | AT56: -7.18
B57: Years | C57: =SUM(C7:C56)*12 -> 0 | L57: =L5 -> 0.022 | M57: 0.04 | N57: 0.06 | O57: 0.08 | P57: 0.077 | Q57: 0.06 | S57: Years | AA57: 1978 | AB57: =(AK57/AK47)^(1/10)-1 -> 0.03240935272 | AC57: 0.06524238711 | AD57: 0.07038455105 | AE57: 0.08301890243 | AG57: 1978 | AH57: 0.0651 | AI57: 0.0693 | AJ57: -0.0078 | AK57: =AK56*(1+AH57) -> 50.81218384 | AL57: 3.669767713 | AM57: 4.587613971 | AN57: 0.0651 | AO57: 60.26755361 | AQ57: 1978 | AR57: 1.06 | AS57: 5.5 | AT57: 6.56
AA58: 1979 | AB58: =(AK58/AK47)^(1/10)-1 -> 0.05010105427 | AC58: 0.06823177077 | AD58: 0.0846387369 | AE58: 0.08442219497 | AG58: 1979 | AH58: 0.1852 | AI58: 0.0994 | AJ58: 0.0067 | AK58: 60.22260029 | AL58: 4.034542624 | AM58: 4.618350984 | AN58: 0.15 | AO58: 69.30768665 | AQ58: 1979 | AR58: 12.31 | AS58: 6.13 | AT58: 18.44
AA59: 1980 | AB59: =(AK59/AK49)^(1/10)-1 -> 0.08497146363 | AC59: =(AK59/AK39)^(1/20)-1 -> 0.08287335707 | AD59: 0.0960634372 | AE59: =(AO59/AO39)^(1/20)-1 -> 0.09161887662 | AG59: 1980 | AH59: 0.3174 | AI59: 0.1122 | AJ59: -0.0299 | AK59: 79.33725362 | AL59: 4.487218306 | AM59: 4.48026229 | AN59: 0.15 | AO59: 79.70383965 | AQ59: 1980 | AR59: 25.77 | AS59: 6.65 | AT59: 32.42
AA60: 1981 | AB60: =(AK60/AK49)^(1/10)-1 -> 0.07976092222 | AC60: 0.06758820868 | AD60: 0.08239550631 | AE60: 0.08442219497 | AG60: 1981 | AH60: -0.047 | AI60: 0.143 | AJ60: 0.082 | AK60: 75.6084027 | AL60: 5.128890524 | AM60: 4.847643797 | AN60: 0.0075 | AO60: 80.30161845 | AQ60: 1981 | AR60: -9.73 | AS60: 4.82 | AT60: -4.91
AA61: 1982 | AB61: =(AK61/AK51)^(1/10)-1 -> 0.06697988882 | AC61: 0.08253348484 | AD61: 0.08239550631 | AE61: 0.09161887662 | AG61: 1982 | AH61: 0.2042 | AI61: 0.1101 | AJ61: 0.3281 | AK61: =AK60*(1+AH61) -> 91.04763853 | AL61: =AL60*(1+AI61) -> 5.693581371 | AM61: =AM60*(1+AJ61) -> 6.438155727 | AN61: 0.15 | AO61: 92.34686122 | AQ61: 1982 | AR61: 14.76 | AS61: 6.79 | AT61: 21.55
AA62: 1983 | AB62: =(AK62/AK51)^(1/10)-1 -> 0.08871217901 | AC62: 0.08241416741 | AD62: 0.09680964065 | AE62: 0.09161887662 | AG62: 1983 | AH62: 0.2234 | AI62: 0.0845 | AJ62: 0.032 | AK62: 111.387681 | AL62: 6.174688996 | AM62: 6.644176711 | AN62: 0.15 | AO62: 106.1988904 | AQ62: 1983 | AR62: 17.27 | AS62: 5.29 | AT62: 22.56
AA63: 1984 | AB63: =(AK63/AK53)^(1/10)-1 -> 0.1461204088 | AC63: 0.07742757934 | AD63: 0.1025511676 | AE63: 0.08725683101 | AG63: 1984 | AH63: 0.0615 | AI63: 0.0961 | AJ63: 0.1373 | AK63: 118.2380234 | AL63: 6.768076609 | AM63: 7.556422173 | AN63: 0.0615 | AO63: 112.7301222 | AQ63: 1984 | AR63: 1.4 | AS63: 4.87 | AT63: 6.27
AA64: 1985 | AB64: =(AK64/AK53)^(1/10)-1 -> 0.1777059472 | AC64: 0.08580811642 | AD64: 0.1025511676 | AE64: 0.08850072185 | AG64: 1985 | AH64: 0.3124 | AI64: 0.0749 | AJ64: 0.2571 | AK64: 155.1755819 | AL64: 7.275005547 | AM64: 9.499178314 | AN64: 0.15 | AO64: 129.6396405 | AQ64: 1985 | AR64: 26.33 | AS64: 5.4 | AT64: 31.73
AA65: 1986 | AB65: =(AK65/AK55)^(1/10)-1 -> 0.1361885128 | AC65: 0.1008237889 | AD65: 0.1025511676 | AE65: 0.09572447033 | AG65: 1986 | AH65: 0.1849 | AI65: 0.0604 | AJ65: 0.2428 | AK65: 183.8675469 | AL65: 7.714415882 | AM65: 11.80557881 | AN65: 0.15 | AO65: 149.0855866 | AQ65: 1986 | AR65: 14.62 | AS65: 4.05 | AT65: 18.67
AA66: 1987 | AB66: =(AK66/AK55)^(1/10)-1 -> 0.142623273 | AC66: 0.09221493206 | AD66: 0.1079672398 | AE66: 0.09117097267 | AG66: 1987 | AH66: 0.0581 | AI66: 0.0572 | AJ66: -0.0496 | AK66: 194.5502514 | AL66: 8.155680471 | AM66: 11.2200221 | AN66: 0.0581 | AO66: 157.7474591 | AQ66: 1987 | AR66: 2.03 | AS66: 3.22 | AT66: 5.25
AA67: 1988 | AB67: =(AK67/AK57)^(1/10)-1 -> 0.16132532 | AC67: 0.09497174483 | AD67: 0.1164972688 | AE67: 0.09319779902 | AG67: 1988 | AH67: 0.1654 | AI67: 0.0645 | AJ67: 0.0822 | AK67: 226.728863 | AL67: 8.681721861 | AM67: 12.14230792 | AN67: 0.15 | AO67: 181.409578 | AQ67: 1988 | AR67: 12.4 | AS67: 4.21 | AT67: 16.61
AA68: 1989 | AB68: =(AK68/AK57)^(1/10)-1 -> 0.1935479316 | AC68: 0.1148417571 | AD68: 0.1164972688 | AE68: 0.1004527193 | AG68: 1989 | AH68: 0.3148 | AI68: 0.0811 | AJ68: 0.1769 | AK68: 298.1031091 | AL68: 9.385809504 | AM68: 14.29028219 | AN68: 0.15 | AO68: 208.6210147 | AQ68: 1989 | AR68: 27.25 | AS68: 4.44 | AT68: 31.69
AA69: 1990 | AB69: =(AK69/AK59)^(1/10)-1 -> 0.1379920703 | AC69: 0.1111655692 | AD69: 0.1018244021 | AE69: 0.09894014458 | AG69: 1990 | AH69: -0.0306 | AI69: 0.0755 | AJ69: 0.0624 | AK69: 288.9811539 | AL69: 10.09443812 | AM69: 15.18199579 | AN69: 0.0075 | AO69: 210.1856723 | AQ69: 1990 | AR69: -6.56 | AS69: 3.46 | AT69: -3.1
AA70: 1991 | AB70: =(AK70/AK59)^(1/10)-1 -> 0.1684505569 | AC70: 0.1184774177 | AD70: 0.1164972688 | AE70: 0.09931416189 | AG70: 1991 | AH70: 0.3023 | AI70: 0.0561 | AJ70: 0.15 | AK70: 376.3401568 | AL70: 10.6607361 | AM70: 17.45929516 | AN70: 0.15 | AO70: 241.7135232 | AQ70: 1991 | AR70: 26.31 | AS70: 4.16 | AT70: 30.47
AA71: 1992 | AB71: =(AK71/AK61)^(1/10)-1 -> 0.1608283175 | AC71: 0.1129153019 | AD71: 0.1089824855 | AE71: 0.09560835106 | AG71: 1992 | AH71: 0.0749 | AI71: 0.0341 | AJ71: 0.0936 | AK71: 404.5280345 | AL71: 11.0242672 | AM71: 19.09348519 | AN71: =IF(AH71>A$1,A$1,IF(AH71<B$1,B$1,AH71)) -> 0.0749 | AO71: 259.817866 | AQ71: 1992 | AR71: 4.46 | AS71: 3.16 | AT71: 7.62
AA72: 1993 | AB72: =(AK72/AK61)^(1/10)-1 -> 0.1719131199 | AC72: 0.126884273 | AD72: 0.1040336887 | AE72: 0.1004157366 | AG72: 1993 | AH72: 0.0997 | AI72: 0.0298 | AJ72: 0.1421 | AK72: 444.8594796 | AL72: 11.35279036 | AM72: 21.80666944 | AN72: 0.0997 | AO72: 285.7217073 | AQ72: 1993 | AR72: 7.06 | AS72: 3.02 | AT72: 10.08
AA73: 1994 | AB73: =(AK73/AK63)^(1/10)-1 -> 0.1431951496 | AC73: 0.1446568447 | AD73: 0.09891507259 | AE73: 0.1007316187 | AG73: 1994 | AH73: 0.0133 | AI73: 0.0399 | AJ73: -0.0804 | AK73: =AK72*(1+AH73) -> 450.7761106 | AL73: 11.8057667 | AM73: 20.05341321 | AN73: 0.0133 | AO73: =AO72*(1+AN73) -> 289.521806 | AQ73: 1994 | AR73: -1.54 | AS73: 2.86 | AT73: 1.32
AA74: 1995 | AB74: =(AK74/AK63)^(1/10)-1 -> 0.1799287528 | AC74: 0.1447403384 | AD74: 0.09891507259 | AE74: 0.1007316187 | AG74: 1995 | AH74: 0.372 | AI74: 0.0552 | AJ74: 0.2348 | AK74: 618.4648238 | AL74: 12.45744502 | AM74: 24.76195464 | AN74: 0.15 | AO74: 332.9500769 | AQ74: 1995 | AR74: 34.11 | AS74: 3.47 | AT74: 37.58
AA75: 1996 | AB75: =(AK75/AK65)^(1/10)-1 -> 0.1533472173 | AC75: 0.144735716 | AD75: 0.09891507259 | AE75: 0.1007316187 | AG75: 1996 | AH75: 0.2382 | AI75: 0.0502 | AJ75: 0.0143 | AK75: 765.7831448 | AL75: 13.08280876 | AM75: 25.11605059 | AN75: 0.15 | AO75: 382.8925884 | AQ75: 1996 | AR75: 20.26 | AS75: 2.7 | AT75: 22.96
AA76: 1997 | AB76: =(AK76/AK65)^(1/10)-1 -> 0.1856906066 | AC76: 0.1648823632 | AD76: 0.1081058375 | AE76: 0.1080365365 | AG76: 1997 | AH76: 0.3186 | AI76: 0.0505 | AJ76: 0.0994 | AK76: 1009.761655 | AL76: 13.7434906 | AM76: 27.61258602 | AN76: 0.15 | AO76: 440.3264767 | AQ76: 1997 | AR76: 31.01 | AS76: 2.35 | AT76: 33.36
AA77: 1998 | AB77: =(AK77/AK67)^(1/10)-1 -> 0.1904397225 | AC77: 0.1757924101 | AD77: 0.1081058375 | AE77: 0.1122936398 | AG77: 1998 | AH77: 0.2834 | AI77: 0.0473 | AJ77: 0.1492 | AK77: 1295.928108 | AL77: 14.39355771 | AM77: 31.73238385 | AN77: 0.15 | AO77: 506.3754482 | AQ77: 1998 | AR77: 26.67 | AS77: 1.91 | AT77: 28.58
AA78: 1999 | AB78: =(AK78/AK67)^(1/10)-1 -> 0.2132392382 | AC78: 0.1769569809 | AD78: 0.1081058375 | AE78: 0.1122936398 | AG78: 1999 | AH78: 0.2089 | AI78: 0.0451 | AJ78: -0.0825 | AK78: 1566.647489 | AL78: 15.04270716 | AM78: 29.11446218 | AN78: 0.15 | AO78: 582.3317654 | AQ78: 1999 | AR78: 19.53 | AS78: 1.51 | AT78: 21.04
AA79: 2000 | AB79: =(AK79/AK69)^(1/10)-1 -> 0.1730053586 | AC79: 0.1553660876 | AD79: 0.1081058375 | AE79: 0.1049606563 | AG79: 2000 | AH79: -0.0903 | AI79: 0.0576 | AJ79: 0.1666 | AK79: 1425.179221 | AL79: 15.90916709 | AM79: 33.96493158 | AN79: 0.0075 | AO79: 586.6992537 | AQ79: 2000 | AR79: -10.14 | AS79: 1.04 | AT79: -9.1
AA80: 2001 | AB80: =(AK80/AK69)^(1/10)-1 -> 0.1583031242 | AC80: 0.1508695161 | AD80: 0.09354324998 | AE80: 0.1049606563 | AG80: 2001 | AH80: -0.1185 | AI80: 0.0367 | AJ80: 0.0557 | AK80: 1256.295483 | AL80: 16.49303353 | AM80: 35.85677827 | AN80: 0.0075 | AO80: 591.0994981 | AQ80: 2001 | AR80: -13.04 | AS80: 1.15 | AT80: -11.89
AA81: 2002 | AB81: =(AK81/AK71)^(1/10)-1 -> 0.0925478786 | AC81: 0.1261707311 | AD81: =(AO81/AO71)^(1/10)-1 -> 0.08648482127 | AE81: 0.09767601668 | AG81: 2002 | AH81: -0.2197 | AI81: 0.0166 | AJ81: 0.1512 | AK81: 980.2873657 | AL81: 16.76681788 | AM81: 41.27832315 | AN81: 0.0075 | AO81: 595.5327443 | AQ81: 2002 | AR81: -23.37 | AS81: 1.27 | AT81: -22.1
AA82: 2003 | AB82: =(AK82/AK71)^(1/10)-1 -> 0.1201687402 | AC82: 0.128878749 | AD82: 0.09135495585 | AE82: 0.09767601668 | AG82: 2003 | AH82: 0.2836 | AI82: 0.0103 | AJ82: 0.0038 | AK82: =AK81*(1+AH82) -> 1258.296863 | AL82: =AL81*(1+AI82) -> 16.93951611 | AM82: =AM81*(1+AJ82) -> 41.43518077 | AN82: 0.15 | AO82: 684.862656 | AQ82: 2003 | AR82: 26.38 | AS82: 2.3 | AT82: 28.68
AA83: 2004 | AB83: =(AK83/AK73)^(1/10)-1 -> 0.1194705527 | AC83: 0.1312706599 | AD83: 0.1010896302 | AE83: 0.100001814 | AG83: 2004 | AH83: 0.1074 | AI83: 0.0123 | AJ83: 0.0449 | AK83: 1393.437946 | AL83: 17.14787216 | AM83: 43.29562039 | AN83: 0.1074 | AO83: 758.4169052 | AQ83: 2004 | AR83: 8.99 | AS83: 1.89 | AT83: 10.88
AA84: 2005 | AB84: =(AK84/AK73)^(1/10)-1 -> 0.124763547 | AC84: 0.1186326518 | AD84: 0.09094146045 | AE84: 0.0949210082 | AG84: 2005 | AH84: 0.0483 | AI84: 0.0301 | AJ84: 0.0287 | AK84: 1460.740998 | AL84: 17.66402311 | AM84: 44.5382047 | AN84: 0.0483 | AO84: 795.0484417 | AQ84: 2005 | AR84: 3 | AS84: 1.91 | AT84: 4.91
AA85: 2006 | AB85: =(AK85/AK75)^(1/10)-1 -> 0.08229656898 | AC85: 0.1172572381 | AD85: 0.09094146045 | AE85: 0.0949210082 | AG85: 2006 | AH85: 0.1561 | AI85: 0.0468 | AJ85: 0.0196 | AK85: 1688.762668 | AL85: 18.49069939 | AM85: 45.41115351 | AN85: 0.15 | AO85: 914.305708 | AQ85: 2006 | AR85: 13.62 | AS85: 2.17 | AT85: 15.79
AA86: 2007 | AB86: =(AK86/AK75)^(1/10)-1 -> 0.08808617879 | AC86: 0.1170827545 | AD86: 0.08155516389 | AE86: 0.09475001288 | AG86: 2007 | AH86: 0.0548 | AI86: 0.0464 | AJ86: 0.1021 | AK86: 1781.306863 | AL86: 19.34866784 | AM86: 50.04763228 | AN86: 0.0548 | AO86: 964.4096608 | AQ86: 2007 | AR86: 3.53 | AS86: 1.96 | AT86: 5.49
AA87: 2008 | AB87: =(AK87/AK77)^(1/10)-1 -> -0.01358663982 | AC87: 0.08363538459 | AD87: 0.06734150197 | AE87: 0.08753268868 | AG87: 2008 | AH87: -0.3655 | AI87: 0.0159 | AJ87: 0.201 | AK87: 1130.239204 | AL87: 19.65631166 | AM87: 60.10720637 | AN87: 0.0075 | AO87: 971.6427332 | AQ87: 2008 | AR87: -38.49 | AS87: 1.49 | AT87: -37
AA88: 2009 | AB88: =(AK88/AK77)^(1/10)-1 -> 0.009427924368 | AC88: 0.08130541419 | AD88: 0.06734150197 | AE88: 0.08753268868 | AG88: 2009 | AH88: 0.2594 | AI88: 0.0014 | AJ88: -0.1112 | AK88: 1423.423254 | AL88: 19.6838305 | AM88: 53.42328502 | AN88: 0.15 | AO88: 1117.389143 | AQ88: 2009 | AR88: 23.45 | AS88: 3.01 | AT88: 26.46
AA89: 2010 | AB89: =(AK89/AK79)^(1/10)-1 -> 0.01379048713 | AC89: 0.0904960678 | AD89: 0.08138575764 | AE89: 0.09466427303 | AG89: 2010 | AH89: 0.1482 | AI89: 0.0013 | AJ89: 0.0846 | AK89: =AK88*(1+AH89) -> 1634.37458 | AL89: 19.70941947 | AM89: 57.94289494 | AN89: 0.1482 | AO89: 1282.986214 | AQ89: 2010 | AR89: 12.78 | AS89: 2.28 | AT89: 15.06
AA90: 2011 | AB90: =(AK90/AK79)^(1/10)-1 -> 0.01589959205 | AC90: 0.07730788611 | AD90: 0.08282609715 | AE90: 0.0881714798 | AG90: 2011 | AH90: 0.021 | AI90: 0.0003 | AJ90: 0.1604 | AK90: 1668.696446 | AL90: 19.7153323 | AM90: 67.23693528 | AN90: 0.021 | AO90: 1309.928925 | AQ90: 2011 | AR90: 0 | AS90: 2.11 | AT90: 2.11
AA91: 2012 | AB91: =(AK91/AK81)^(1/10)-1 -> 0.07030360903 | AC91: =(AK91/AK71)^(1/20)-1 -> 0.08136854842 | AD91: 0.09724596562 | AE91: =(AO91/AO71)^(1/20)-1 -> 0.09185213598 | AG91: 2012 | AH91: 0.1589 | AI91: 0.0005 | AJ91: 0.0297 | AK91: 1933.852312 | AL91: 19.72518997 | AM91: 69.23387226 | AN91: 0.15 | AO91: 1506.418263 | AQ91: 2012 | AR91: 13.41 | AS91: 2.59 | AT91: 16
AA92: 2013 | AB92: =(AK92/AK81)^(1/10)-1 -> 0.1005599552 | AC92: 0.09134831211 | AD92: 0.09724596562 | AE92: 0.09429649655 | AG92: 2013 | AH92: 0.3215 | AI92: 0.0007 | AJ92: -0.091 | AK92: 2555.58583 | AL92: 19.7389976 | AM92: 62.93358988 | AN92: 0.15 | AO92: 1732.381003 | AQ92: 2013 | AR92: 29.6 | AS92: 2.79 | AT92: 32.39
AA93: 2014 | AB93: =(AK93/AK83)^(1/10)-1 -> 0.07608734018 | AC93: 0.09756461743 | AD93: 0.09996984403 | AE93: 0.1005295947 | AG93: 2014 | AH93: 0.1352 | AI93: 0.0005 | AJ93: 0.1075 | AK93: 2901.101034 | AL93: 19.7488671 | AM93: 69.6989508 | AN93: 0.1352 | AO93: 1966.598915 | AQ93: 2014 | AR93: 11.39 | AS93: 2.3 | AT93: 13.69
AA94: 2015 | AB94: =(AK94/AK83)^(1/10)-1 -> 0.07756319865 | AC94: 0.08108541145 | AD94: 0.09629503977 | AE94: 0.09361497419 | AG94: 2015 | AH94: 0.0138 | AI94: 0.0021 | AJ94: 0.0128 | AK94: 2941.136228 | AL94: 19.79033972 | AM94: 70.59109737 | AN94: 0.0138 | AO94: 1993.73798 | AQ94: 2015 | AR94: -0.73 | AS94: 2.11 | AT94: 1.38
AA95: 2016 | AB95: =(AK95/AK85)^(1/10)-1 -> 0.06884694134 | AC95: 0.07555073213 | AD95: 0.09314691076 | AE95: 0.09204362885 | AG95: 2016 | AH95: 0.1174 | AI95: 0.0051 | AJ95: 0.0069 | AK95: 3286.425621 | AL95: 19.89127045 | AM95: 71.07817594 | AN95: 0.1174 | AO95: 2227.802818 | AQ95: 2016 | AR95: 9.54 | AS95: 2.42 | AT95: 11.96
AA96: 2017 | AB96: =(AK96/AK86)^(1/10)-1 -> 0.08436110408 | AC96: 0.07130457328 | AD96: 0.1026338065 | AE96: 0.09204362885 | AG96: 2017 | AH96: 0.2183 | AI96: 0.0139 | AJ96: 0.028 | AK96: 4003.852335 | AL96: 20.16775911 | AM96: 73.06836487 | AN96: 0.15 | AO96: 2561.973241 | AQ96: 2017 | AR96: 19.42 | AS96: 2.41 | AT96: 21.83
AA97: 2018 | AB97: 0.1297585647 | AC97: 0.0556556929 | AD97: 0.1026338065 | AE97: 0.08484414694 | AG97: 2018 | AH97: -0.0438 | AI97: 0.0237 | AJ97: -0.0002 | AK97: 3828.483602 | AL97: 20.645735 | AM97: 73.05375119 | AN97: 0.0075 | AO97: 2581.18804 | AQ97: 2018 | AR97: -6.24 | AS97: 1.86 | AT97: -4.38
AA98: 2019 | AB98: 0.1346411917 | AC98: 0.06010140837 | AD98: 0.1026338065 | AE98: 0.08484414694 | AG98: 2019 | AH98: 0.3149 | AI98: 0.0964 | AJ98: 0.0155 | AK98: 5034.073089 | AL98: 22.63598386 | AM98: 74.18608434 | AN98: 0.15 | AO98: 2968.366247 | AQ98: 2019 | AR98: 28.88 | AS98: 2.61 | AT98: 31.49
AA99: 2020 | AG99: 2020 | AH99: 0.184 | AK99: 5960.342537 | AN99: 0.15 | AQ99: 2020 | AR99: 16.26 | AS99: 2.14 | AT99: 18.4
AG106: https://www.slickcharts.com/sp500/returns
AB107: 10Y | AC107: 20Y | AD107: 10Y-cap/f | AE107: 20Y-cap/f
AA108: Min | AB108: =MIN(AB16:AB100) -> -0.01779058225 | AC108: =MIN(AC16:AC100) -> 0.0236999464 | AD108: =MIN(AD16:AD100) -> 0.06224860403 | AE108: =MIN(AE16:AE100) -> 0.06710265366
AA109: Median | AB109: =MEDIAN(AB16:AB100) -> 0.1066419134 | AC109: =MEDIAN(AC16:AC100) -> 0.1129153019 | AD109: =MEDIAN(AD16:AD100) -> 0.09492431031 | AE109: 0.09429649655
AA110: Max | AB110: =MAX(AB16:AB100) -> 0.2148445225 | AC110: =MAX(AC16:AC100) -> 0.1769569809 | AD110: =MAX(AD16:AD100) -> 0.1164972688 | AE110: =MAX(AE16:AE100) -> 0.1122936398

Sheet FFIUL
V1: FFIUL | AH1: CD | AJ1: 529 | AL1: Roth 401
A2: AGE | B2: Year | C2: Premium | D2: 0.04 | E2: COI | F2: IMAC | G2: PUC | H2: Rider | I2: Fee | J2: Earn | K2: CV | L2: NAR | M2: DB | O2: COST.Total | P2: %CV | Q2: Cost | R2: Cum. Cost | T2: AGE | U2: Year | V2: Premium | W2: -0.04 | X2: COI | Y2: IAMC | Z2: PUC | AA2: Rider | AB2: Fee | AC2: Interest | AD2: AV | AE2: NAR | AF2: DB | AH2: 0.01 | AI2: 0 | AJ2: 0.077 | AK2: AV | AL2: =AJ2 -> 0.077 | AM2: AV
A3: 36 | B3: 1 | C3: 24000 | D3: 960 | E3: 118 | F3: 156 | G3: 2760 | H3: 0 | I3: 120 | J3: 1640 | K3: 21526 | L3: 1000000 | M3: 1021526 | O3: =SUM(D3:I3) -> 4114 | P3: =O3/K3 -> 0.1911177181 | Q3: =O3-F3 -> 3958 | R3: =Q3 -> 3958 | T3: 36 | U3: 1 | V3: 24000 | W3: 960 | X3: 118 | Y3: 156 | Z3: 2760 | AA3: 0 | AB3: 120 | AC3: 1640 | AD3: 21526 | AE3: 1000000 | AF3: 1021526 | AH3: =V3 -> 24000 | AI3: =(AI2+AH3)*(1+AH$2) -> 24240
A4: 37 | B4: 2 | C4: 24000 | D4: 960 | E4: 169 | F4: 311 | G4: 2760 | H4: 0 | I4: 120 | J4: 3290 | K4: 44495 | L4: 1000000 | M4: 1044495 | O4: =SUM(D4:I4) -> 4320 | P4: 0.09708956062 | Q4: =O4-F4 -> 4009 | R4: =Q4+R3 -> 7967 | T4: 37 | U4: 2 | V4: 24000 | W4: 960 | X4: 169 | Y4: 311 | Z4: 2760 | AA4: 0 | AB4: 120 | AC4: 3290 | AD4: 44495 | AE4: 1000000 | AF4: 1044495 | AH4: =V4 -> 24000 | AI4: =(AI3+AH4)*(1+AH$2) -> 48722.4
A5: 38 | B5: 3 | C5: 24000 | D5: 960 | E5: 316 | F5: 476 | G5: 2760 | H5: 0 | I5: 120 | J5: 5047 | K5: 68910 | L5: 1000000 | M5: 1068910 | O5: 4632 | P5: 0.06721811058 | Q5: 4156 | R5: =Q5+R4 -> 12123 | T5: 38 | U5: 3 | V5: 24000 | W5: 960 | X5: 316 | Y5: 476 | Z5: 2760 | AA5: 0 | AB5: 120 | AC5: 5047 | AD5: 68910 | AE5: 1000000 | AF5: 1068910 | AH5: 24000 | AI5: 73449.624
A6: 39 | B6: 4 | C6: 24000 | D6: 960 | E6: 364 | F6: 652 | G6: 2760 | H6: 0 | I6: 120 | J6: 6918 | K6: 94972 | L6: 1000000 | M6: 1094972 | O6: 4856 | P6: 0.05113085962 | Q6: 4204 | R6: 16327 | T6: 39 | U6: 4 | V6: 24000 | W6: 960 | X6: 364 | Y6: 652 | Z6: 2760 | AA6: 0 | AB6: 120 | AC6: 6918 | AD6: 94972 | AE6: 1000000 | AF6: 1094972 | AH6: 24000 | AI6: 98424.12024
A7: 40 | B7: 5 | C7: 24000 | D7: 960 | E7: 371 | F7: 839 | G7: 2760 | H7: 0 | I7: 120 | J7: 8917 | K7: 122839 | L7: 1000000 | M7: 1122839 | O7: 5050 | P7: 0.04111072216 | Q7: 4211 | R7: 20538 | T7: 40 | U7: 5 | V7: 24000 | W7: 960 | X7: 371 | Y7: 839 | Z7: 2760 | AA7: 0 | AB7: 120 | AC7: 8917 | AD7: 122839 | AE7: 1000000 | AF7: 1122839 | AH7: 24000 | AI7: 123648.3614
A8: 41 | B8: 6 | C8: 24000 | D8: 960 | E8: 399 | F8: 1040 | G8: 2760 | H8: 0 | I8: 120 | J8: 11055 | K8: 152614 | L8: 1000000 | M8: 1152614 | O8: 5279 | P8: 0.0345905356 | Q8: 4239 | R8: 24777 | T8: 41 | U8: 6 | V8: 24000 | W8: 960 | X8: 399 | Y8: 1040 | Z8: 2760 | AA8: 0 | AB8: 120 | AC8: 11055 | AD8: 152614 | AE8: 1000000 | AF8: 1152614 | AH8: 24000 | AI8: 149124.8451
A9: 42 | B9: 7 | C9: 24000 | D9: 960 | E9: 434 | F9: 1255 | G9: 2760 | H9: 0 | I9: 120 | J9: 13338 | K9: 184424 | L9: 1000000 | M9: 1184424 | O9: 5529 | P9: 0.02997982909 | Q9: 4274 | R9: 29051 | T9: 42 | U9: 7 | V9: 24000 | W9: 960 | X9: 434 | Y9: 1255 | Z9: 2760 | AA9: 0 | AB9: 120 | AC9: 13338 | AD9: 184424 | AE9: 1000000 | AF9: 1184424 | AH9: 24000 | AI9: 174856.0935
A10: 43 | B10: 8 | C10: 24000 | D10: 960 | E10: 485 | F10: 1484 | G10: 2760 | H10: 0 | I10: 120 | J10: 15777 | K10: 218392 | L10: 1000000 | M10: 1218392 | O10: 5809 | P10: 0.02659895967 | Q10: 4325 | R10: 33376 | T10: 43 | U10: 8 | V10: -80025 | W10: 0 | X10: 485 | Y10: 741 | Z10: 2760 | AA10: 0 | AB10: 120 | AC10: 7933 | AD10: 108225 | AE10: 1000000 | AF10: 1108225 | AH10: -80025 | AI10: 95779.40444 | AJ10: Yearly Inv. | AK10: 0 | AL10: Yearly Inv. | AM10: 0
A11: 44 | B11: 9 | C11: 24000 | D11: 960 | E11: 540 | F11: 1728 | G11: 2760 | H11: 0 | I11: 120 | J11: 18381 | K11: 254664 | L11: 1000000 | M11: 1254664 | O11: 6108 | P11: 0.02398454434 | Q11: 4380 | R11: 37756 | T11: 44 | U11: 9 | V11: 24000 | W11: 960 | X11: 540 | Y11: 934 | Z11: 2760 | AA11: 0 | AB11: 120 | AC11: 9928 | AD11: 136839 | AE11: 1000000 | AF11: 1136839 | AH11: 0 | AI11: 96737.19849 | AJ11: 12000 | AK11: =(AK10+AJ11)*(1+IF(AJ11>0,AJ$2,0)) -> 12924 | AL11: =V11-AJ11 -> 12000 | AM11: =(AM10+AL11)*(1+AL$2) -> 12924
A12: 45 | B12: 10 | C12: 24000 | D12: 960 | E12: 593 | F12: 1989 | G12: 2760 | H12: 0 | I12: 120 | J12: 21162 | K12: 293404 | L12: 1000000 | M12: 1293404 | O12: 6422 | P12: 0.02188790882 | Q12: 4433 | R12: 42189 | T12: 45 | U12: 10 | V12: 24000 | W12: 960 | X12: 593 | Y12: 1140 | Z12: 2760 | AA12: 0 | AB12: 120 | AC12: 12121 | AD12: 167387 | AE12: 1000000 | AF12: 1167387 | AH12: 0 | AI12: 97704.57047 | AJ12: 12000 | AK12: =(AK11+AJ12)*(1+IF(AJ12>0,AJ$2,0)) -> 26843.148 | AL12: =V12-AJ12 -> 12000 | AM12: =(AM11+AL12)*(1+AL$2) -> 26843.148
A13: 46 | B13: 11 | C13: 24000 | D13: 960 | E13: 641 | F13: 2277 | G13: 0 | H13: 0 | I13: 120 | J13: 24237 | K13: 337642 | L13: 1000000 | M13: 1337642 | O13: 3998 | P13: 0.01184094396 | Q13: 1721 | R13: 43910 | T13: 46 | U13: 11 | V13: 24000 | W13: 960 | X13: 641 | Y13: 1369 | Z13: 0 | AA13: 0 | AB13: 120 | AC13: 14568 | AD13: 202865 | AE13: 1000000 | AF13: 1202865 | AH13: 0 | AI13: 98681.61618 | AJ13: 12000 | AK13: 41834.0704 | AL13: 12000 | AM13: 41834.0704
A14: 47 | B14: 12 | C14: 24000 | D14: 960 | E14: 725 | F14: 2596 | G14: 0 | H14: 0 | I14: 120 | J14: 27628 | K14: 384868 | L14: 1000000 | M14: 1384868 | O14: 4401 | P14: 0.01143508943 | Q14: 1805 | R14: 45715 | T14: 47 | U14: 12 | V14: 24000 | W14: 960 | X14: 725 | Y14: 1625 | Z14: 0 | AA14: 0 | AB14: 120 | AC14: 17287 | AD14: 240721 | AE14: 1000000 | AF14: 1240721 | AH14: 0 | AI14: 99668.43234 | AJ14: 12000 | AK14: 57979.29382 | AL14: 12000 | AM14: 57979.29382
A15: 48 | B15: 13 | C15: 24000 | D15: 960 | E15: 808 | F15: 2936 | G15: 0 | H15: 0 | I15: 120 | J15: 31248 | K15: 435292 | L15: 1000000 | M15: 1435292 | O15: 4824 | P15: 0.01108221608 | Q15: 1888 | R15: 47603 | T15: 48 | U15: 13 | V15: 24000 | W15: 960 | X15: 808 | Y15: 1897 | Z15: 0 | AA15: 0 | AB15: 120 | AC15: 20188 | AD15: 281123 | AE15: 1000000 | AF15: 1281123 | AH15: 0 | AI15: 100665.1167 | AJ15: 12000 | AK15: 75367.69944 | AL15: 12000 | AM15: 75367.69944
A16: 49 | B16: 14 | C16: 24000 | D16: 960 | E16: 889 | F16: 3299 | G16: 0 | H16: 0 | I16: 120 | J16: 35114 | K16: 489138 | L16: 1000000 | M16: 1489138 | O16: 5268 | P16: 0.01076996676 | Q16: 1969 | R16: 49572 | T16: 49 | U16: 14 | V16: 24000 | W16: 960 | X16: 889 | Y16: 2188 | Z16: 0 | AA16: 0 | AB16: 120 | AC16: 23285 | AD16: 324251 | AE16: 1000000 | AF16: 1324251 | AH16: 0 | AI16: 101671.7678 | AJ16: 12000 | AK16: 94095.0123 | AL16: 12000 | AM16: 94095.0123
A17: 50 | B17: 15 | C17: 24000 | D17: 960 | E17: 972 | F17: 3687 | G17: 0 | H17: 0 | I17: 120 | J17: 39242 | K17: 546641 | L17: 1000000 | M17: 1546641 | O17: 5739 | P17: 0.01049866366 | Q17: 2052 | R17: 51624 | T17: 50 | U17: 15 | V17: 24000 | W17: 960 | X17: 972 | Y17: 2499 | Z17: 0 | AA17: 0 | AB17: 120 | AC17: 26591 | AD17: 370291 | AE17: 1000000 | AF17: 1370291 | AH17: 0 | AI17: 102688.4855 | AJ17: 12000 | AK17: 114264.3282 | AL17: 12000 | AM17: 114264.3282
A18: 51 | B18: 16 | C18: 24000 | D18: 960 | E18: 1052 | F18: 4101 | G18: 0 | H18: 0 | I18: 120 | J18: 43651 | K18: 608060 | L18: 1000000 | M18: 1608060 | O18: 6233 | P18: 0.01025063316 | Q18: 2132 | R18: 53756 | T18: 51 | U18: 16 | V18: 24000 | W18: 960 | X18: 1052 | Y18: 2830 | Z18: 0 | AA18: 0 | AB18: 120 | AC18: 30120 | AD18: 419450 | AE18: 1000000 | AF18: 1419450 | AH18: 0 | AI18: 103715.3704 | AJ18: 12000 | AK18: 135986.6815 | AL18: 12000 | AM18: 135986.6815
A19: 52 | B19: 17 | C19: 24000 | D19: 960 | E19: 1160 | F19: 4543 | G19: 0 | H19: 0 | I19: 120 | J19: 48360 | K19: 673637 | L19: 1000000 | M19: 1673637 | O19: 6783 | P19: 0.01006922126 | Q19: 2240 | R19: 55996 | T19: 52 | U19: 17 | V19: 24000 | W19: 960 | X19: 1160 | Y19: 3184 | Z19: 0 | AA19: 0 | AB19: 120 | AC19: 33888 | AD19: 471914 | AE19: 1000000 | AF19: 1471914 | AH19: 0 | AI19: 104752.5241 | AJ19: 12000 | AK19: 159381.656 | AL19: 12000 | AM19: 159381.656
A20: 53 | B20: 18 | C20: 24000 | D20: 960 | E20: 1264 | F20: 5015 | G20: 0 | H20: 0 | I20: 120 | J20: 53387 | K20: 743665 | L20: 1000000 | M20: 1743665 | O20: 7359 | P20: 0.009895584705 | Q20: 2344 | R20: 58340 | T20: 53 | U20: 18 | V20: 24000 | W20: 960 | X20: 1264 | Y20: 3562 | Z20: 0 | AA20: 0 | AB20: 120 | AC20: 37910 | AD20: 527918 | AE20: 1000000 | AF20: 1527918 | AH20: 0 | AI20: 105800.0493 | AJ20: 12000 | AK20: 184578.0435 | AL20: 12000 | AM20: 184578.0435
A21: 54 | B21: 19 | C21: 24000 | D21: 960 | E21: 1381 | F21: 5519 | G21: 0 | H21: 0 | I21: 120 | J21: 58756 | K21: 818441 | L21: 1000000 | M21: 1818441 | O21: 7980 | P21: 0.009750244672 | Q21: 2461 | R21: 60801 | T21: 54 | U21: 19 | V21: -30025 | W21: 0 | X21: 1381 | Y21: 3583 | Z21: 0 | AA21: 0 | AB21: 120 | AC21: 38164 | AD21: 530973 | AE21: 1000946 | AF21: 1497893 | AH21: 0 | AI21: 106858.0498 | AJ21: =V21 -> -30025 | AK21: 154553.0435 | AL21: 0 | AM21: 198790.5529
A22: 55 | B22: 20 | C22: 24000 | D22: 960 | E22: 1492 | F22: 6058 | G22: 0 | H22: 0 | I22: 120 | J22: 64489 | K22: 898300 | L22: 1000000 | M22: 1898300 | O22: 8630 | P22: 0.009607035512 | Q22: 2572 | R22: 63373 | T22: 55 | U22: 20 | V22: -30025 | W22: 0 | X22: 1443 | Y22: 3604 | Z22: 0 | AA22: 0 | AB22: 120 | AC22: 38396 | AD22: 534176 | AE22: 967946 | AF22: 1467893 | AH22: 0 | AI22: 107926.6303 | AJ22: =V22 -> -30025 | AK22: 124528.0435 | AL22: 0 | AM22: 214097.4254
A23: 56 | B23: 21 | C23: 24000 | D23: 960 | E23: 1621 | F23: 6632 | G23: 0 | H23: 0 | I23: 120 | J23: 70611 | K23: 983577 | L23: 1000000 | M23: 1983577 | O23: 9333 | P23: 0.009488835139 | Q23: 2701 | R23: 66074 | T23: 56 | U23: 21 | V23: -30025 | W23: 0 | X23: 1514 | Y23: 3627 | Z23: 0 | AA23: 0 | AB23: 120 | AC23: 38639 | AD23: 537528 | AE23: 934805 | AF23: 1437893 | AH23: 0 | AI23: 109005.8966 | AJ23: -30025 | AK23: 94503.04351 | AL23: 0 | AM23: 230582.9272
A24: 57 | B24: 22 | C24: 24000 | D24: 960 | E24: 1762 | F24: 7246 | G24: 0 | H24: 0 | I24: 120 | J24: 77149 | K24: 1074638 | L24: 1000000 | M24: 2074638 | O24: 10088 | P24: 0.009387347181 | Q24: 2842 | R24: 68916 | T24: 57 | U24: 22 | V24: -30025 | W24: 0 | X24: 1587 | Y24: 3651 | Z24: 0 | AA24: 0 | AB24: 120 | AC24: 38894 | AD24: 541039 | AE24: 901517 | AF24: 1407893 | AH24: 0 | AI24: 110095.9556 | AJ24: -30025 | AK24: 64478.04351 | AL24: 0 | AM24: 248337.8126
A25: 58 | B25: 23 | C25: 24000 | D25: 960 | E25: 1944 | F25: 7902 | G25: 0 | H25: 0 | I25: 120 | J25: 84129 | K25: 1171841 | L25: 1000000 | M25: 2171841 | O25: 10926 | P25: 0.009323790514 | Q25: 3024 | R25: 71940 | T25: 58 | U25: 23 | V25: -30025 | W25: 0 | X25: 1687 | Y25: 3676 | Z25: 0 | AA25: 0 | AB25: 120 | AC25: 39159 | AD25: 544691 | AE25: 868095 | AF25: 1377893 | AH25: 0 | AI25: 111196.9151 | AJ25: -30025 | AK25: 34453.04351 | AL25: 0 | AM25: 267459.8241
A26: 59 | B26: 24 | C26: 24000 | D26: 960 | E26: 2179 | F26: 8602 | G26: 0 | H26: 0 | I26: 120 | J26: 91578 | K26: 1275559 | L26: 1000000 | M26: 2275559 | O26: 11861 | P26: 0.00929866827 | Q26: 3259 | R26: 75199 | T26: 59 | U26: 24 | V26: -30025 | W26: 0 | X26: 1817 | Y26: 3702 | Z26: 0 | AA26: 0 | AB26: 120 | AC26: 39434 | AD26: 548461 | AE26: 834559 | AF26: 1347893 | AH26: 0 | AI26: 112308.8843 | AJ26: -30025 | AK26: 4428.043508 | AL26: 0 | AM26: 288054.2306
A27: 60 | B27: 25 | C27: 24000 | D27: 960 | E27: 2419 | F27: 9348 | G27: 0 | H27: 0 | I27: 120 | J27: 99527 | K27: 1386239 | L27: 1000000 | M27: 2386239 | O27: 12847 | P27: 0.00926752169 | Q27: 3499 | R27: 78698 | T27: 60 | U27: 25 | V27: 24000 | W27: 960 | X27: 1879 | Y27: 4111 | Z27: 0 | AA27: 0 | AB27: 120 | AC27: 43760 | AD27: 609151 | AE27: 777764 | AF27: 1347893 | AH27: 0 | AI27: 113431.9731 | AL27: 24000 | AM27: 336082.4064
A28: 61 | B28: 26 | C28: 24000 | D28: 960 | E28: 2746 | F28: 10144 | G28: 0 | H28: 0 | I28: 120 | J28: 108007 | K28: 1504276 | L28: 1000000 | M28: 2504276 | O28: 13970 | P28: 0.009286859592 | Q28: 3826 | R28: 82524 | T28: 61 | U28: 26 | V28: 24000 | W28: 960 | X28: 1966 | Y28: 4548 | Z28: 0 | AA28: 0 | AB28: 120 | AC28: 48413 | AD28: 673969 | AE28: 717104 | AF28: 1347893 | AH28: 0 | AI28: 114566.2928 | AL28: 24000 | AM28: 387808.7517
A29: 62 | B29: 27 | C29: 24000 | D29: 960 | E29: 2924 | F29: 10994 | G29: 0 | H29: 0 | I29: 120 | J29: 117057 | K29: 1630336 | L29: 1000000 | M29: 2630336 | O29: 14998 | P29: 0.00919933069 | Q29: 4004 | R29: 86528 | T29: 62 | U29: 27 | V29: 24000 | W29: 960 | X29: 1904 | Y29: 5015 | Z29: 0 | AA29: 0 | AB29: 120 | AC29: 53388 | AD29: 743358 | AE29: 652175 | AF29: 1347893 | AH29: 0 | AI29: 115711.9558 | AL29: 24000 | AM29: 443518.0255
A30: 63 | B30: 28 | C30: 24000 | D30: 960 | E30: 3116 | F30: 11902 | G30: 0 | H30: 0 | I30: 120 | J30: 126722 | K30: 1764960 | L30: 1000000 | M30: 2764960 | O30: 16098 | P30: 0.009120886592 | Q30: 4196 | R30: 90724 | T30: 63 | U30: 28 | V30: 24000 | W30: 960 | X30: 1813 | Y30: 5515 | Z30: 0 | AA30: 0 | AB30: 120 | AC30: 58716 | AD30: 817666 | AE30: 582644 | AF30: 1347893 | AH30: 0 | AI30: 116869.0753 | AL30: 24000 | AM30: 503516.9135 | AO30: Distribution Phase Prediction
A31: 64 | B31: 29 | C31: 24000 | D31: 960 | E31: 3323 | F31: 12871 | G31: 0 | H31: 0 | I31: 120 | J31: 137043 | K31: 1908729 | L31: 1000000 | M31: 2908729 | O31: 17274 | P31: 0.009050001336 | Q31: 4403 | R31: 95127 | T31: 64 | U31: 29 | V31: 24000 | W31: 960 | X31: 1686 | Y31: 6051 | Z31: 0 | AA31: 0 | AB31: 120 | AC31: 64422 | AD31: 897271 | AE31: 508159 | AF31: 1347893 | AH31: 0 | AI31: 118037.7661 | AL31: 24000 | AM31: 568135.7158
A32: 65 | B32: 30 | C32: 24000 | D32: 960 | E32: 3684 | F32: 13906 | G32: 0 | H32: 0 | I32: 120 | J32: 148061 | K32: 2062120 | L32: 1000000 | M32: 3062120 | O32: 18670 | P32: 0.009053789304 | Q32: 4764 | R32: 99891 | T32: 65 | U32: 30 | V32: 24000 | W32: 960 | X32: 1576 | Y32: 6625 | Z32: 0 | AA32: 0 | AB32: 120 | AC32: 70534 | AD32: 982524 | AE32: 428387 | AF32: 1347893 | AH32: 0 | AI32: 119218.1437 | AL32: 24000 | AM32: 637730.166 | AN32: 0.03 | AO32: =AI32+AM32 -> 756948.3097 | AP32: 0.01 | AQ32: =AO32 -> 756948.3097
A33: 66 | B33: 31 | C33: -145025 | D33: 0 | E33: 4096 | F33: 13800 | G33: 0 | H33: 0 | I33: 120 | J33: 147025 | K33: 2046104 | L33: 1002191 | M33: 2917095 | O33: 18016 | P33: 0.008805026528 | Q33: 4216 | R33: 104107 | T33: 66 | U33: 31 | V33: -70025 | W33: 0 | X33: 1496 | Y33: 6570 | Z33: 0 | AA33: 0 | AB33: 120 | AC33: 69996 | AD33: 974309 | AE33: 366078 | AF33: 1277893 | AL33: -70025 | AM33: 611418.4637 | AN33: =PMT(AN32,30,AO32,-AF62,1) -> -35236.46643 | AO33: =(AO32+AN33)*(1+AN$32) -> 743363.1986 | AP33: =PMT(AP32,30,AQ32,-AF$62,1) -> -25890.97652 | AQ33: =(AQ32+AP$33)*(1+AP$32) -> 738367.9065
A34: 67 | B34: 32 | C34: -145025 | D34: 0 | E34: 4011 | F34: 13684 | G34: 0 | H34: 0 | I34: 120 | J34: 145799 | K34: 2029063 | L34: 873142 | M34: 2772095 | O34: 17815 | P34: 0.00877991467 | Q34: 4131 | R34: 108238 | T34: 67 | U34: 32 | V34: -70025 | W34: 0 | X34: 1398 | Y34: 6511 | Z34: 0 | AA34: 0 | AB34: 120 | AC34: 69370 | AD34: 965626 | AE34: 304209 | AF34: 1207893 | AL34: -70025 | AM34: 583080.7604 | AN34: =AN33 -> -35236.46643 | AO34: =(AO33+AN34)*(1+AN$32) -> 729370.5341 | AP34: =AP33 -> -25890.97652 | AQ34: =(AQ33+AP$33)*(1+AP$32) -> 719601.6993
A35: 68 | B35: 33 | C35: -145025 | D35: 0 | E35: 3854 | F35: 13562 | G35: 0 | H35: 0 | I35: 120 | J35: 144497 | K35: 2011000 | L35: 745053 | M35: 2627095 | O35: 17536 | P35: =O35/K35 -> 0.008720039781 | Q35: =O35-F35 -> 3974 | R35: 112212 | T35: 68 | U35: 33 | V35: -70025 | W35: 0 | X35: 1256 | Y35: 6449 | Z35: 0 | AA35: 0 | AB35: 120 | AC35: 68709 | AD35: 956485 | AE35: 242770 | AF35: 1137893 | AL35: -70025 | AM35: 552561.054 | AN35: =AN34 -> -35236.46643 | AO35: 714958.0897 | AP35: =AP34 -> -25890.97652 | AQ35: 700647.83
A36: 69 | B36: 34 | C36: -145025 | D36: 0 | E36: 3602 | F36: 13433 | G36: 0 | H36: 0 | I36: 120 | J36: 143121 | K36: 1991941 | L36: 617901 | M36: 2482095 | O36: 17155 | P36: 0.008612202871 | Q36: 3722 | R36: 115934 | T36: 69 | U36: 34 | V36: -70025 | W36: 0 | X36: 1060 | Y36: 6383 | Z36: 0 | AA36: 0 | AB36: 120 | AC36: 68015 | AD36: 946912 | AE36: 181738 | AF36: 1098418 | AL36: -70025 | AM36: 519691.3302 | AN36: -35236.46643 | AO36: 700113.272 | AP36: -25890.97652 | AQ36: 681504.422
A37: 70 | B37: 35 | C37: -145025 | D37: 0 | E37: 3231 | F37: 13297 | G37: 0 | H37: 0 | I37: 120 | J37: 141764 | K37: 1977032 | L37: 491543 | M37: 2336995 | O37: 16648 | P37: 0.008420703357 | Q37: 3351 | R37: 119285 | T37: 70 | U37: 35 | V37: -70025 | W37: 0 | X37: 986 | Y37: 6315 | Z37: 0 | AA37: 0 | AB37: 120 | AC37: 68345 | AD37: 995812 | AE37: 149713 | AF37: 1086023 | AL37: -70025 | AM37: 484290.6376 | AN37: -35236.46643 | AO37: 684823.1097 | AP37: -25890.97652 | AQ37: 662169.5799
A38: 71 | B38: 36 | C38: -145000 | D38: 0 | E38: 2707 | F38: 13154 | G38: 0 | H38: 0 | I38: 120 | J38: 142917 | K38: 2103968 | L38: 363297 | M38: 2224382 | O38: 15981 | P38: 0.007595647843 | Q38: 2827 | R38: 122112 | T38: 71 | U38: 36 | V38: -70000 | W38: 0 | X38: 1114 | Y38: 6241 | Z38: 0 | AA38: 0 | AB38: 120 | AC38: 68958 | AD38: 1057296 | AE38: 149686 | AF38: 1063001 | AL38: -70000 | AM38: 446191.0167 | AN38: -35236.46643 | AO38: 669074.2426 | AP38: -25890.97652 | AQ38: 642641.3894
A39: 72 | B39: 37 | C39: -145000 | D39: 0 | E39: 2305 | F39: 13004 | G39: 0 | H39: 0 | I39: 120 | J39: 144276 | K39: 2232815 | L39: 274176 | M39: 2174361 | O39: 15429 | P39: 0.006910111227 | Q39: 2425 | R39: 124537 | T39: 72 | U39: 37 | V39: -70000 | W39: 0 | X39: 1159 | Y39: 6160 | Z39: 0 | AA39: 0 | AB39: 120 | AC39: 69557 | AD39: 1119413 | AE39: 137903 | AF39: 1036770 | AL39: -70000 | AM39: 405157.725 | AN39: -35236.46643 | AO39: 652852.9094 | AP39: -25890.97652 | AQ39: 622917.917
A40: 73 | B40: 38 | C40: -145000 | D40: 0 | E40: 2340 | F40: 12845 | G40: 0 | H40: 0 | I40: 120 | J40: 145597 | K40: 2363107 | L40: 246495 | M40: 2117742 | O40: 15305 | P40: 0.006476642827 | Q40: 2460 | R40: 126997 | T40: 73 | U40: 38 | V40: -70000 | W40: 0 | X40: 1174 | Y40: 6074 | Z40: 0 | AA40: 0 | AB40: 120 | AC40: 70122 | AD40: 1182167 | AE40: 123680 | AF40: 1007268 | AL40: -70000 | AM40: 360964.8698 | AN40: -35236.46643 | AO40: 636144.9363 | AP40: -25890.97652 | AQ40: 602997.2099
A41: 74 | B41: 39 | C41: -145000 | D41: 0 | E41: 2291 | F41: 12674 | G41: 0 | H41: 0 | I41: 120 | J41: 146861 | K41: 2494883 | L41: 213683 | M41: 2054418 | O41: 15085 | P41: 0.006046375722 | Q41: 2411 | R41: 129408 | T41: 74 | U41: 39 | V41: -70000 | W41: 0 | X41: 1147 | Y41: 5983 | Z41: 0 | AA41: 0 | AB41: 120 | AC41: 70654 | AD41: 1245572 | AE41: 106978 | AF41: 974443 | AL41: -70000 | AM41: 313369.1647 | AN41: -35236.46643 | AO41: 618935.7239 | AP41: -25890.97652 | AQ41: 582877.2957
A42: 75 | B42: 40 | C42: -145000 | D42: 0 | E42: 2127 | F42: 12492 | G42: 0 | H42: 0 | I42: 120 | J42: 148068 | K42: 2628212 | L42: 175651 | M42: 1984315 | O42: 14739 | P42: 0.005607995093 | Q42: 2247 | R42: 131655 | T42: 75 | U42: 40 | V42: -70000 | W42: 0 | X42: 1062 | Y42: 5885 | Z42: 0 | AA42: 0 | AB42: 120 | AC42: 71153 | AD42: 1309659 | AE42: 87756 | AF42: 938256 | AL42: -70000 | AM42: 262108.5904 | AN42: -35236.46643 | AO42: 601210.2352 | AP42: -25890.97652 | AQ42: 562556.1824
A43: 76 | B43: 41 | C43: -145000 | D43: 0 | E43: 1807 | F43: 12300 | G43: 0 | H43: 0 | I43: 120 | J43: 149222 | K43: 2763208 | L43: 132305 | M43: 1962653 | O43: 14227 | P43: 0.005148725684 | Q43: 1927 | R43: 133582 | T43: 76 | U43: 41 | V43: -70000 | W43: 0 | X43: 900 | Y43: 5781 | Z43: 0 | AA43: 0 | AB43: 120 | AC43: 71620 | AD43: 1374476 | AE43: 65972 | AF43: 926176 | AL43: -70000 | AM43: 206900.9519 | AN43: -35236.46643 | AO43: 582952.9818 | AP43: -25890.97652 | AQ43: 542031.8579
A44: 77 | B44: 42 | C44: -145000 | D44: 0 | E44: 2176 | F44: 12094 | G44: 0 | H44: 0 | I44: 120 | J44: 150297 | K44: 2899115 | L44: 139201 | M44: 1938681 | O44: 14390 | P44: 0.004963583714 | Q44: 2296 | R44: 135878 | T44: 77 | U44: 42 | V44: -70000 | W44: 0 | X44: 1083 | Y44: 5670 | Z44: 0 | AA44: 0 | AB44: 120 | AC44: 72040 | AD44: 1439644 | AE44: 69285 | AF44: 912862 | AL44: -70000 | AM44: 147442.3252 | AN44: -35236.46643 | AO44: 564148.0109 | AP44: -25890.97652 | AQ44: 521302.2902
A45: 78 | B45: 43 | C45: -145000 | D45: 0 | E45: 2611 | F45: 11871 | G45: 0 | H45: 0 | I45: 120 | J45: 151253 | K45: 3035766 | L45: 146141 | M45: 1912157 | O45: 14602 | P45: 0.004809988649 | Q45: 2731 | R45: 138609 | T45: 78 | U45: 43 | V45: -70000 | W45: 0 | X45: 1298 | Y45: 5550 | Z45: 0 | AA45: 0 | AB45: 120 | AC45: 72395 | AD45: 1505072 | AE45: 72614 | AF45: 898186 | AL45: -70000 | AM45: 83405.38423 | AN45: -35236.46643 | AO45: 544778.8908 | AP45: -25890.97652 | AQ45: 500365.4268
A46: 79 | B46: 44 | C46: -145000 | D46: 0 | E46: 3123 | F46: 11629 | G46: 0 | H46: 0 | I46: 120 | J46: 152075 | K46: 3172969 | L46: 153119 | M46: 1882812 | O46: 14872 | P46: 0.004687092751 | Q46: 3243 | R46: 141852 | T46: 79 | U46: 44 | V46: -70000 | W46: 0 | X46: 1549 | Y46: 5420 | Z46: 0 | AA46: 0 | AB46: 120 | AC46: 72676 | AD46: 1570659 | AE46: 75957 | AF46: 882010 | AL46: -70000 | AM46: 14437.59882 | AN46: -35236.46643 | AO46: 524828.6971 | AP46: -25890.97652 | AQ46: 479219.1948
A47: 80 | B47: 45 | C47: -145000 | D47: 0 | E47: 3721 | F47: 11366 | G47: 0 | H47: 0 | I47: 120 | J47: 152742 | K47: 3310504 | L47: 160124 | M47: 1850348 | O47: 15207 | P47: 0.004593560376 | Q47: 3841 | R47: 145693 | T47: 80 | U47: 45 | V47: -70000 | W47: 0 | X47: 1842 | Y47: 5279 | Z47: 0 | AA47: 0 | AB47: 120 | AC47: 72873 | AD47: 1636291 | AE47: 79307 | AF47: 864180 | AL47: -70000 | AM47: -59840.70608 | AN47: -35236.46643 | AO47: 504279.9975 | AP47: -25890.97652 | AQ47: 457861.5005
A48: 81 | B48: 46 | C48: -145000 | D48: 0 | E48: 4429 | F48: 11080 | G48: 0 | H48: 0 | I48: 120 | J48: 153235 | K48: 3448110 | L48: 167143 | M48: 1814421 | O48: 15629 | P48: 0.004532628019 | Q48: 4549 | R48: 150242 | T48: 81 | U48: 46 | V48: -70000 | W48: 0 | X48: 2189 | Y48: 5125 | Z48: 0 | AA48: 0 | AB48: 120 | AC48: 72975 | AD48: 1701831 | AE48: 82658 | AF48: 844519 | AL48: -70000 | AM48: -139838.4404 | AN48: -35236.46643 | AO48: 483114.837 | AP48: -25890.97652 | AQ48: 436290.2292
A49: 82 | B49: 47 | C49: -145000 | D49: 0 | E49: 5263 | F49: 10769 | G49: 0 | H49: 0 | I49: 120 | J49: 153527 | K49: 3585485 | L49: 174164 | M49: 1774644 | O49: 16152 | P49: 0.004504829891 | Q49: 5383 | R49: 155625 | T49: 82 | U49: 47 | V49: -70000 | W49: 0 | X49: 2598 | Y49: 4959 | Z49: 0 | AA49: 0 | AB49: 120 | AC49: 72969 | AD49: 1767124 | AE49: 86004 | AF49: 822828 | AL49: -70000 | AM49: -225996.0004 | AN49: -35236.46643 | AO49: 461314.7217 | AP49: -25890.97652 | AQ49: 414503.2452
A50: 83 | B50: 48 | C50: -145000 | D50: 0 | E50: 6233 | F50: 10430 | G50: 0 | H50: 0 | I50: 120 | J50: 153592 | K50: 3722295 | L50: 181170 | M50: 1730591 | O50: 16783 | P50: 0.004508777515 | Q50: 6353 | R50: 161978 | T50: 83 | U50: 48 | V50: -70000 | W50: 0 | X50: 3072 | Y50: 4777 | Z50: 0 | AA50: 0 | AB50: 120 | AC50: 72841 | AD50: 1831995 | AE50: 89336 | AF50: 798890 | AL50: -70000 | AM50: -318787.6924 | AN50: -35236.46643 | AO50: 438860.603 | AP50: -25890.97652 | AQ50: 392498.3914
A51: 84 | B51: 49 | C51: -145000 | D51: 0 | E51: 7395 | F51: 10059 | G51: 0 | H51: 0 | I51: 120 | J51: 153397 | K51: 3858117 | L51: 188143 | M51: 1681748 | O51: 17574 | P51: 0.004555071814 | Q51: 7515 | R51: 169493 | T51: 84 | U51: 49 | V51: -70000 | W51: 0 | X51: 3641 | Y51: 4580 | Z51: 0 | AA51: 0 | AB51: 120 | AC51: 72575 | AD51: 1896230 | AE51: 92645 | AF51: 772442 | AL51: -70000 | AM51: -418724.3447 | AN51: -35236.46643 | AO51: 415732.8606 | AP51: -25890.97652 | AQ51: 370273.489
A52: 85 | B52: 50 | C52: -145000 | D52: 0 | E52: 8805 | F52: 9654 | G52: 0 | H52: 0 | I52: 120 | J52: 152904 | K52: 3992442 | L52: 195059 | M52: 1627504 | O52: 18579 | P52: 0.004653542869 | Q52: 8925 | R52: 178418 | T52: 85 | U52: 50 | V52: -70000 | W52: 0 | X52: 4329 | Y52: 4364 | Z52: 0 | AA52: 0 | AB52: 120 | AC52: 72152 | AD52: 1959569 | AE52: 95917 | AF52: 743175 | AL52: -70000 | AM52: -526356.1192 | AN52: -35236.46643 | AO52: 391911.286 | AP52: -25890.97652 | AQ52: 347826.3376
A53: 86 | B53: 51 | C53: -145000 | D53: 0 | E53: 10499 | F53: 9209 | G53: 0 | H53: 0 | I53: 120 | J53: 152068 | K53: 4124682 | L53: 201890 | M53: 1567164 | O53: 19828 | Q53: 10619 | R53: 189037 | T53: 86 | U53: 51 | V53: -70000 | W53: 0 | X53: 5155 | Y53: 4127 | Z53: 0 | AA53: 0 | AB53: 120 | AC53: 71547 | AD53: 2021714 | AE53: 99141 | AF53: 710741 | AL53: -70000 | AM53: -642275.5404 | AN53: -35236.46643 | AO53: 367375.0642 | AP53: -25890.97652 | AQ53: 325154.7147
A54: 87 | B54: 52 | C54: -145000 | D54: 0 | E54: 12521 | F54: 8720 | G54: 0 | H54: 0 | I54: 120 | J54: 150839 | K54: 4254160 | L54: 208606 | M54: 1499941 | O54: 21361 | Q54: 12641 | R54: 201678 | T54: 87 | U54: 52 | V54: -70000 | W54: 0 | X54: 6138 | Y54: 3868 | Z54: 0 | AA54: 0 | AB54: 120 | AC54: 70737 | AD54: 2082325 | AE54: 102299 | AF54: 674741 | AL54: -70000 | AM54: -767120.757 | AN54: -35236.46643 | AO54: 342102.7557 | AP54: -25890.97652 | AQ54: 302256.3755
A55: 88 | B55: 53 | C55: -145000 | D55: 0 | E55: 14899 | F55: 8181 | G55: 0 | H55: 0 | I55: 120 | J55: 149158 | K55: 4380118 | L55: 215171 | M55: 1424959 | O55: 23200 | Q55: 15019 | R55: 216697 | T55: 88 | U55: 53 | V55: -70000 | W55: 0 | X55: 7295 | Y55: 3583 | Z55: 0 | AA55: 0 | AB55: 120 | AC55: 69691 | AD55: 2141018 | AE55: 105375 | AF55: 634735 | AL55: -70000 | AM55: -901579.0553 | AN55: -35236.46643 | AO55: 316072.2779 | AP55: -25890.97652 | AQ55: 279129.053
A56: 89 | B56: 54 | C56: -145000 | D56: 0 | E56: 17802 | F56: 7586 | G56: 0 | H56: 0 | I56: 120 | J56: 146957 | K56: 4501567 | L56: 221539 | M56: 1341097 | O56: 25508 | Q56: 17922 | R56: 234619 | T56: 89 | U56: 54 | V56: -70000 | W56: 0 | X56: 8704 | Y56: 3269 | Z56: 0 | AA56: 0 | AB56: 120 | AC56: 68376 | AD56: 2197301 | AE56: 108345 | AF56: 590165 | AL56: -70000 | AM56: -1046390.643 | AN56: -35236.46643 | AO56: 289260.8858 | AP56: -25890.97652 | AQ56: 255770.4572
A57: 90 | B57: 55 | C57: -145000 | D57: 0 | E57: 21191 | F57: 6927 | G57: 0 | H57: 0 | I57: 120 | J57: 144156 | K57: 4617485 | L57: 227664 | M57: 1247201 | O57: 28238 | Q57: 21311 | R57: 255930 | T57: 90 | U57: 55 | V57: -70000 | W57: 0 | X57: 10347 | Y57: 2922 | Z57: 0 | AA57: 0 | AB57: 120 | AC57: 66752 | AD57: 2250665 | AE57: 111185 | AF57: 540457 | AL57: -70000 | AM57: -1202352.722 | AN57: -35236.46643 | AO57: 261645.152 | AP57: -25890.97652 | AQ57: 232178.2755
A58: 91 | B58: 56 | C58: -145000 | D58: 0 | E58: 25126 | F58: 6195 | G58: 0 | H58: 0 | I58: 120 | J58: 140671 | K58: 4726714 | L58: 233491 | M58: 1094700 | O58: 31441 | Q58: 25246 | R58: 281176 | T58: 91 | U58: 56 | V58: -70000 | W58: 0 | X58: 12251 | Y58: 2538 | Z58: 0 | AA58: 0 | AB58: 120 | AC58: 64776 | AD58: 2300531 | AE58: 113870 | AF58: 461957 | AL58: -70000 | AM58: -1370323.882 | AN58: -35236.46643 | AO58: 233200.9461 | AP58: -25890.97652 | AQ58: 208350.172
A59: 92 | B59: 57 | C59: -145000 | D59: 0 | E59: 23809 | F59: 5402 | G59: 0 | H59: 0 | I59: 120 | J59: 136626 | K59: 4834008 | L59: 191383 | M59: 933625 | O59: 29331 | Q59: 23929 | R59: 305105 | T59: 92 | U59: 57 | V59: -70000 | W59: 0 | X59: 11591 | Y59: 2123 | Z59: 0 | AA59: 0 | AB59: 120 | AC59: 62509 | AD59: 2349206 | AE59: 93199 | AF59: 379074 | AL59: -70000 | AM59: -1551228.821 | AN59: -35236.46643 | AO59: 203903.414 | AP59: -25890.97652 | AQ59: 184283.7874
A60: 93 | B60: 58 | C60: -145000 | D60: 0 | E60: 21010 | F60: 4568 | G60: 0 | H60: 0 | I60: 120 | J60: 132238 | K60: 4940548 | L60: 146965 | M60: 765147 | O60: 25698 | Q60: 21130 | R60: 326235 | T60: 93 | U60: 58 | V60: -70000 | W60: 0 | X60: 10213 | Y60: 1685 | Z60: 0 | AA60: 0 | AB60: 120 | AC60: 60055 | AD60: 2397241 | AE60: 71462 | AF60: 292366 | AL60: -70000 | AM60: -1746063.44 | AN60: -35236.46643 | AO60: 173726.956 | AP60: -25890.97652 | AQ60: 159976.739
A61: 94 | B61: 59 | C61: -145000 | D61: 0 | E61: 16450 | F61: 3702 | G61: 0 | H61: 0 | I61: 120 | J61: 127606 | K61: 5047882 | L61: 100280 | M61: 590764 | O61: 20272 | Q61: 16570 | R61: 342805 | T61: 94 | U61: 59 | V61: -70000 | W61: 0 | X61: 7984 | Y61: 1230 | Z61: 0 | AA61: 0 | AB61: 120 | AC61: 57459 | AD61: 2445366 | AE61: 48687 | AF61: 202544 | AL61: -70000 | AM61: -1955900.325 | AN61: -35236.46643 | AO61: 142645.2043 | AP61: -25890.97652 | AQ61: 135426.6201
A62: 95 | B62: 60 | C62: -145000 | D62: 0 | E62: 9524 | F62: 2817 | G62: 0 | H62: 0 | I62: 120 | J62: 122863 | K62: 5158284 | L62: 51323 | M62: 412636 | O62: 12461 | Q62: 9644 | R62: 352449 | T62: 95 | U62: 60 | V62: -70000 | W62: 0 | X62: 4616 | Y62: 763 | Z62: 0 | AA62: 0 | AB62: 120 | AC62: 54786 | AD62: 2494653 | AE62: 24878 | AF62: 110631 | AL62: -70000 | AM62: -2181894.65 | AN62: -35236.46643 | AO62: 110631 | AP62: -25890.97652 | AQ62: 110631
A63: 96 | B63: 61 | C63: 0 | D63: 0 | E63: 0 | F63: 2973 | G63: 0 | H63: 0 | I63: 120 | J63: 126568 | K63: 5281760 | L63: 0 | M63: 441199 | O63: 3093 | Q63: 120 | R63: 352569 | T63: 96 | U63: 61 | V63: 0 | W63: 0 | X63: 0 | Y63: 797 | Z63: 0 | AA63: 0 | AB63: 120 | AC63: 56164 | AD63: 2549901 | AE63: 0 | AF63: 118199 | AI63: CD | AL63: =SUM(AL33:AL62) -> -2100125 | AN63: =SUM(AN33:AN62) -> -1057093.993 | AP63: =SUM(AP33:AP62) -> -776729.2957
A64: 97 | B64: 62 | C64: 0 | D64: 0 | E64: 0 | F64: 3178 | G64: 0 | H64: 0 | I64: 120 | J64: 130658 | K64: 5409120 | L64: 0 | M64: 471747 | O64: 3298 | Q64: 120 | R64: 352689 | T64: 97 | U64: 62 | V64: 0 | W64: 0 | X64: 0 | Y64: 851 | Z64: 0 | AA64: 0 | AB64: 120 | AC64: 57699 | AD64: 2606628 | AE64: 0 | AF64: 126292 | AO64: Retirement difference
A65: 98 | B65: 63 | C65: 0 | D65: 0 | E65: 0 | F65: 3399 | G65: 0 | H65: 0 | I65: 120 | J65: 134939 | K65: 5540540 | L65: 0 | M65: 504420 | O65: 3519 | Q65: 120 | R65: 352809 | T65: 98 | U65: 63 | V65: 0 | W65: 0 | X65: 0 | Y65: 910 | Z65: 0 | AA65: 0 | AB65: 120 | AC65: 59292 | AD65: 2664891 | AE65: 0 | AF65: 134948 | AN65: =AN63-AL63 -> 1043031.007 | AP65: =AP63-AL63 -> 1323395.704
A66: 99 | B66: 64 | C66: 0 | D66: 0 | E66: 0 | F66: 3634 | G66: 0 | H66: 0 | I66: 120 | J66: 139420 | K66: 5676206 | L66: 0 | M66: 539364 | O66: 3754 | Q66: 120 | R66: 352929 | T66: 99 | U66: 64 | V66: 0 | W66: 0 | X66: 0 | Y66: 972 | Z66: 0 | AA66: 0 | AB66: 120 | AC66: 60948 | AD66: 2724747 | AE66: 0 | AF66: 144205
A67: 100 | B67: 65 | C67: 0 | D67: 0 | E67: 0 | F67: 3886 | G67: 0 | H67: 0 | I67: 120 | J67: 144116 | K67: 5816316 | L67: 0 | M67: 634901 | O67: 4006 | Q67: 120 | R67: 353049 | T67: 100 | U67: 65 | V67: 0 | W67: 0 | X67: 0 | Y67: 1039 | Z67: 0 | AA67: 0 | AB67: 120 | AC67: 62671 | AD67: 2786259 | AE67: 0 | AF67: 181969
O76: =SUM(O3:O67) -> 826131

Sheet FLR-CAP
B2: year | C2: SP500 | D2: Price% | E2: AV | F2: 10Y ave% | G2: 20Y ave% | O2: 0 | P2: AV | Q2: 10Y ave% | R2: 20Y ave% | AI2: Initial AV | AJ2: SP 500 | AM2: Fixed Return | AO2: -0.02 | AP2: GIUL
E3: 1 | O3: 0.12 | P3: 1 | Z3: 20 years | AA3: S&P500 Average return | AD3: Cap/Floor Average return | AI3: 1000000 | AM3: =AK25 -> 0.04457563382 | AO3: 0.0075
A4: 1 | B4: =Investment!AQ7 -> 1928 | C4: =Investment!AT7/100 -> 0.4361 | D4: =Investment!AR7/100 -> 0.3788 | E4: =E3*(1+C4) -> 1.4361 | O4: =IF(D4>O$3,O$3,IF(D4<O$2,O$2,D4)) -> 0.12 | P4: =P3*(1+O4) -> 1.12 | AA4: FROM | AB4: TO | AC4: % | AD4: FROM | AE4: TO | AF4: % | AI4: Year | AJ4: % | AK4: Acc. Value | AL4: -50000 | AM4: Acc. Value | AN4: =AL4 -> -50000 | AO4: 0.15 | AP4: Acc. Value | AQ4: =AL4 -> -50000
A5: 2 | B5: =Investment!AQ8 -> 1929 | C5: =Investment!AT8/100 -> -0.0842 | D5: =Investment!AR8/100 -> -0.1191 | E5: =E4*(1+C5) -> 1.31518038 | O5: =IF(D5>O$3,O$3,IF(D5<O$2,O$2,D5)) -> 0 | P5: =P4*(1+O5) -> 1.12 | Z5: Min | AA5: =AB5-20+1 -> 1929 | AB5: =INDEX(B$4:B$100,MATCH(AC5,G$4:G$100,0)) -> 1948 | AC5: =MIN(G$4:G$100) -> 0.03107659564 | AD5: =AE5-20+1 -> 1929 | AE5: =INDEX(B$4:B$100,MATCH(AF5,R$4:R$100,0)) -> 1948 | AF5: =MIN(R$4:R$100) -> 0.04637464855 | AH5: 1 | AI5: 1930 | AJ5: =LOOKUP(AI5,B$4:B$95,C$4:C$95) -> -0.249 | AK5: =AI3*(1+AJ5) -> 751000 | AL5: =(AI3+AL4)*(1+AJ5) -> 713450 | AM5: =AI3*(1+AM$3) -> 1044575.634 | AN5: =(AI$3+AN4)*(1+AM3) -> 992346.8521 | AO5: =IF(AJ5>AO$4,AO$4,IF(AJ5<AO$3,AO$3,AJ5))+AO$2 -> -0.0125 | AP5: =AI3*(1+AO5) -> 987500 | AQ5: =(AI3+AQ$4)*(1+AO5) -> 938125
A6: 3 | B6: =Investment!AQ9 -> 1930 | C6: =Investment!AT9/100 -> -0.249 | D6: =Investment!AR9/100 -> -0.2848 | E6: 0.9877004654 | O6: 0 | P6: 1.12 | Z6: 0.25 | AA6: =AB6-20+1 -> 1996 | AB6: =INDEX(B$4:B$100,MATCH(MIN(K$4:K$100),K$4:K$100,0)) -> 2015 | AC6: =QUARTILE(G$4:G$100,1) -> 0.08190498567 | AD6: =AE6-20+1 -> 1937 | AE6: =INDEX(B$4:B$100,MATCH(MIN(V$4:V$100),V$4:V$100,0)) -> 1956 | AF6: =QUARTILE(R$4:R$100,1) -> 0.0648493446 | AH6: 2 | AI6: =AI5+1 -> 1931 | AJ6: -0.4334 | AK6: =AK5*(1+AJ6) -> 425516.6 | AL6: =(AL5+AL$4)*(1+AJ6) -> 375910.77 | AM6: =AM5*(1+AM$3) -> 1091138.255 | AN6: =(AN5+AN$4)*(1+AM$3) -> 984352.5603 | AO6: =IF(AJ6>AO$4,AO$4,IF(AJ6<AO$3,AO$3,AJ6))+AO$2 -> -0.0125 | AP6: =AP5*(1+AO6) -> 975156.25 | AQ6: =(AQ5+AQ$4)*(1+AO6) -> 877023.4375
A7: 4 | B7: =Investment!AQ10 -> 1931 | C7: =Investment!AT10/100 -> -0.4334 | D7: =Investment!AR10/100 -> -0.4707 | E7: 0.5596310837 | O7: 0 | P7: 1.12 | Z7: 0.5 | AA7: 1968 | AB7: =INDEX(B$4:B$100,MATCH(MIN(L$4:L$100),L$4:L$100,0)) -> 1987 | AC7: =MEDIAN(G$4:G$100) -> 0.1144087236 | AD7: 1940 | AE7: =INDEX(B$4:B$100,MATCH(MIN(W$4:W$100),W$4:W$100,0)) -> 1959 | AF7: =MEDIAN(R$4:R$100) -> 0.06919187979 | AH7: 3 | AI7: =AI6+1 -> 1932 | AJ7: -0.0819 | AK7: 390666.7905 | AL7: 299218.6779 | AM7: 1139776.434 | AN7: 976001.9179 | AO7: -0.0125 | AP7: 962966.7969 | AQ7: 816685.6445
A8: 5 | B8: =Investment!AQ11 -> 1932 | C8: =Investment!AT11/100 -> -0.0819 | D8: =Investment!AR11/100 -> -0.1478 | E8: 0.5137972979 | O8: 0 | P8: 1.12 | Z8: 0.75 | AA8: 1939 | AB8: =INDEX(B$4:B$100,MATCH(MIN(M$4:M$100),M$4:M$100,0)) -> 1958 | AC8: =QUARTILE(G$4:G$100,3) -> 0.1346968281 | AD8: 1988 | AE8: =INDEX(B$4:B$100,MATCH(MIN(X$4:X$100),X$4:X$100,0)) -> 2007 | AF8: =QUARTILE(R$4:R$100,3) -> 0.07225420874 | AH8: 4 | AI8: 1933 | AJ8: 0.5399 | AK8: 601587.7906 | AL8: 383771.8422 | AM8: 1190582.691 | AN8: 967279.0403 | AO8: 0.13 | AP8: 1088152.48 | AQ8: 866354.7783
A9: 6 | B9: =Investment!AQ12 -> 1933 | C9: =Investment!AT12/100 -> 0.5399 | D9: =Investment!AR12/100 -> 0.4408 | E9: 0.7911964591 | O9: 0.12 | P9: 1.2544 | Z9: Max | AA9: 1980 | AB9: =INDEX(B$4:B$100,MATCH(AC9,G$4:G$100,0)) -> 1999 | AC9: =MAX(G$4:G$100) -> 0.1787884273 | AD9: 1979 | AE9: =INDEX(B$4:B$100,MATCH(AF9,R$4:R$100,0)) -> 1998 | AF9: =MAX(R$4:R$100) -> 0.08432349931 | AH9: 5 | AI9: 1934 | AJ9: -0.0144 | AK9: 592924.9264 | AL9: 328965.5276 | AM9: 1243653.669 | AN9: 958167.335 | AO9: -0.0125 | AP9: 1074550.574 | AQ9: 806150.3436
A10: 7 | B10: =Investment!AQ13 -> 1934 | C10: =Investment!AT13/100 -> -0.0144 | D10: =Investment!AR13/100 -> -0.0471 | E10: 0.7798032301 | O10: 0 | P10: 1.2544 | AH10: 6 | AI10: 1935 | AJ10: 0.4767 | AK10: 875572.2389 | AL10: 411948.3946 | AM10: 1299090.32 | AN10: 948649.4695 | AO10: 0.13 | AP10: 1214242.149 | AQ10: 854449.8883
A11: 8 | B11: =Investment!AQ14 -> 1935 | C11: =Investment!AT14/100 -> 0.4767 | D11: =Investment!AR14/100 -> 0.4137 | E11: 1.15153543 | O11: 0.12 | P11: 1.404928 | Z11: 10 years | AA11: S&P500 Average return | AD11: Cap/Floor Average return | AH11: 7 | AI11: 1936 | AJ11: 0.3392 | AK11: 1172566.342 | AL11: 484721.2901 | AM11: 1356998.094 | AN11: 938707.3392 | AO11: 0.13 | AP11: 1372093.629 | AQ11: 909028.3737
A12: 9 | B12: =Investment!AQ15 -> 1936 | C12: =Investment!AT15/100 -> 0.3392 | D12: =Investment!AR15/100 -> 0.2792 | E12: 1.542136248 | O12: 0.12 | P12: 1.57351936 | AA12: FROM | AB12: TO | AC12: % | AD12: FROM | AE12: TO | AF12: % | AH12: 8 | AI12: 1937 | AJ12: -0.3503 | AK12: 761816.3526 | AL12: 282438.4222 | AM12: 1417487.144 | AN12: 928322.0321 | AO12: -0.0125 | AP12: 1354942.458 | AQ12: 848290.5191
A13: 10 | B13: =Investment!AQ16 -> 1937 | C13: =Investment!AT16/100 -> -0.3503 | D13: =Investment!AR16/100 -> -0.3859 | E13: 1.00192592 | F13: =(E13/E3)^(1/10)-1 -> 0.0001924253007 | H13: =ABS(F13-AC$14) -> 0.07009948087 | I13: =ABS(G13-AC$15) -> 0.09969592526 | J13: =ABS(F13-AC$16) -> 0.1499526777 | O13: 0 | P13: 1.57351936 | Q13: =(P13/P3)^(1/10)-1 -> 0.04637464855 | S13: =ABS(Q13-AF$14) -> 0.01514780241 | T13: =ABS(Q13-AF$15) -> 0.02397064891 | U13: =ABS(Q13-AF$16) -> 0.02796518973 | Z13: Min | AA13: =AB13-10+1 -> 1999 | AB13: =INDEX(B$4:B$100,MATCH(AC13,F$4:F$100,0)) -> 2008 | AC13: =MIN(F$4:F$100) -> -0.01384325174 | AD13: =AE13-10+1 -> 1928 | AE13: =INDEX(B$4:B$100,MATCH(AF13,Q$4:Q$100,0)) -> 1937 | AF13: =MIN(Q$4:Q$100) -> 0.04637464855 | AH13: 9 | AI13: 1938 | AJ13: 0.3112 | AK13: 998893.6015 | AL13: 304773.2592 | AM13: 1480672.532 | AN13: 917473.7934 | AO13: 0.13 | AP13: 1531084.978 | AQ13: 902068.2865
A14: 11 | B14: =Investment!AQ17 -> 1938 | C14: =Investment!AT17/100 -> 0.3112 | D14: =Investment!AR17/100 -> 0.2455 | E14: 1.313725266 | F14: =(E14/E4)^(1/10)-1 -> -0.008866884224 | H14: =ABS(F14-AC$14) -> 0.07915879039 | I14: =ABS(G14-AC$15) -> 0.09969592526 | J14: =ABS(F14-AC$16) -> 0.1590119872 | O14: 0.12 | P14: 1.762341683 | Q14: =(P14/P4)^(1/10)-1 -> 0.04637464855 | S14: =ABS(Q14-AF$14) -> 0.01514780241 | T14: =ABS(Q14-AF$15) -> 0.02397064891 | U14: =ABS(Q14-AF$16) -> 0.02796518973 | Z14: 0.25 | AA14: =AB14-10+1 -> 1962 | AB14: =INDEX(B$4:B$100,MATCH(MIN(H$4:H$100),H$4:H$100,0)) -> 1971 | AC14: =QUARTILE(F$4:F$100,1) -> 0.07029190617 | AD14: =AE14-10+1 -> 1998 | AE14: =INDEX(B$4:B$100,MATCH(MIN(S$4:S$100),S$4:S$100,0)) -> 2007 | AF14: =QUARTILE(Q$4:Q$100,1) -> 0.06152245096 | AH14: 10 | AI14: 1939 | AJ14: -0.0041 | AK14: 994798.1378 | AL14: 253728.6888 | AM14: 1546674.449 | AN14: 906141.9876 | AO14: -0.0125 | AP14: 1511946.416 | AQ14: 841417.433
A15: 12 | B15: =Investment!AQ18 -> 1939 | C15: =Investment!AT18/100 -> -0.0041 | D15: =Investment!AR18/100 -> -0.0518 | E15: 1.308338993 | F15: -0.0005214079225 | H15: 0.07081331409 | I15: 0.09969592526 | J15: 0.1506665109 | O15: 0 | P15: 1.762341683 | Q15: 0.04637464855 | S15: 0.01514780241 | T15: 0.02397064891 | U15: 0.02796518973 | Z15: 0.5 | AA15: 2005 | AB15: =INDEX(B$4:B$100,MATCH(MIN(I$4:I$100),I$4:I$100,0)) -> 2014 | AC15: =MEDIAN(F$4:F$100) -> 0.09969592526 | AD15: 1935 | AE15: =INDEX(B$4:B$100,MATCH(MIN(T$4:T$100),T$4:T$100,0)) -> 1944 | AF15: =MEDIAN(Q$4:Q$100) -> 0.07034529745 | AH15: 11 | AI15: 1940 | AJ15: -0.0978 | AK15: 897506.8799 | AL15: 183804.023 | AM15: 1615618.443 | AN15: 894305.0593 | AO15: -0.0125 | AP15: 1493047.085 | AQ15: 781524.715
A16: 13 | B16: =Investment!AQ19 -> 1940 | C16: =Investment!AT19/100 -> -0.0978 | D16: =Investment!AR19/100 -> -0.1509 | E16: 1.180383439 | F16: 0.01798126418 | H16: 0.05231064199 | I16: 0.09969592526 | J16: 0.1321638388 | O16: 0 | P16: 1.762341683 | Q16: 0.04637464855 | S16: 0.01514780241 | T16: 0.02397064891 | U16: 0.02796518973 | Z16: 0.75 | AA16: 1984 | AB16: =INDEX(B$4:B$100,MATCH(MIN(J$4:J$100),J$4:J$100,0)) -> 1993 | AC16: =QUARTILE(F$4:F$100,3) -> 0.150145103 | AD16: 2003 | AE16: =INDEX(B$4:B$100,MATCH(MIN(U$4:U$100),U$4:U$100,0)) -> 2012 | AF16: =QUARTILE(Q$4:Q$100,3) -> 0.07433983828 | AH16: 12 | AI16: 1941 | AJ16: -0.1159 | AK16: 793485.8325 | AL16: 118296.1368 | AM16: 1687635.659 | AN16: 881940.4925 | AO16: -0.0125 | AP16: 1474383.997 | AQ16: 722380.6561
A17: 14 | B17: =Investment!AQ20 -> 1941 | C17: =Investment!AT20/100 -> -0.1159 | D17: =Investment!AR20/100 -> -0.1786 | E17: 1.043576999 | F17: 0.06429560068 | H17: 0.005996305494 | I17: 0.09969592526 | J17: 0.08584950229 | O17: 0 | P17: 1.762341683 | Q17: 0.04637464855 | S17: 0.01514780241 | T17: 0.02397064891 | U17: 0.02796518973 | Z17: Max | AA17: 1949 | AB17: =INDEX(B$4:B$100,MATCH(AC17,F$4:F$100,0)) -> 1958 | AC17: =MAX(F$4:F$100) -> 0.2006131076 | AD17: 1979 | AE17: =INDEX(B$4:B$100,MATCH(AF17,Q$4:Q$100,0)) -> 1988 | AF17: =MAX(Q$4:Q$100) -> 0.08624852575 | AH17: 13 | AI17: 1942 | AJ17: 0.2034 | AK17: 954880.8508 | AL17: 82187.57099 | AM17: 1762863.088 | AN17: 869024.7672 | AO17: 0.13 | AP17: 1666053.916 | AQ17: 759790.1414
A18: 15 | B18: =Investment!AQ21 -> 1942 | C18: =Investment!AT21/100 -> 0.2034 | D18: =Investment!AR21/100 -> 0.1243 | E18: 1.25584056 | F18: 0.09348862323 | H18: 0.02319671706 | I18: 0.09969592526 | J18: 0.05665647974 | O18: 0.12 | P18: 1.973822685 | Q18: 0.05830052443 | S18: 0.003221926536 | T18: 0.01204477303 | U18: 0.01603931385 | AH18: 14 | AI18: 1943 | AJ18: 0.259 | AK18: 1202194.991 | AL18: 40524.15188 | AM18: 1841443.827 | AN18: 855533.3154 | AO18: 0.13 | AP18: 1882640.925 | AQ18: 802062.8598
A19: 16 | B19: =Investment!AQ22 -> 1943 | C19: =Investment!AT22/100 -> 0.259 | D19: =Investment!AR22/100 -> 0.1945 | E19: 1.581103265 | F19: 0.07168608077 | H19: 0.001394174602 | I19: 0.09969592526 | J19: 0.07845902219 | O19: 0.12 | P19: 2.210681407 | Q19: 0.05830052443 | S19: 0.003221926536 | T19: 0.01204477303 | U19: 0.01603931385 | AH19: 15 | AI19: 1944 | AJ19: 0.1975 | AK19: 1439628.502 | AL19: -11347.32813 | AM19: 1923527.353 | AN19: 841440.4735 | AO19: 0.13 | AP19: 2127384.246 | AQ19: 849831.0316
A20: 17 | B20: =Investment!AQ23 -> 1944 | C20: =Investment!AT23/100 -> 0.1975 | D20: =Investment!AR23/100 -> 0.138 | E20: 1.89337116 | F20: 0.09276071289 | H20: 0.02246880672 | I20: 0.09969592526 | J20: 0.05738439008 | O20: 0.12 | P20: 2.475963176 | Q20: 0.07036232343 | S20: 0.00883987247 | T20: 1.702597659e-05 | U20: 0.003977514845 | Z20: 20 years | AA20: FROM | AB20: TO | AC20: Average return | AD20: With Cap/Floor | AH20: 16 | AI20: 1945 | AJ20: 0.3644 | AK20: 1964229.128 | AL20: -83702.29449 | AM20: 2009269.804 | AN20: 826719.4342 | AO20: 0.13 | AP20: 2403944.198 | AQ20: 903809.0657
A21: 18 | B21: =Investment!AQ24 -> 1945 | C21: =Investment!AT24/100 -> 0.3644 | D21: =Investment!AR24/100 -> 0.3072 | E21: 2.583315611 | F21: 0.08415160323 | H21: 0.01385969706 | I21: 0.09969592526 | J21: 0.06599349973 | O21: 0.12 | P21: 2.773078757 | Q21: 0.07036232343 | S21: 0.00883987247 | T21: 1.702597659e-05 | U21: 0.003977514845 | Z21: Min | AA21: =AB21-20+1 -> 1929 | AB21: =INDEX(B$4:B$100,MATCH(AC21,G$4:G$100,0)) -> 1948 | AC21: =MIN(G$4:G$100) -> 0.03107659564 | AD21: =INDEX(R$4:R$100,MATCH(AB21,B$4:B$100,0)) -> 0.04637464855 | AH21: 17 | AI21: 1946 | AJ21: -0.0807 | AK21: 1805715.837 | AL21: -122912.5193 | AM21: 2098834.279 | AN21: 811342.1953 | AO21: -0.0125 | AP21: 2373894.895 | AQ21: 843136.4523
A22: 19 | B22: =Investment!AQ25 -> 1946 | C22: =Investment!AT25/100 -> -0.0807 | D22: =Investment!AR25/100 -> -0.1187 | E22: 2.374842041 | F22: 0.04412188396 | H22: 0.02617002221 | I22: 0.09969592526 | J22: 0.106023219 | O22: 0 | P22: 2.773078757 | Q22: 0.05830052443 | S22: 0.003221926536 | T22: 0.01204477303 | U22: 0.01603931385 | Z22: 0.25 | AA22: =AB22-20+1 -> 1996 | AB22: =INDEX(B$4:B$100,MATCH(MIN(K$4:K$100),K$4:K$100,0)) -> 2015 | AC22: =QUARTILE(G$4:G$100,1) -> 0.08190498567 | AD22: =INDEX(R$4:R$100,MATCH(AB22,B$4:B$100,0)) -> 0.07205193762 | AH22: 18 | AI22: 1947 | AJ22: 0.0571 | AK22: 1908822.212 | AL22: -182785.8242 | AM22: 2192391.147 | AN22: 795279.5062 | AO22: 0.0371 | AP22: 2461966.396 | AQ22: 822561.8147
A23: 20 | B23: =Investment!AQ26 -> 1947 | C23: =Investment!AT26/100 -> 0.0571 | D23: =Investment!AR26/100 -> 0 | E23: 2.510445522 | F23: 0.09620434446 | G23: =(E23/E3)^(1/20)-1 -> 0.04709850631 | H23: =ABS(F23-AC$14) -> 0.02591243829 | I23: 0.05259741895 | J23: =ABS(F23-AC$16) -> 0.0539407585 | K23: =ABS(G23-AC$6) -> 0.03480647936 | L23: =ABS(H23-AC$6) -> 0.05599254738 | M23: =ABS(G23-AC$8) -> 0.08759832179 | O23: 0 | P23: 2.773078757 | Q23: 0.05830052443 | R23: =(P23/P3)^(1/20)-1 -> 0.05232069223 | S23: 0.003221926536 | T23: 0.01204477303 | U23: 0.01603931385 | V23: =ABS(R23-AF$6) -> 0.01252865236 | W23: =ABS(R23-AF$7) -> 0.01687118755 | X23: =ABS(R23-AF$8) -> 0.01993351651 | Z23: 0.5 | AA23: 1968 | AB23: =INDEX(B$4:B$100,MATCH(MIN(L$4:L$100),L$4:L$100,0)) -> 1987 | AC23: =MEDIAN(G$4:G$100) -> 0.1144087236 | AD23: 0.06405681535 | AH23: 19 | AI23: 1948 | AJ23: 0.055 | AK23: 2013807.433 | AL23: -245589.0445 | AM23: 2290118.372 | AN23: 778500.8125 | AO23: 0.035 | AP23: 2548135.22 | AQ23: 799601.4782
A24: 21 | B24: =Investment!AQ27 -> 1948 | C24: =Investment!AT27/100 -> 0.055 | D24: =Investment!AR27/100 -> -0.0065 | E24: 2.648520026 | F24: 0.07262983061 | G24: =(E24/E4)^(1/20)-1 -> 0.03107659564 | H24: =ABS(F24-AC$14) -> 0.002337924435 | I24: =ABS(G24-AC$15) -> 0.06861932962 | J24: =ABS(F24-AC$16) -> 0.07751527236 | K24: =ABS(G24-AC$6) -> 0.05082839003 | L24: =ABS(H24-AC$6) -> 0.07956706124 | M24: =ABS(G24-AC$8) -> 0.1036202325 | O24: 0 | P24: 2.773078757 | Q24: 0.04637464855 | R24: =(P24/P4)^(1/20)-1 -> 0.04637464855 | S24: =ABS(Q24-AF$14) -> 0.01514780241 | T24: =ABS(Q24-AF$15) -> 0.02397064891 | U24: =ABS(Q24-AF$16) -> 0.02796518973 | V24: =ABS(R24-AF$6) -> 0.01847469605 | W24: =ABS(R24-AF$7) -> 0.02281723124 | X24: =ABS(R24-AF$8) -> 0.02587956019 | Z24: 0.75 | AA24: 1939 | AB24: =INDEX(B$4:B$100,MATCH(MIN(M$4:M$100),M$4:M$100,0)) -> 1958 | AC24: =QUARTILE(G$4:G$100,3) -> 0.1346968281 | AD24: 0.0648493446 | AH24: 20 | AI24: 1949 | AJ24: 0.1879 | AK24: 2392201.85 | AL24: -351130.226 | AM24: 2392201.85 | AN24: 760974.198 | AO24: 0.13 | AP24: 2879392.798 | AQ24: 847049.6704
A25: 22 | B25: =Investment!AQ28 -> 1949 | C25: =Investment!AT28/100 -> 0.1879 | D25: =Investment!AR28/100 -> 0.1046 | E25: 3.146176938 | F25: 0.0917074797 | G25: 0.04457563382 | H25: 0.02141557353 | I25: 0.05512029144 | J25: 0.05843762326 | K25: 0.03732935185 | L25: 0.06048941214 | M25: 0.09012119428 | O25: 0.1046 | P25: 3.063142795 | Q25: 0.05683627818 | R25: 0.05159245393 | S25: 0.004686172778 | T25: 0.01350901927 | U25: 0.01750356009 | V25: 0.01325689067 | W25: 0.01759942586 | X25: 0.02066175481 | Z25: Max | AA25: 1980 | AB25: =INDEX(B$4:B$100,MATCH(AC25,G$4:G$100,0)) -> 1999 | AC25: =MAX(G$4:G$100) -> 0.1787884273 | AD25: 0.08432349931 | AI25: Average | AK25: =(AK24/AI3)^(1/20)-1 -> 0.04457563382 | AP25: =(AP24/AI3)^(1/20)-1 -> 0.05430203722
A26: 23 | B26: =Investment!AQ29 -> 1950 | C26: =Investment!AT29/100 -> 0.3171 | D26: =Investment!AR29/100 -> 0.2168 | E26: 4.143829645 | F26: 0.1338037225 | G26: 0.07433279144 | H26: 0.06351181633 | I26: 0.02536313382 | J26: 0.01634138046 | K26: 0.007572194232 | L26: 0.01839316934 | M26: 0.06036403666 | O26: 0.12 | P26: 3.430719931 | Q26: 0.06888138869 | R26: 0.05756814789 | S26: 0.007358937732 | T26: 0.001463908761 | U26: 0.005458449583 | V26: 0.007281196704 | W26: 0.0116237319 | X26: 0.01468606085
A27: 24 | B27: =Investment!AQ30 -> 1951 | C27: =Investment!AT30/100 -> 0.2402 | D27: =Investment!AR30/100 -> 0.1635 | E27: 5.139177526 | F27: 0.1728349848 | G27: 0.1172480095 | H27: 0.1025430786 | I27: 0.0175520842 | J27: 0.02268988184 | K27: 0.03534302379 | L27: 0.02063809296 | M27: 0.01744881864 | O27: 0.12 | P27: 3.842406323 | Q27: 0.08106378129 | R27: 0.06357779885 | S27: 0.01954133033 | T27: 0.01071848383 | U27: 0.006723943011 | V27: 0.001271545747 | W27: 0.005614080939 | X27: 0.008676409894 | Z27: 10 years | AA27: FROM | AB27: TO | AC27: Average return | AD27: With Cap/Floor
A28: 25 | B28: =Investment!AQ31 -> 1952 | C28: =Investment!AT31/100 -> 0.1837 | D28: =Investment!AR31/100 -> 0.1178 | E28: 6.083244438 | F28: 0.1709007285 | G28: 0.1315328654 | H28: 0.1006088224 | I28: 0.03183694019 | J28: 0.02075562558 | K28: 0.04962787978 | L28: 0.0187038367 | M28: 0.003163962652 | O28: 0.1178 | P28: 4.295041787 | Q28: 0.08085124154 | R28: 0.0695164495 | S28: 0.01932879057 | T28: 0.01050594408 | U28: 0.006511403259 | V28: 0.004667104901 | W28: 0.0003245697093 | X28: 0.002737759246 | Z28: Min | AA28: =AB28-10+1 -> 1999 | AB28: =INDEX(B$4:B$100,MATCH(AC28,F$4:F$100,0)) -> 2008 | AC28: =MIN(F$4:F$100) -> -0.01384325174 | AD28: =INDEX(Q$4:Q$100,MATCH(AB21,B$4:B$100,0)) -> 0.04637464855
A29: 26 | B29: =Investment!AQ32 -> 1953 | C29: =Investment!AT32/100 -> -0.0099 | D29: =Investment!AR32/100 -> -0.0662 | E29: 6.023020318 | F29: 0.1431031177 | G29: 0.1068187296 | H29: 0.07281121157 | I29: 0.007122804328 | J29: 0.007041985226 | K29: 0.02491374392 | L29: 0.009093774104 | M29: 0.02787809851 | O29: 0 | P29: 4.295041787 | Q29: 0.06867124403 | R29: 0.06347324273 | S29: 0.007148793068 | T29: 0.001674053425 | U29: 0.005668594247 | V29: 0.001376101869 | W29: 0.005718637061 | X29: 0.008780966016 | Z29: 0.25 | AA29: =AB29-10+1 -> 1962 | AB29: =INDEX(B$4:B$100,MATCH(MIN(H$4:H$100),H$4:H$100,0)) -> 1971 | AC29: =QUARTILE(F$4:F$100,1) -> 0.07029190617 | AD29: =INDEX(Q$4:Q$100,MATCH(AB22,B$4:B$100,0)) -> 0.0734955615
A30: 27 | B30: =Investment!AQ33 -> 1954 | C30: =Investment!AT33/100 -> 0.5262 | D30: =Investment!AR33/100 -> 0.4502 | E30: 9.192333609 | F30: 0.1711674725 | G30: 0.1312850225 | H30: 0.1008755663 | I30: 0.03158909725 | J30: 0.02102236954 | K30: 0.04938003684 | L30: 0.01897058066 | M30: 0.003411805588 | O30: 0.12 | P30: 4.810446802 | Q30: 0.06867124403 | R30: 0.0695164495 | S30: 0.007148793068 | T30: 0.001674053425 | U30: 0.005668594247 | V30: 0.004667104901 | W30: 0.0003245697093 | X30: 0.002737759246 | Z30: 0.5 | AA30: 2005 | AB30: =INDEX(B$4:B$100,MATCH(MIN(I$4:I$100),I$4:I$100,0)) -> 2014 | AC30: =MEDIAN(F$4:F$100) -> 0.09969592526 | AD30: 0.07514076077
A31: 28 | B31: =Investment!AQ34 -> 1955 | C31: =Investment!AT34/100 -> 0.3156 | D31: =Investment!AR34/100 -> 0.264 | E31: 12.0934341 | F31: 0.1669096125 | G31: 0.1247697219 | H31: 0.09661770631 | I31: 0.0250737966 | J31: 0.01676450952 | K31: 0.04286473619 | L31: 0.01471272064 | M31: 0.009927106244 | O31: 0.12 | P31: 5.387700418 | Q31: 0.06867124403 | R31: 0.0695164495 | S31: 0.007148793068 | T31: 0.001674053425 | U31: 0.005668594247 | V31: 0.004667104901 | W31: 0.0003245697093 | X31: 0.002737759246 | Z31: 0.75 | AA31: 1984 | AB31: =INDEX(B$4:B$100,MATCH(MIN(J$4:J$100),J$4:J$100,0)) -> 1993 | AC31: =QUARTILE(F$4:F$100,3) -> 0.150145103 | AD31: 0.0836502282
A32: 29 | B32: =Investment!AQ35 -> 1956 | C32: =Investment!AT35/100 -> 0.0656 | D32: =Investment!AR35/100 -> 0.0262 | E32: 12.88676337 | F32: 0.1842705037 | G32: 0.1119904448 | H32: 0.1139785975 | I32: 0.01229451958 | J32: 0.03412540071 | K32: 0.03008545917 | L32: 0.03207361184 | M32: 0.02270638326 | O32: 0.0262 | P32: 5.528858169 | Q32: 0.07143868921 | R32: 0.0648493446 | S32: 0.009916238253 | T32: 0.00109339176 | U32: 0.002901149062 | V32: 0 | W32: 0.004342535191 | X32: 0.007404864147 | Z32: Max | AA32: 1949 | AB32: =INDEX(B$4:B$100,MATCH(AC32,F$4:F$100,0)) -> 1958 | AC32: =MAX(F$4:F$100) -> 0.2006131076 | AD32: 0.08240188436
A33: 30 | B33: =Investment!AQ36 -> 1957 | C33: =Investment!AT36/100 -> -0.1078 | D33: =Investment!AR36/100 -> -0.1431 | E33: 11.49757028 | F33: 0.1643553075 | G33: 0.1297660583 | H33: 0.09406340131 | I33: 0.03007013307 | J33: 0.01421020451 | K33: 0.04786107266 | L33: 0.01215841564 | M33: 0.004930769771 | O33: 0 | P33: 5.528858169 | Q33: 0.07143868921 | R33: 0.0648493446 | S33: 0.009916238253 | T33: 0.00109339176 | U33: 0.002901149062 | V33: 0 | W33: 0.004342535191 | X33: 0.007404864147
A34: 31 | B34: =Investment!AQ37 -> 1958 | C34: =Investment!AT37/100 -> 0.4336 | D34: =Investment!AR37/100 -> 0.3806 | E34: 16.48291676 | F34: 0.2006131076 | G34: 0.134818679 | H34: 0.1303212015 | I34: 0.03512275376 | J34: 0.05046800466 | K34: 0.05291369335 | L34: 0.04841621578 | M34: 0.0001218509193 | O34: 0.12 | P34: 6.192321149 | Q34: 0.0836502282 | R34: 0.0648493446 | S34: 0.02212777724 | T34: 0.01330493075 | U34: 0.009310389927 | V34: 0 | W34: 0.004342535191 | X34: 0.007404864147 | AC34: =CONCATENATE("IUL Cap/Floor:",O3,"/",O2) -> IUL Cap/Floor:0.12/0
A35: 32 | B35: =Investment!AQ38 -> 1959 | C35: =Investment!AT38/100 -> 0.1196 | D35: =Investment!AR38/100 -> 0.0848 | E35: 18.4542736 | F35: 0.1935246176 | G35: 0.141481385 | H35: 0.1232327114 | I35: 0.04178545971 | J35: 0.04337951463 | K35: 0.0595763993 | L35: 0.04132772575 | M35: 0.00678455687 | O35: 0.0848 | P35: 6.717429983 | Q35: 0.08169193223 | R35: 0.06919187979 | S35: 0.02016948127 | T35: 0.01134663478 | U35: 0.007352093957 | V35: 0.004342535191 | W35: 0 | X35: 0.003062328955 | AC35: 10 Years | AD35: 20 Years
A36: 33 | B36: =Investment!AQ39 -> 1960 | C36: =Investment!AT39/100 -> 0.0047 | D36: =Investment!AR39/100 -> -0.0297 | E36: 18.54100869 | F36: 0.1616442483 | G36: 0.1476395658 | H36: 0.09135234214 | I36: 0.04794364052 | J36: 0.01149914535 | K36: 0.06573458011 | L36: 0.009447356468 | M36: 0.01294273769 | O36: 0 | P36: 6.717429983 | Q36: 0.06950246107 | R36: 0.06919187979 | S36: 0.007980010111 | T36: 0.0008428363818 | U36: 0.004837377203 | V36: 0.004342535191 | W36: 0 | X36: 0.003062328955 | AB36: Min | AC36: =AF13 -> 0.04637464855 | AD36: =AF5 -> 0.04637464855
A37: 34 | B37: =Investment!AQ40 -> 1961 | C37: =Investment!AT40/100 -> 0.2689 | D37: =Investment!AR40/100 -> 0.2313 | E37: 23.52668592 | F37: 0.1643048685 | G37: 0.1685621433 | H37: 0.09401296236 | I37: 0.06886621806 | J37: 0.01415976557 | K37: 0.08665715765 | L37: 0.01210797669 | M37: 0.03386531522 | O37: 0.12 | P37: 7.523521581 | Q37: 0.06950246107 | R37: 0.07526758282 | S37: 0.007980010111 | T37: 0.0008428363818 | U37: 0.004837377203 | V37: 0.01041823822 | W37: 0.006075703033 | X37: 0.003013374078 | AB37: 0.25 | AC37: =AF14 -> 0.06152245096 | AD37: =AF6 -> 0.0648493446
A38: 35 | B38: =Investment!AQ41 -> 1962 | C38: =Investment!AT41/100 -> -0.0873 | D38: =Investment!AR41/100 -> -0.1181 | E38: 21.47280624 | F38: 0.1344238637 | G38: 0.1525179949 | H38: 0.06413195757 | I38: 0.05282206962 | J38: 0.01572123922 | K38: 0.07061300921 | L38: 0.0177730281 | M38: 0.01782116678 | O38: 0 | P38: 7.523521581 | Q38: 0.05765828994 | R38: 0.06919187979 | S38: 0.003864161021 | T38: 0.01268700751 | U38: 0.01668154834 | V38: 0.004342535191 | W38: 0 | X38: 0.003062328955 | AB38: 0.5 | AC38: 0.07034529745 | AD38: 0.06919187979
A39: 36 | B39: =Investment!AQ42 -> 1963 | C39: =Investment!AT42/100 -> 0.228 | D39: =Investment!AR42/100 -> 0.1889 | E39: 26.36860606 | F39: 0.159117024 | G39: 0.1510822229 | H39: 0.08882511785 | I39: 0.05138629768 | J39: 0.008971921056 | K39: 0.06917723727 | L39: 0.006920132178 | M39: 0.01638539484 | O39: 0.12 | P39: 8.426344171 | Q39: 0.06971276919 | R39: 0.06919187979 | S39: 0.008190318227 | T39: 0.0006325282663 | U39: 0.004627069088 | V39: 0.004342535191 | W39: 0 | X39: 0.003062328955 | AB39: 0.75 | AC39: 0.07433983828 | AD39: 0.07225420874
A40: 37 | B40: =Investment!AQ43 -> 1964 | C40: =Investment!AT43/100 -> 0.1648 | D40: =Investment!AR43/100 -> 0.1297 | E40: 30.71415234 | F40: 0.1282134573 | G40: 0.1494898448 | H40: 0.0579215511 | I40: 0.04979391949 | J40: 0.0219316457 | K40: 0.06758485908 | L40: 0.02398343458 | M40: 0.01479301665 | O40: 0.12 | P40: 9.437505471 | Q40: 0.06971276919 | R40: 0.06919187979 | S40: 0.008190318227 | T40: 0.0006325282663 | U40: 0.004627069088 | V40: 0.004342535191 | W40: 0 | X40: 0.003062328955 | AB40: Max | AC40: 0.08624852575 | AD40: 0.08432349931
A41: 38 | B41: =Investment!AQ44 -> 1965 | C41: =Investment!AT44/100 -> 0.1245 | D41: =Investment!AR44/100 -> 0.0906 | E41: 34.53806431 | F41: 0.1106438987 | G41: 0.1384291991 | H41: 0.04035199252 | I41: 0.03873327387 | J41: 0.03950120428 | K41: 0.05652421346 | L41: 0.04155299315 | M41: 0.003732371028 | O41: 0.0906 | P41: 10.29254347 | Q41: 0.06687104156 | R41: 0.06777076341 | S41: 0.005348590598 | T41: 0.003474255895 | U41: 0.007468796716 | V41: 0.002921418819 | W41: 0.001421116373 | X41: 0.004483445328
A42: 39 | B42: =Investment!AQ45 -> 1966 | C42: =Investment!AT45/100 -> -0.1006 | D42: =Investment!AR45/100 -> -0.1309 | E42: 31.06353504 | F42: 0.09196998808 | G42: 0.137184175 | H42: 0.02167808191 | I42: 0.0374882497 | J42: 0.05817511488 | K42: 0.05527918929 | L42: 0.06022690376 | M42: 0.002487346862 | O42: 0 | P42: 10.29254347 | Q42: 0.06411539426 | R42: 0.06777076341 | S42: 0.002592943302 | T42: 0.006229903191 | U42: 0.01022444401 | V42: 0.002921418819 | W42: 0.001421116373 | X42: 0.004483445328
A43: 40 | B43: =Investment!AQ46 -> 1967 | C43: =Investment!AT46/100 -> 0.2398 | D43: =Investment!AR46/100 -> 0.2009 | E43: 38.51257074 | F43: 0.1284950115 | G43: 0.1462849367 | H43: 0.05820310529 | I43: 0.04658901142 | J43: 0.02165009151 | K43: 0.06437995101 | L43: 0.02370188038 | M43: 0.01158810858 | O43: 0.12 | P43: 11.52764868 | Q43: 0.07624346725 | R43: 0.07383839093 | S43: 0.01472101629 | T43: 0.005898169798 | U43: 0.001903628976 | V43: 0.008989046331 | W43: 0.00464651114 | X43: 0.001584182184
A44: 41 | B44: =Investment!AQ47 -> 1968 | C44: =Investment!AT47/100 -> 0.1106 | D44: =Investment!AR47/100 -> 0.0766 | E44: 42.77206107 | F44: 0.1000504709 | G44: 0.1492323588 | H44: 0.02975856476 | I44: 0.04953643351 | J44: 0.05009463203 | K44: 0.0673273731 | L44: 0.05214642091 | M44: 0.01453553067 | O44: 0.0766 | P44: 12.41066657 | Q44: 0.07199846528 | R44: 0.07780860153 | S44: 0.01047601432 | T44: 0.001653167828 | U44: 0.002341372993 | V44: 0.01295925694 | W44: 0.008616721745 | X44: 0.00555439279
A45: 42 | B45: =Investment!AQ48 -> 1969 | C45: =Investment!AT48/100 -> -0.085 | D45: =Investment!AR48/100 -> -0.1136 | E45: 39.13643587 | F45: 0.07807365115 | G45: 0.1343312753 | H45: 0.007781744975 | I45: 0.03463535008 | J45: 0.07207145182 | K45: 0.05242628967 | L45: 0.0741232407 | M45: 0.0003655527579 | O45: 0 | P45: 12.41066657 | Q45: 0.0633082805 | R45: 0.07246071652 | S45: 0.001785829534 | T45: 0.007037016959 | U45: 0.01103155778 | V45: 0.007611371929 | W45: 0.003268836737 | X45: 0.0002065077819
A46: 43 | B46: =Investment!AQ49 -> 1970 | C46: =Investment!AT49/100 -> 0.0401 | D46: =Investment!AR49/100 -> 0.001 | E46: 40.70580695 | F46: 0.08181326188 | G46: 0.1210183555 | H46: 0.01152135571 | I46: 0.02132243026 | J46: 0.06833184108 | K46: 0.03911336985 | L46: 0.07038362996 | M46: 0.01367847258 | O46: 0.001 | P46: 12.42307724 | Q46: 0.0634145635 | R46: 0.06645416817 | S46: 0.001892112543 | T46: 0.00693073395 | U46: 0.01092527477 | V46: 0.001604823575 | W46: 0.002737711616 | X46: 0.005800040572
A47: 44 | B47: =Investment!AQ50 -> 1971 | C47: =Investment!AT50/100 -> 0.1431 | D47: =Investment!AR50/100 -> 0.1079 | E47: 46.53080793 | F47: 0.07057718485 | G47: 0.1164578937 | H47: 0.0002852786826 | I47: 0.01676196847 | J47: 0.07956791811 | K47: 0.03455290806 | L47: 0.08161970699 | M47: 0.01823893437 | O47: 0.1079 | P47: 13.76352727 | Q47: 0.06226007212 | R47: 0.06587511531 | S47: 0.0007376211628 | T47: 0.00808522533 | U47: 0.01207976615 | V47: 0.001025770714 | W47: 0.003316764477 | X47: 0.006379093433
A48: 45 | B48: =Investment!AQ51 -> 1972 | C48: =Investment!AT51/100 -> 0.1898 | D48: =Investment!AR51/100 -> 0.1563 | E48: 55.36235527 | F48: 0.09934137959 | G48: 0.1167448659 | H48: 0.02904947342 | I48: 0.01704894059 | J48: 0.05080372338 | K48: 0.03483988018 | L48: 0.05285551225 | M48: 0.01795196225 | O48: 0.12 | P48: 15.41515055 | Q48: 0.0743669994 | R48: 0.06597990757 | S48: 0.01284454844 | T48: 0.004021701942 | U48: 2.71611204e-05 | V48: 0.001130562978 | W48: 0.003211972214 | X48: 0.006274301169
A49: 46 | B49: =Investment!AQ52 -> 1973 | C49: =Investment!AT52/100 -> -0.1466 | D49: =Investment!AR52/100 -> -0.1737 | E49: 47.24623399 | F49: 0.06005403248 | G49: 0.1084794429 | H49: 0.01023787369 | I49: 0.008783517682 | J49: 0.09009107049 | K49: 0.02657445727 | L49: 0.07166711198 | M49: 0.02621738516 | O49: 0 | P49: 15.41515055 | Q49: 0.06226007212 | R49: 0.06597990757 | S49: 0.0007376211628 | T49: 0.00808522533 | U49: 0.01207976615 | V49: 0.001130562978 | W49: 0.003211972214 | X49: 0.006274301169
A50: 47 | B50: =Investment!AQ53 -> 1974 | C50: =Investment!AT53/100 -> -0.2647 | D50: =Investment!AR53/100 -> -0.2972 | E50: 34.74015585 | F50: 0.01239344103 | G50: 0.06873565685 | H50: 0.05789846514 | I50: 0.03096026841 | J50: 0.1377516619 | K50: 0.01316932882 | L50: 0.02400652053 | M50: 0.06596117125 | O50: 0 | P50: 15.41515055 | Q50: 0.05028957653 | R50: 0.05995668372 | S50: 0.01123287444 | T50: 0.02005572093 | U50: 0.02405026175 | V50: 0.004892660879 | W50: 0.009235196071 | X50: 0.01229752503
A51: 48 | B51: =Investment!AQ54 -> 1975 | C51: =Investment!AT54/100 -> 0.372 | D51: =Investment!AR54/100 -> 0.3155 | E51: 47.66349383 | F51: 0.03273474374 | G51: 0.07098111193 | H51: 0.03755716243 | I51: 0.02871481334 | J51: 0.1174103592 | K51: 0.01092387375 | L51: 0.04434782324 | M51: 0.06371571618 | O51: 0.12 | P51: 17.26496861 | Q51: 0.05308713761 | R51: 0.05995668372 | S51: 0.008435313352 | T51: 0.01725815984 | U51: 0.02125270067 | V51: 0.004892660879 | W51: 0.009235196071 | X51: 0.01229752503
A52: 49 | B52: =Investment!AQ55 -> 1976 | C52: =Investment!AT55/100 -> 0.2384 | D52: =Investment!AR55/100 -> 0.1915 | E52: 59.02647076 | F52: 0.06630045375 | G52: 0.07905889263 | H52: 0.003991452425 | I52: 0.02063703263 | J52: 0.08384464922 | K52: 0.00284609304 | L52: 0.07791353325 | M52: 0.05563793547 | O52: 0.12 | P52: 19.33676484 | Q52: 0.06508951793 | R52: 0.06460234468 | S52: 0.00356706697 | T52: 0.005255779523 | U52: 0.009250320344 | V52: 0.0002469999148 | W52: 0.004589535106 | X52: 0.007651864062
A53: 50 | B53: =Investment!AQ56 -> 1977 | C53: =Investment!AT56/100 -> -0.0718 | D53: =Investment!AR56/100 -> -0.115 | E53: 54.78837016 | F53: 0.03587794659 | G53: 0.08119521605 | H53: 0.03441395958 | I53: 0.01850070921 | J53: 0.1142671564 | K53: 0.0007097696205 | L53: 0.04749102609 | M53: 0.05350161205 | O53: 0 | P53: 19.33676484 | Q53: 0.05308713761 | R53: 0.06460234468 | S53: 0.008435313352 | T53: 0.01725815984 | U53: 0.02125270067 | V53: 0.0002469999148 | W53: 0.004589535106 | X53: 0.007651864062
A54: 51 | B54: =Investment!AQ57 -> 1978 | C54: =Investment!AT57/100 -> 0.0656 | D54: =Investment!AR57/100 -> 0.0106 | E54: 58.38248724 | F54: 0.03160215687 | G54: 0.06527669574 | H54: 0.0386897493 | I54: 0.03441922952 | J54: 0.1185429461 | K54: 0.01662828993 | L54: 0.04321523637 | M54: 0.06942013236 | O54: 0.0106 | P54: 19.54173455 | Q54: 0.04644594681 | R54: 0.0591451501 | S54: 0.01507650415 | T54: 0.02389935065 | U54: 0.02789389147 | V54: 0.005704194496 | W54: 0.01004672969 | X54: 0.01310905864
A55: 52 | B55: =Investment!AQ58 -> 1979 | C55: =Investment!AT58/100 -> 0.1844 | D55: =Investment!AR58/100 -> 0.1231 | E55: 69.14821789 | F55: 0.05857095081 | G55: 0.06827779624 | H55: 0.01172095536 | I55: 0.03141812902 | J55: 0.09157415216 | K55: 0.01362718943 | L55: 0.07018403031 | M55: 0.06641903186 | O55: 0.12 | P55: 21.8867427 | Q55: 0.05837263529 | R55: 0.06083758746 | S55: 0.003149815667 | T55: 0.01197266216 | U55: 0.01596720298 | V55: 0.00401175714 | W55: 0.008354292332 | X55: 0.01141662129
A56: 53 | B56: =Investment!AQ59 -> 1980 | C56: =Investment!AT59/100 -> 0.3242 | D56: =Investment!AR59/100 -> 0.2577 | E56: 91.56607013 | F56: 0.08444572403 | G56: 0.08312869321 | H56: 0.01415381786 | I56: 0.01656723205 | J56: 0.06569937893 | K56: 0.001223707537 | L56: 0.06775116781 | M56: 0.05156813489 | O56: 0.12 | P56: 24.51315182 | Q56: 0.07032827148 | R56: 0.06686581706 | S56: 0.008805820517 | T56: 1.702597659e-05 | U56: 0.004011566798 | V56: 0.002016472469 | W56: 0.002326062723 | X56: 0.005388391678
A57: 54 | B57: =Investment!AQ60 -> 1981 | C57: =Investment!AT60/100 -> -0.0491 | D57: =Investment!AR60/100 -> -0.0973 | E57: 87.07017608 | F57: 0.06466476886 | G57: 0.06761688403 | H57: 0.005627137311 | I57: 0.03207904123 | J57: 0.0854803341 | K57: 0.01428810164 | L57: 0.07627784836 | M57: 0.06707994407 | O57: 0 | P57: 24.51315182 | Q57: 0.05941700765 | R57: 0.06083758746 | S57: 0.00210544331 | T57: 0.0109282898 | U57: 0.01492283062 | V57: 0.00401175714 | W57: 0.008354292332 | X57: 0.01141662129
A58: 55 | B58: =Investment!AQ61 -> 1982 | C58: =Investment!AT61/100 -> 0.2155 | D58: =Investment!AR61/100 -> 0.1476 | E58: 105.833799 | F58: 0.06694242108 | G58: 0.08302075378 | H58: 0.003349485094 | I58: 0.01667517148 | J58: 0.08320268189 | K58: 0.001115768114 | L58: 0.07855550058 | M58: 0.05167607432 | O58: 0.12 | P58: 27.45473004 | Q58: 0.05941700765 | R58: 0.06686581706 | S58: 0.00210544331 | T58: 0.0109282898 | U58: 0.01492283062 | V58: 0.002016472469 | W58: 0.002326062723 | X58: 0.005388391678
A59: 56 | B59: =Investment!AQ62 -> 1983 | C59: =Investment!AT62/100 -> 0.2256 | D59: =Investment!AR62/100 -> 0.1727 | E59: 129.7099041 | F59: 0.1062686216 | G59: 0.08291482276 | H59: 0.03597671546 | I59: 0.0167811025 | J59: 0.04387648133 | K59: 0.001009837093 | L59: 0.04592827021 | M59: 0.05178200534 | O59: 0.12 | P59: 30.74929764 | Q59: 0.07149153158 | R59: 0.06686581706 | S59: 0.009969080622 | T59: 0.001146234129 | U59: 0.002848306693 | V59: 0.002016472469 | W59: 0.002326062723 | X59: 0.005388391678
A60: 57 | B60: =Investment!AQ63 -> 1984 | C60: =Investment!AT63/100 -> 0.0627 | D60: =Investment!AR63/100 -> 0.014 | E60: 137.8427151 | F60: 0.1477708893 | G60: 0.0779590531 | H60: 0.07747898316 | I60: 0.02173687216 | J60: 0.002374213632 | K60: 0.003945932567 | L60: 0.004426002509 | M60: 0.056737775 | O60: 0.014 | P60: 31.17978781 | Q60: 0.07298225213 | R60: 0.06157528005 | S60: 0.01145980116 | T60: 0.002636954671 | U60: 0.00135758615 | V60: 0.003274064549 | W60: 0.007616599741 | X60: 0.0106789287
A61: 58 | B61: =Investment!AQ64 -> 1985 | C61: =Investment!AT64/100 -> 0.3173 | D61: =Investment!AR64/100 -> 0.2633 | E61: 181.5802086 | F61: 0.1431106308 | G61: 0.08652200365 | H61: 0.07281872468 | I61: 0.01317392161 | J61: 0.007034472115 | K61: 0.00461701798 | L61: 0.009086260993 | M61: 0.04817482445 | O61: 0.12 | P61: 34.92136235 | Q61: 0.07298225213 | R61: 0.06298815073 | S61: 0.01145980116 | T61: 0.002636954671 | U61: 0.00135758615 | V61: 0.001861193863 | W61: 0.006203729055 | X61: 0.00926605801
A62: 59 | B62: =Investment!AQ65 -> 1986 | C62: =Investment!AT65/100 -> 0.1867 | D62: =Investment!AR65/100 -> 0.1462 | E62: 215.4812335 | F62: 0.1382463428 | G62: 0.1016862492 | H62: 0.06795443661 | I62: 0.001990323986 | J62: 0.01189876019 | K62: 0.01978126358 | L62: 0.01395054906 | M62: 0.03301057885 | O62: 0.12 | P62: 39.11192583 | Q62: 0.07298225213 | R62: 0.06902860096 | S62: 0.01145980116 | T62: 0.002636954671 | U62: 0.00135758615 | V62: 0.004179256362 | W62: 0.0001632788291 | X62: 0.003225607785
A63: 60 | B63: =Investment!AQ66 -> 1987 | C63: =Investment!AT66/100 -> 0.0525 | D63: =Investment!AR66/100 -> 0.0203 | E63: 226.7939983 | F63: 0.1526416742 | G63: 0.09270128153 | H63: 0.08234976806 | I63: 0.00699464373 | J63: 0.002496571265 | K63: 0.01079629586 | L63: 0.0004447823874 | M63: 0.04199554657 | O63: 0.0203 | P63: 39.90589792 | Q63: 0.07514076077 | R63: 0.06405681535 | S63: 0.01361830981 | T63: 0.004795463315 | U63: 0.0008009224935 | V63: 0.0007925292486 | W63: 0.00513506444 | X63: 0.008197393395
A64: 61 | B64: =Investment!AQ67 -> 1988 | C64: =Investment!AT67/100 -> 0.1661 | D64: =Investment!AR67/100 -> 0.124 | E64: 264.4644814 | F64: 0.1630770225 | G64: 0.09536878037 | H64: 0.09278511631 | I64: 0.004327144895 | J64: 0.01293191952 | K64: 0.01346379469 | L64: 0.01088013064 | M64: 0.03932804773 | O64: 0.12 | P64: 44.69460568 | Q64: 0.08624852575 | R64: 0.06616151074 | S64: 0.02472607479 | T64: 0.01590322829 | U64: 0.01190868747 | V64: 0.001312166149 | W64: 0.003030369042 | X64: 0.006092697998
A65: 62 | B65: =Investment!AQ68 -> 1989 | C65: =Investment!AT68/100 -> 0.3169 | D65: =Investment!AR68/100 -> 0.2725 | E65: 348.2732755 | F65: 0.1754764044 | G65: 0.115493243 | H65: 0.1051844983 | I65: 0.0157973177 | J65: 0.02533130147 | K65: 0.03358825729 | L65: 0.02327951259 | M65: 0.01920358514 | O65: 0.12 | P65: 50.05795836 | Q65: 0.08624852575 | R65: 0.07221999365 | S65: 0.02472607479 | T65: 0.01590322829 | U65: 0.01190868747 | V65: 0.007370649053 | W65: 0.003028113861 | X65: 3.421509416e-05
A66: 63 | B66: =Investment!AQ69 -> 1990 | C66: =Investment!AT69/100 -> -0.031 | D66: =Investment!AR69/100 -> -0.0656 | E66: 337.476804 | F66: 0.1393336785 | G66: 0.1115509596 | H66: 0.06904177229 | I66: 0.01185503437 | J66: 0.01081142451 | K66: 0.02964597396 | L66: 0.01286321338 | M66: 0.02314586847 | O66: 0 | P66: 50.05795836 | Q66: 0.07400770682 | R66: 0.07216641078 | S66: 0.01248525586 | T66: 0.003662409365 | U66: 0.0003321314562 | V66: 0.00731706618 | W66: 0.002974530988 | X66: 8.779796729e-05
A67: 64 | B67: =Investment!AQ70 -> 1991 | C67: =Investment!AT70/100 -> 0.3047 | D67: =Investment!AR70/100 -> 0.2631 | E67: 440.3059862 | F67: 0.1759490801 | G67: 0.118924285 | H67: 0.1056571739 | I67: 0.01922835974 | J67: 0.02580397715 | K67: 0.03701929933 | L67: 0.02375218827 | M67: 0.0157725431 | O67: 0.12 | P67: 56.06491336 | Q67: 0.08624852575 | R67: 0.07274888148 | S67: 0.02472607479 | T67: 0.01590322829 | U67: 0.01190868747 | V67: 0.007899536883 | W67: 0.003557001691 | X67: 0.0004946727358
A68: 65 | B68: =Investment!AQ71 -> 1992 | C68: =Investment!AT71/100 -> 0.0762 | D68: =Investment!AR71/100 -> 0.0446 | E68: 473.8573023 | F68: 0.1617222817 | G68: 0.1133242043 | H68: 0.09143037558 | I68: 0.01362827905 | J68: 0.01157717878 | K68: 0.03141921864 | L68: 0.009525389905 | M68: 0.02137262379 | O68: 0.0446 | P68: 58.5654085 | Q68: 0.07870427508 | R68: 0.06901714451 | S68: 0.01718182412 | T68: 0.008358977629 | U68: 0.004364436808 | V68: 0.004167799912 | W68: 0.0001747352798 | X68: 0.003237064235
A69: 66 | B69: =Investment!AQ72 -> 1993 | C69: =Investment!AT72/100 -> 0.1008 | D69: =Investment!AR72/100 -> 0.0706 | E69: =E68*(1+C69) -> 521.6221184 | F69: 0.1493129125 | G69: 0.1275853899 | H69: 0.07902100637 | I69: 0.02788946467 | J69: 0.0008321904217 | K69: 0.04568040426 | L69: 0.002883979299 | M69: 0.007111438172 | O69: =IF(D69>O$3,O$3,IF(D69<O$2,O$2,D69)) -> 0.0706 | P69: =P68*(1+O69) -> 62.70012634 | Q69: 0.07384925841 | R69: 0.07266974721 | S69: 0.01232680745 | T69: 0.003503960958 | U69: 0.0004905798641 | V69: 0.007820402617 | W69: 0.003477867426 | X69: 0.0004155384704
A70: 67 | B70: =Investment!AQ73 -> 1994 | C70: =Investment!AT73/100 -> 0.0132 | D70: =Investment!AR73/100 -> -0.0154 | E70: 528.5075304 | F70: 0.1438438358 | G70: 0.1458056801 | H70: 0.07355192959 | I70: 0.04610975488 | J70: 0.006301267199 | K70: 0.06390069447 | L70: 0.008353056077 | M70: 0.01110885204 | O70: 0 | P70: 62.70012634 | Q70: 0.07235733332 | R70: 0.07266974721 | S70: 0.01083488236 | T70: 0.002012035862 | U70: 0.00198250496 | V70: 0.007820402617 | W70: 0.003477867426 | X70: 0.0004155384704
A71: 68 | B71: =Investment!AQ74 -> 1995 | C71: =Investment!AT74/100 -> 0.3758 | D71: =Investment!AR74/100 -> 0.3411 | E71: 727.1206603 | F71: 0.1488247873 | G71: 0.1459641475 | H71: 0.07853288108 | I71: 0.04626822221 | J71: 0.001320315712 | K71: 0.0640591618 | L71: 0.003372104589 | M71: 0.01126731937 | O71: 0.12 | P71: 70.2241415 | Q71: 0.07235733332 | R71: 0.07266974721 | S71: 0.01083488236 | T71: 0.002012035862 | U71: 0.00198250496 | V71: 0.007820402617 | W71: 0.003477867426 | X71: 0.0004155384704
A72: 69 | B72: =Investment!AQ75 -> 1996 | C72: =Investment!AT75/100 -> 0.2296 | D72: =Investment!AR75/100 -> 0.2026 | E72: 894.0675639 | F72: 0.1529118118 | G72: 0.145555609 | H72: 0.08261990561 | I72: 0.04585968374 | J72: 0.002766708816 | K72: 0.06365062333 | L72: 0.0007149199387 | M72: 0.0108587809 | O72: 0.12 | P72: 78.65103847 | Q72: 0.07235733332 | R72: 0.07266974721 | S72: 0.01083488236 | T72: 0.002012035862 | U72: 0.00198250496 | V72: 0.007820402617 | W72: 0.003477867426 | X72: 0.0004155384704
A73: 70 | B73: =Investment!AQ76 -> 1997 | C73: =Investment!AT76/100 -> 0.3336 | D73: =Investment!AR76/100 -> 0.3101 | E73: 1192.328503 | F73: 0.1805283932 | G73: 0.1665017032 | H73: 0.110236487 | I73: 0.06680577794 | J73: 0.0303832902 | K73: 0.08459671753 | L73: 0.02833150133 | M73: 0.0318048751 | O73: 0.12 | P73: 88.08916309 | Q73: 0.08240188436 | R73: 0.07876521329 | S73: 0.0208794334 | T73: 0.01205658691 | U73: 0.008062046086 | V73: 0.0139158687 | W73: 0.009573333506 | X73: 0.006511004551
A74: 71 | B74: =Investment!AQ77 -> 1998 | C74: =Investment!AT77/100 -> 0.2858 | D74: =Investment!AR77/100 -> 0.2667 | E74: 1533.095989 | F74: 0.1921206186 | G74: 0.1775092779 | H74: 0.1218287124 | I74: 0.07781335261 | J74: 0.04197551559 | K74: 0.0956042922 | L74: 0.03992372671 | M74: 0.04281244977 | O74: 0.12 | P74: 98.65986266 | Q74: 0.08240188436 | R74: 0.08432349931 | S74: 0.0208794334 | T74: 0.01205658691 | U74: 0.008062046086 | V74: 0.01947415471 | W74: 0.01513161952 | X74: 0.01206929057
A75: 72 | B75: =Investment!AQ78 -> 1999 | C75: =Investment!AT78/100 -> 0.2104 | D75: =Investment!AR78/100 -> 0.1953 | E75: 1855.659386 | F75: 0.1821097821 | G75: 0.1787884273 | H75: 0.111817876 | I75: 0.07909250205 | J75: 0.03196467918 | K75: 0.09688344164 | L75: 0.0299128903 | M75: 0.04409159921 | O75: 0.12 | P75: 110.4990462 | Q75: 0.08240188436 | R75: 0.08432349931 | S75: 0.0208794334 | T75: 0.01205658691 | U75: 0.008062046086 | V75: 0.01947415471 | W75: 0.01513161952 | X75: 0.01206929057
A76: 73 | B76: =Investment!AQ79 -> 2000 | C76: =Investment!AT79/100 -> -0.091 | D76: =Investment!AR79/100 -> -0.1014 | E76: 1686.794381 | F76: 0.1745778908 | G76: 0.1568215718 | H76: 0.1042859846 | I76: 0.05712564654 | J76: 0.02443278785 | K76: 0.07491658613 | L76: 0.02238099897 | M76: 0.0221247437 | O76: 0 | P76: 110.4990462 | Q76: 0.08240188436 | R76: 0.07819662663 | S76: 0.0208794334 | T76: 0.01205658691 | U76: 0.008062046086 | V76: 0.01334728204 | W76: 0.009004746845 | X76: 0.00594241789
A77: 74 | B77: =Investment!AQ80 -> 2001 | C77: =Investment!AT80/100 -> -0.1189 | D77: =Investment!AR80/100 -> -0.1304 | E77: 1486.234529 | F77: 0.1293622728 | G77: 0.1524202904 | H77: 0.05907036662 | I77: 0.05272436517 | J77: 0.02078283017 | K77: 0.07051530476 | L77: 0.02283461905 | M77: 0.01772346233 | O77: 0 | P77: 110.4990462 | Q77: 0.07020441283 | R77: 0.07819662663 | S77: 0.008681961865 | T77: 0.0001408846277 | U77: 0.004135425449 | V77: 0.01334728204 | W77: 0.009004746845 | X77: 0.00594241789
A78: 75 | B78: =Investment!AQ81 -> 2002 | C78: =Investment!AT81/100 -> -0.221 | D78: =Investment!AR81/100 -> -0.2337 | E78: 1157.776698 | F78: =(E78/E68)^(1/10)-1 -> 0.09344696304 | G78: 0.1270677446 | H78: 0.02315505687 | I78: 0.02737181932 | J78: 0.05669813993 | K78: 0.04516275891 | L78: 0.05874992881 | M78: 0.007629083522 | O78: 0 | P78: 110.4990462 | Q78: =(P78/P68)^(1/10)-1 -> 0.0655448521 | R78: 0.0721043733 | S78: 0.004022401134 | T78: 0.004800445359 | U78: 0.008794986181 | V78: 0.007255028704 | W78: 0.002912493513 | X78: 0.0001498354426
A79: 76 | B79: =Investment!AQ82 -> 2003 | C79: =Investment!AT82/100 -> 0.2868 | D79: =Investment!AR82/100 -> 0.2638 | E79: 1489.827056 | F79: 0.1106519561 | G79: 0.1298170801 | H79: 0.04036004994 | I79: 0.03012115485 | J79: 0.03949314685 | K79: 0.04791209444 | L79: 0.04154493573 | M79: 0.004879747993 | O79: 0.12 | P79: 123.7589317 | Q79: 0.07036232343 | R79: 0.0721043733 | S79: 0.00883987247 | T79: 1.702597659e-05 | U79: 0.003977514845 | V79: 0.007255028704 | W79: 0.002912493513 | X79: 0.0001498354426
A80: 77 | B80: =Investment!AQ83 -> 2004 | C80: =Investment!AT83/100 -> 0.1088 | D80: =Investment!AR83/100 -> 0.0899 | E80: 1651.920239 | F80: 0.1207113995 | G80: 0.1322185416 | H80: 0.05041949332 | I80: 0.03252261636 | J80: 0.02943370347 | K80: 0.05031355594 | L80: 0.03148549235 | M80: 0.002478286485 | O80: 0.0899 | P80: 134.8848597 | Q80: 0.07961641427 | R80: 0.07598075216 | S80: 0.01809396331 | T80: 0.009271116815 | U80: 0.005276575994 | V80: 0.01113140756 | W80: 0.006788872369 | X80: 0.003726543414
A81: 78 | B81: =Investment!AQ84 -> 2005 | C81: =Investment!AT84/100 -> 0.0491 | D81: =Investment!AR84/100 -> 0.03 | E81: 1733.029523 | F81: 0.09073675415 | G81: 0.1194040466 | H81: 0.02044484798 | I81: 0.01970812134 | J81: 0.05940834881 | K81: 0.03749906092 | L81: 0.06146013769 | M81: 0.0152927815 | O81: 0.03 | P81: 138.9314055 | Q81: 0.0706102551 | R81: 0.07148343813 | S81: 0.009087804142 | T81: 0.000264957649 | U81: 0.003729583173 | V81: 0.006634093533 | W81: 0.002291558342 | X81: 0.0007707706138
A82: 79 | B82: =Investment!AQ85 -> 2006 | C82: =Investment!AT85/100 -> 0.1579 | D82: =Investment!AR85/100 -> 0.1362 | E82: 2006.674885 | F82: 0.08420315713 | G82: 0.1180297967 | H82: 0.01391125096 | I82: 0.0183338714 | J82: 0.06594194583 | K82: 0.03612481099 | L82: 0.06799373471 | M82: 0.01666703144 | O82: 0.12 | P82: 155.6031741 | Q82: 0.0706102551 | R82: 0.07148343813 | S82: 0.009087804142 | T82: 0.000264957649 | U82: 0.003729583173 | V82: 0.006634093533 | W82: 0.002291558342 | X82: 0.0007707706138
A83: 80 | B83: =Investment!AQ86 -> 2007 | C83: =Investment!AT86/100 -> 0.0549 | D83: =Investment!AR86/100 -> 0.0353 | E83: 2116.841336 | F83: 0.05908114951 | G83: 0.1181571301 | H83: 0.01121075666 | I83: 0.01846120487 | J83: 0.09106395346 | K83: 0.03625214446 | L83: 0.07069422901 | M83: 0.01653969797 | O83: 0.0353 | P83: 161.0959662 | Q83: 0.0622242654 | R83: 0.07226561377 | S83: 0.0007018144366 | T83: 0.008121032056 | U83: 0.01211557288 | V83: 0.007416269178 | W83: 0.003073733987 | X83: 1.140503139e-05
A84: 81 | B84: =Investment!AQ87 -> 2008 | C84: =Investment!AT87/100 -> -0.37 | D84: =Investment!AR87/100 -> -0.3849 | E84: 1333.610042 | F84: -0.01384325174 | G84: 0.08425909852 | H84: 0.08413515791 | I84: 0.01543682674 | J84: 0.1639883547 | K84: 0.002354112852 | L84: 0.002230172239 | M84: 0.05043772958 | O84: 0 | P84: 161.0959662 | Q84: 0.0502541733 | R84: 0.0662068731 | S84: 0.01126827766 | T84: 0.02009112415 | U84: 0.02408566497 | V84: 0.001357528502 | W84: 0.002985006689 | X84: 0.006047335645
A85: 82 | B85: =Investment!AQ88 -> 2009 | C85: =Investment!AT88/100 -> 0.2646 | D85: =Investment!AR88/100 -> 0.2345 | E85: 1686.483259 | F85: -0.00951391837 | G85: 0.08206436323 | H85: 0.07980582454 | I85: 0.01763156203 | J85: 0.1596590213 | K85: 0.0001593775581 | L85: 0.002099161131 | M85: 0.05263246487 | O85: 0.12 | P85: 180.4274821 | Q85: 0.0502541733 | R85: 0.0662068731 | S85: 0.01126827766 | T85: 0.02009112415 | U85: 0.02408566497 | V85: 0.001357528502 | W85: 0.002985006689 | X85: 0.006047335645
A86: 83 | B86: =Investment!AQ89 -> 2010 | C86: =Investment!AT89/100 -> 0.1506 | D86: =Investment!AR89/100 -> 0.1278 | E86: 1940.467637 | F86: 0.0141085069 | G86: 0.09139792518 | H86: 0.05618339927 | I86: 0.008298000079 | J86: 0.1360365961 | K86: 0.00949293951 | L86: 0.0257215864 | M86: 0.04329890292 | O86: 0.12 | P86: 202.07878 | Q86: 0.0622242654 | R86: 0.07226561377 | S86: 0.0007018144366 | T86: 0.008121032056 | U86: 0.01211557288 | V86: 0.007416269178 | W86: 0.003073733987 | X86: 1.140503139e-05
A87: 84 | B87: =Investment!AQ90 -> 2011 | C87: =Investment!AT90/100 -> 0.0211 | D87: =Investment!AR90/100 -> 0 | E87: 1981.411504 | F87: 0.02917382753 | G87: 0.07810486177 | H87: 0.04111807864 | I87: 0.02159106349 | J87: 0.1209712754 | K87: 0.003800123906 | L87: 0.04078690703 | M87: 0.05659196633 | O87: 0 | P87: 202.07878 | Q87: 0.0622242654 | R87: 0.0662068731 | S87: 0.0007018144366 | T87: 0.008121032056 | U87: 0.01211557288 | V87: 0.001357528502 | W87: 0.002985006689 | X87: 0.006047335645
A88: 85 | B88: =Investment!AQ91 -> 2012 | C88: =Investment!AT91/100 -> 0.16 | D88: =Investment!AR91/100 -> 0.1341 | E88: 2298.437345 | F88: 0.07097858401 | G88: =(E88/E68)^(1/20)-1 -> 0.08215446225 | H88: =ABS(F88-AC$14) -> 0.0006866778421 | I88: =ABS(G88-AC$15) -> 0.01754146301 | J88: =ABS(F88-AC$16) -> 0.07916651895 | K88: =ABS(G88-AC$6) -> 0.000249476578 | L88: =ABS(H88-AC$6) -> 0.08121830783 | M88: =ABS(G88-AC$8) -> 0.05254236585 | O88: 0.12 | P88: 226.3282336 | Q88: 0.07433078457 | R88: =(P88/P68)^(1/20)-1 -> 0.06992879994 | S88: =ABS(Q88-AF$14) -> 0.01280833361 | T88: =ABS(Q88-AF$15) -> 0.003985487115 | U88: =ABS(Q88-AF$16) -> 9.053706798e-06 | V88: =ABS(R88-AF$6) -> 0.005079455346 | W88: =ABS(R88-AF$7) -> 0.0007369201549 | X88: =ABS(R88-AF$8) -> 0.002325408801
A89: 86 | B89: =Investment!AQ92 -> 2013 | C89: =Investment!AT92/100 -> 0.3239 | D89: =Investment!AR92/100 -> 0.296 | E89: 3042.901201 | F89: 0.07402700057 | G89: 0.09218596819 | H89: 0.003735094404 | I89: 0.007509957073 | J89: 0.07611810239 | K89: 0.01028098252 | L89: 0.07816989127 | M89: 0.04251085991 | O89: 0.12 | P89: 253.4876216 | Q89: 0.07433078457 | R89: 0.07234471823 | S89: 0.01280833361 | T89: 0.003985487115 | U89: 9.053706798e-06 | V89: 0.00749537363 | W89: 0.003152838438 | X89: 9.050948259e-05
A90: 87 | B90: =Investment!AQ93 -> 2014 | C90: =Investment!AT93/100 -> 0.1369 | D90: =Investment!AR93/100 -> 0.1139 | E90: 3459.474376 | F90: 0.07671832473 | G90: 0.09849465204 | H90: 0.006426418559 | I90: 0.001201273219 | J90: 0.07342677823 | K90: 0.01658966637 | L90: 0.07547856711 | M90: 0.03620217606 | O90: 0.1139 | P90: 282.3598617 | Q90: 0.07667338011 | R90: 0.07814389298 | S90: 0.01515092915 | T90: 0.006328082656 | U90: 0.002333541834 | V90: 0.01329454839 | W90: 0.008952013195 | X90: 0.00588968424
A91: 88 | B91: =Investment!AQ94 -> 2015 | C91: =Investment!AT94/100 -> 0.0138 | D91: =Investment!AR94/100 -> -0.0073 | E91: 3507.215122 | F91: 0.07303933982 | G91: 0.08185185982 | H91: 0.002747433651 | I91: 0.01784406544 | J91: 0.07710576314 | K91: 5.312585271e-05 | L91: 0.07915755202 | M91: 0.05284496828 | O91: 0 | P91: 282.3598617 | Q91: 0.0734955615 | R91: 0.07205193762 | S91: 0.01197311054 | T91: 0.003150264043 | U91: 0.0008442767787 | V91: 0.007202593021 | W91: 0.002860057829 | X91: 0.000202271126
A92: 89 | B92: =Investment!AQ95 -> 2016 | C92: =Investment!AT95/100 -> 0.1196 | D92: =Investment!AR95/100 -> 0.0954 | E92: 3926.678051 | F92: 0.06943607012 | G92: 0.07679429957 | H92: 0.0008558360477 | I92: 0.02290162569 | J92: 0.08070903284 | K92: 0.005110686104 | L92: 0.08104914962 | M92: 0.05790252853 | O92: 0.0954 | P92: 309.2969925 | Q92: 0.07111407085 | R92: 0.07086213335 | S92: 0.00959161989 | T92: 0.0007687733968 | U92: 0.003225767425 | V92: 0.006012788753 | W92: 0.001670253561 | X92: 0.001392075394
A93: 90 | B93: =Investment!AQ96 -> 2017 | C93: =Investment!AT96/100 -> 0.2183 | D93: =Investment!AR96/100 -> 0.1942 | E93: =E92*(1+C93) -> 4783.871869 | F93: =(E93/E83)^(1/10)-1 -> 0.0849484986 | G93: =(E93/E73)^(1/20)-1 -> 0.07193679994 | H93: 0.01465659243 | I93: 0.02775912533 | J93: 0.06519660436 | K93: 0.009968185736 | L93: 0.06724839324 | M93: 0.06276002817 | O93: 0.12 | P93: =P92*(1+O93) -> 346.4126316 | Q93: =(P93/P83)^(1/10)-1 -> 0.0795702433 | R93: 0.07086213335 | S93: 0.01804779234 | T93: 0.009224945849 | U93: 0.005230405028 | V93: 0.006012788753 | W93: 0.001670253561 | X93: 0.001392075394
A94: 91 | B94: =Investment!AQ97 -> 2018 | C94: =Investment!AT97/100 -> -0.0438 | D94: =Investment!AR97/100 -> -0.0624 | E94: =E93*(1+C94) -> 4574.338281 | F94: =(E94/E84)^(1/10)-1 -> 0.1311753748 | G94: =(E94/E74)^(1/20)-1 -> 0.05618001748 | H94: 0.06088346862 | I94: 0.04351590778 | J94: 0.01896972817 | K94: 0.02572496819 | L94: 0.02102151705 | M94: 0.07851681062 | O94: 0 | P94: =P93*(1+O94) -> 346.4126316 | Q94: =(P94/P84)^(1/10)-1 -> 0.0795702433 | R94: 0.06481132291 | S94: 0.01804779234 | T94: 0.009224945849 | U94: 0.005230405028 | V94: 3.802168323e-05 | W94: 0.004380556875 | X94: 0.00744288583
A95: 92 | B95: =Investment!AQ98 -> 2019 | C95: =Investment!AT98/100 -> 0.3149 | D95: =Investment!AR98/100 -> 0.2888 | E95: 6014.797406 | F95: 0.135596112 | G95: 0.06056218266 | H95: 0.06530420583 | I95: 0.0391337426 | J95: 0.01454899097 | K95: 0.02134280301 | L95: 0.01660077984 | M95: 0.07413464544 | O95: 0.12 | P95: 387.9821474 | Q95: 0.0795702433 | R95: 0.06481132291 | S95: 0.01804779234 | T95: 0.009224945849 | U95: 0.005230405028 | V95: 3.802168323e-05 | W95: 0.004380556875 | X95: 0.00744288583
A96: 93 | B96: =Investment!AQ99 -> 2020 | C96: =Investment!AT99/100 -> 0.184 | D96: =Investment!AR99/100 -> 0.1626 | E96: =E95*(1+C96) -> 7121.520129 | F96: =(E96/E86)^(1/10)-1 -> 0.1388502729 | G96: =(E96/E76)^(1/20)-1 -> 0.0746709961 | H96: =ABS(F96-AC$14) -> 0.06855836675 | I96: =ABS(G96-AC$15) -> 0.02502492916 | J96: =ABS(F96-AC$16) -> 0.01129483004 | K96: =ABS(G96-AC$6) -> 0.007233989574 | L96: =ABS(H96-AC$6) -> 0.01334661892 | M96: =ABS(G96-AC$8) -> 0.060025832 | O96: 0.12 | P96: =P95*(1+O96) -> 434.5400051 | Q96: =(P96/P86)^(1/10)-1 -> 0.0795702433 | R96: =(P96/P76)^(1/20)-1 -> 0.07086213335

Sheet 2Brothers
D2: A Tale of Two Brothers | K2: Initial Investment === > | O2: =F15 -> 80000 | P2: Fixed
K3: Apply historical stock return, put starting year | O3: 1991 | P3: =IF(G21<1900,G21/100,8%) -> 0.08
D4: change the green cells for illustration | K4: Years | L4: Year | M4: Return | N4: Brother B | O4: Value | P4: Value
B5: Our story begins with two brothers, both earn $70K per year | K5: 1 | L5: =O3 -> 1991 | M5: =IF($O$3>0,LOOKUP($O$3+K5-1,Investment!AQ7:AQ107,Investment!AT7:AT107)/100,11%) -> 0.3047 | N5: =((B$17+B$18) * MAX(MIN(12, E$24-(K5-1)*12),0)- F$17 * MAX(MIN(12, I$24-(K5-1)*12),0) )/12 -> -440.916779 | O5: =FV((1+M5)^(1/12)-1,12,-N5,-O2) -> 98381.53085 | P5: =FV((1+P$3)^(1/12)-1,12,-N5,-O2) -> 80917.69082
B6: Each is buying a hourse of a value of: | H6: 800000 | K6: 2 | L6: =L5+1 -> 1992 | M6: =IF($O$3>0,LOOKUP($O$3+K6-1,Investment!AQ8:AQ108,Investment!AT8:AT108)/100,11%) -> 0.0762 | N6: -440.916779 | O6: =FV((1+M6)^(1/12)-1,12,-N6,-O5) -> 100404.8639 | P6: =FV((1+P$3)^(1/12)-1,12,-N6,-P5) -> 81908.79691
B7: Eash has available down payment: | H7: 200000 | K7: 3 | L7: =L6+1 -> 1993 | M7: =IF($O$3>0,LOOKUP($O$3+K7-1,Investment!AQ9:AQ109,Investment!AT9:AT109)/100,11%) -> 0.1008 | N7: -440.916779 | O7: 104994.4666 | P7: =FV((1+P$3)^(1/12)-1,12,-N7,-P6) -> 82979.19149
B8: Each tax bracket (Fed + State) is: | H8: 0.33 | K8: 4 | L8: 1994 | M8: =IF($O$3>0,LOOKUP($O$3+K8-1,Investment!AQ10:AQ110,Investment!AT10:AT110)/100,11%) -> 0.0132 | N8: -440.916779 | O8: 101057.4574 | P8: 84135.21763
B9: Brother A | F9: Brother B | K9: 5 | L9: 1995 | M9: =IF($O$3>0,LOOKUP($O$3+K9-1,Investment!AQ11:AQ111,Investment!AT11:AT111)/100,11%) -> 0.3758 | N9: -440.916779 | O9: 132884.9242 | P9: 85383.72586
B10: Believes "The Old Way" ---Paying Off Mortgage As Soon As Possible | F10: Believes "The New Way"---Carring a big, long mortgage and invest the cash flow surplus | K10: 6 | L10: 1996 | M10: =IF($O$3>0,LOOKUP($O$3+K10-1,Investment!AQ12:AQ112,Investment!AT12:AT112)/100,11%) -> 0.2296 | N10: -440.916779 | O10: 157568.2756 | P10: 86732.11476
K11: 7 | L11: 1997 | M11: =IF($O$3>0,LOOKUP($O$3+K11-1,Investment!AQ13:AQ113,Investment!AT13:AT113)/100,11%) -> 0.3336 | N11: -440.916779 | O11: 204075.0489 | P11: 88188.37476
B12: 30 | C12: years Mortgage | F12: 30 | G12: years Mortgage | K12: 8 | L12: 1998 | M12: =IF($O$3>0,LOOKUP($O$3+K12-1,Investment!AQ14:AQ114,Investment!AT14:AT114)/100,11%) -> 0.2858 | N12: -440.916779 | O12: 256447.0437 | P12: 89761.13556
B13: 0.0275 | C13: interest rate | F13: 0.029 | G13: interest rate (ARM/FIXED) | K13: 9 | L13: 1999 | M13: =IF($O$3>0,LOOKUP($O$3+K13-1,Investment!AQ15:AQ115,Investment!AT15:AT115)/100,11%) -> 0.2104 | N13: -440.916779 | O13: 304619.852 | P13: 91459.71723
B14: =H7 -> 200000 | C14: big down payment | F14: 120000 | G14: down payment | K14: 10 | L14: 2000 | M14: =IF($O$3>0,LOOKUP($O$3+K14-1,Investment!AQ16:AQ116,Investment!AT16:AT116)/100,11%) -> -0.091 | N14: -440.916779 | O14: 271832.924 | P14: 93294.18543
B15: =H7-B14 -> 0 | C15: left to invest | F15: =H7-F14 -> 80000 | G15: left to invest | K15: 11 | L15: 2001 | M15: =IF($O$3>0,LOOKUP($O$3+K15-1,Investment!AQ17:AQ117,Investment!AT17:AT117)/100,11%) -> -0.1189 | N15: -440.916779 | O15: 234515.9138 | P15: 95275.41109
B16: 0 | C16: PMI | F16: 60 | G16: PMI (mortgage insurance) | K16: 12 | L16: 2002 | M16: =IF($O$3>0,LOOKUP($O$3+K16-1,Investment!AQ18:AQ118,Investment!AT18:AT118)/100,11%) -> -0.221 | N16: -440.916779 | O16: 177956.9713 | P16: 97415.1348
B17: =PMT(B13/12,B12*12,-(H6-B14),0)+B16 -> 2449.447086 | C17: monthly payment | F17: =PMT(F13/12,F12*12,-(H6-F14),0) +F16 -> 2890.363865 | G17: monthly payment | K17: 13 | L17: 2003 | M17: =IF($O$3>0,LOOKUP($O$3+K17-1,Investment!AQ19:AQ119,Investment!AT19:AT119)/100,11%) -> 0.2868 | N17: -440.916779 | O17: 223040.1588 | P17: 99726.03641
B18: 0 | C18: monthly additional payment to accelerate paying off mortgage | F18: =B17-F17+B18 -> -440.916779 | G18: monthly investment (payment difference and additions) | K18: 14 | L18: 2004 | M18: =IF($O$3>0,LOOKUP($O$3+K18-1,Investment!AQ20:AQ120,Investment!AT20:AT120)/100,11%) -> 0.1088 | N18: -440.916779 | O18: 241757.0012 | P18: 102221.8101
K19: 15 | L19: 2005 | M19: =IF($O$3>0,LOOKUP($O$3+K19-1,Investment!AQ21:AQ121,Investment!AT21:AT121)/100,11%) -> 0.0491 | N19: -440.916779 | O19: 248218.2295 | P19: 104917.2458
B20: Investment return: enter an assuming return such as 8, or apply historical return | K20: 16 | L20: 2006 | M20: =IF($O$3>0,LOOKUP($O$3+K20-1,Investment!AQ22:AQ122,Investment!AT22:AT122)/100,11%) -> 0.1579 | N20: -440.916779 | O20: 281748.1049 | P20: 107828.3163
B21: put a starting year, such as 1990 | G21: 8 | H21: =IF(G21<1900, "%", "--" & G21+29) -> % | K21: 17 | L21: 2007 | M21: =IF($O$3>0,LOOKUP($O$3+K21-1,Investment!AQ23:AQ123,Investment!AT23:AT123)/100,11%) -> 0.0549 | N21: -440.916779 | O21: 291793.2243 | P21: 110972.2724
B22: Who made the right decision? | K22: 18 | L22: 2008 | M22: =IF($O$3>0,LOOKUP($O$3+K22-1,Investment!AQ24:AQ124,Investment!AT24:AT124)/100,11%) -> -0.37 | N22: -440.916779 | O22: 179510.5815 | P22: 114367.745
K23: 19 | L23: 2009 | M23: =IF($O$3>0,LOOKUP($O$3+K23-1,Investment!AQ25:AQ125,Investment!AT25:AT125)/100,11%) -> 0.2646 | N23: -440.916779 | O23: 221103.5866 | P23: 118034.8554
B24: Months to pay off mortgage: | E24: =ROUND(NPER(B13/12,B17+B18,-H6+B14),1) -> 360 | I24: =ROUNDUP(NPER(F13/12,F17,-H6+F14),1) -> 348.3 | K24: 20 | L24: 2010 | M24: =IF($O$3>0,LOOKUP($O$3+K24-1,Investment!AQ26:AQ126,Investment!AT26:AT126)/100,11%) -> 0.1506 | N24: -440.916779 | O24: 248754.8215 | P24: 121995.3347
B25: After 5 Years | K25: 21 | L25: 2011 | M25: =IF($O$3>0,LOOKUP($O$3+K25-1,Investment!AQ27:AQ127,Investment!AT27:AT127)/100,11%) -> 0.0211 | N25: -440.916779 | O25: 248661.5714 | P25: 126272.6523
B26: Brother A | F26: Brother B | K26: 22 | L26: 2012 | M26: =IF($O$3>0,LOOKUP($O$3+K26-1,Investment!AQ28:AQ128,Investment!AT28:AT128)/100,11%) -> 0.16 | N26: -440.916779 | O26: 282778.8086 | P26: 130892.1553
B27: Received tax saving: | E27: =((B17+B18)*MIN(60,E24) -(H6-B14-FV(B13/12,60,B17+B18,-(H6-B14))))*H8 -> 25720.92909 | F27: Received tax saving: | I27: =(F17*MIN(60,I24)-(H6-F14-FV(F13/12,60,F17,-(H6-F14))))*H8 -> 30692.56815 | K27: 23 | L27: 2013 | M27: =IF($O$3>0,LOOKUP($O$3+K27-1,Investment!AQ29:AQ129,Investment!AT29:AT129)/100,11%) -> 0.3239 | N27: -440.916779 | O27: 368334.1322 | P27: 135881.2185
B28: Investment | E28: 0 | F28: Investment return: | I28: =IF(G21<1900,FV((1+G21/100)^(1/12)-1,60,-F18,-F15),O9) -> 85383.72586 | K28: 24 | L28: 2014 | M28: =IF($O$3>0,LOOKUP($O$3+K28-1,Investment!AQ30:AQ130,Investment!AT30:AT130)/100,11%) -> 0.1369 | N28: -440.916779 | O28: 413143.7741 | P28: 141269.4068
B29: Equity in house: | E29: =H6-FV(B13/12,60,B17+B18,-(H6-B14)) -> 269024.6158 | F29: Equity in house: | I29: =H6-FV(F13/12,60,F17,-(H6-F14),0) -> 200414.0496 | K29: 25 | L29: 2015 | M29: =IF($O$3>0,LOOKUP($O$3+K29-1,Investment!AQ31:AQ131,Investment!AT31:AT131)/100,11%) -> 0.0138 | N29: -440.916779 | O29: 413520.774 | P29: 147088.6502
B30: What if both brothers suddenly lose their jobs? | K30: 26 | L30: 2016 | M30: =IF($O$3>0,LOOKUP($O$3+K30-1,Investment!AQ32:AQ132,Investment!AT32:AT132)/100,11%) -> 0.1196 | N30: -440.916779 | O30: 457402.737 | P30: 153373.4331
B31: --- Has no savings to get through the crisis | F31: =I28 -> 85383.72586 | G31: in savings helps to tide him over | K31: 27 | L31: 2017 | M31: =IF($O$3>0,LOOKUP($O$3+K31-1,Investment!AQ33:AQ133,Investment!AT33:AT133)/100,11%) -> 0.2183 | N31: -440.916779 | O31: 551452.2276 | P31: 160160.9985
B32: --- Can't get a new loan because he has no job | F32: --- No need a loan | K32: 28 | L32: 2018 | M32: =IF($O$3>0,LOOKUP($O$3+K32-1,Investment!AQ34:AQ134,Investment!AT34:AT134)/100,11%) -> -0.0438 | N32: -440.916779 | O32: 522114.6945 | P32: 167491.5692
B33: --- Must sell his house or face fore-closure | F33: --- Can easily make mortgage payment using investment savings | K33: 29 | L33: 2019 | M33: =IF($O$3>0,LOOKUP($O$3+K33-1,Investment!AQ35:AQ135,Investment!AT35:AT135)/100,11%) -> 0.3149 | N33: -440.916779 | O33: 680511.6635 | P33: 175408.5856
B34: --- Must sell at a discount and pay realtor commissions (~6%) | F34: --- Has no reason to panic, E34remember: "Cash is King!" | K34: 30 | L34: 2020 | M34: =IF($O$3>0,LOOKUP($O$3+K34-1,Investment!AQ36:AQ136,Investment!AT36:AT136)/100,11%) -> 0.184 | N34: 2377.187989 | O34: 836584.4511 | P34: 218998.958
B35: How ironic: Brother “A”, who never wanted a mortgage in the first place, is now in financial jeopardy because he was trying to get rid of his loan too quickly!
B37: After 15 Years
B38: Brother A | F38: Brother B
B39: Received tax saving: | E39: =((B17+B18)*MIN(180,E24)-(H6-B14-FV(B13/12,180,B17+B18,-(H6-B14))))*H8 -> 66608.82294 | F39: Received tax saving: | I39: =(F17*MIN(180,I24)-(H6-F14-FV(F13/12,180,F17,-(H6-F14))))*H8 -> 79027.05614
B40: Investment | E40: =MAX(FV((1+G21)^(1/12)-1,180-NPER(B13/12,B17+B18,-H6+B14,0),-B17-B18,0),0) -> 0 | F40: Investment return: | I40: =IF(G21<1900,FV((1+G21/100)^(1/12)-1,180,-F18,-F15),O19) -> 104917.2458
B41: Remain mortgage balance: | E41: =MAX(FV(B13/12,180,B17+B18,-H6+B14),0) -> 360944.4425 | F41: Remain mortgage balance: | I41: =MAX(FV(F13/12,180,F17,-H6+F14),0) -> 399210.432
B42: Pay off the mortgage and has cash: | E42: =E40-E41 -> -360944.4425 | F42: Can pay off the mortgage and still has cash: | I42: =I40-I41 -> -294293.1862
B43: After paying off the mortgage, invest the monthly payment | F43: Invest the monthly difference and additions from year 1
B44: "The New Way" will make brother B more in savings and investing: | H44: =I42-E42+I39-E39 -> 79069.4895
B46: Year 16-30: Both Stop Investment, Brother B withdraw money from Investment account to pay mortgage
B48: After 30 Years
B49: Brother A | F49: Brother B
B50: Received tax saving: | E50: =(MIN(E24,360)*(B17+B18)-(H6-B14))*H8 -> 92994.31382 | F50: Received tax saving: | I50: =(F17*MIN(360,I24)-H6+F14)*H8 -> 107815.5323
B51: Investment | E51: 0 | F51: Investment return: | I51: =IF(G21<1900,FV((1+G21/100)^(1/12)-1,180,IF(B12=15,F17,-F18),-I40),O34) -> 183958.9633
B52: Remain mortgage balance: | E52: 0 | F52: Remain mortgage balance: | I52: 0
B53: Pay off the mortgage and has cash: | E53: 0 | F53: Pay off the mortgage and has cash: | I53: =I51-I52 -> 183958.9633
B54: After paying off the mortgage, invest the monthly payment | F54: Invest the monthly difference and additions from year 1
B55: "The New Way" will make brother B more in savings and investing: | H55: =I53-E53+I50-E50 -> 198780.1817

Sheet InvHouse
A2: Should You Go For Investing in A House or Investing in MF?
A3: Current Property Price: | D3: 300000 | E3: Monthly Rent Income: | G3: 1200 | H3: Loan Balance: | K3: 225000 | L3: Income Tax Bracket: | N3: 0.3 | Q3: Should You Accelerate To Pay Off Mortgage | W3: Loan Balance | Y3: 500000
A4: Property Appreciation: | D4: 0.03 | E4: Yearly Maintain Cost* | G4: 0.01 | H4: Loan Interest Rate: | K4: 0.05 | L4: Capital Gain Tax: | N4: 0.15 | Q4: Interest rate | S4: 0.045 | T4: Monthly payment | V4: =PMT(S4/12,S5*12,-Y3,0) -> 2533.426549 | W4: Investment return | Y4: 0.12
A5: Property Tax: | D5: 0.0057 | E5: Rent/fee Increase/yr: | G5: 0.02 | H5: Tax saving: | I5: Years to Pay Off Loan: | K5: 30 | L5: IUL Cap: | N5: 0.12 | Q5: Term (years) | S5: 30 | T5: Monthly addition | V5: 100 | W5: Tax bracket | Y5: 0.33
A6: Selling Cost: | D6: 0.05 | E6: Yearly depreciation: | G6: 8000 | H6: 0.24 | I6: Mortgage Montly Payment: | K6: =PMT(K4/12,K5*12,-K3,0) -> 1207.848652 | L6: IUL Floor: | N6: 0 | R6: A: Monthly scheduled payment only, invest additions
B7: Invest in the property | J7: Invest down payment + draw monthly income | R7: B: Pay additional to accelerate pay off the mortgage
A8: Year | B8: Monthly | G8: Loan Balance | H8: Property Value | I8: Net value after sell5 | J8: Fixed return6 | K8: Start year | L8: SP500 | M8: With | N8: IUL cost9 | R8: Loan Balance | T8: A: Invest monthly addition | U8: A-B | V8: Tax Saving on Interest | Y8: Total A-B
B9: Rent | C9: Cost1 | D9: Income2 | E9: Tax saving3 | F9: Net income4 | J9: 0.07 | K9: 1988 | L9: Historical7 | M9: Cap/Floor8 | N9: -0.01 | Q9: Years | U9: Not include tax saving | Y9: (invest + tax saving)
A10: 1 | B10: =G3 -> 1200 | C10: =K$6+H10/(1+D$4)*(D$5+G$4)/12 -> 1600.348652 | D10: =B10-C10 -> -400.3486518 | E10: =((K$6*12-(K$3-G10))*N$3+G$6*H$6)/12 -> 439.3652948 | F10: =D10+E10 -> 39.01664307 | G10: =FV(K$4/12,12*A10,K$6,-K$3,0) -> 221680.428 | H10: =D3*(1+D4) -> 309000 | I10: =H10*(1-D$6)-G10-(H10-D$3)*N$4-G$6*A10*MAX(H$6,N$3) -> 68119.57203 | J10: =FV((1+J$9)^(1/12)-1,12,F10,-(D3-K3),0) -> 79766.96237 | K10: =LOOKUP(K$9+A10-1,Investment!AG$7:AG$99,Investment!AH$7:AH$99) -> 0.1654 | L10: =FV((1+K10)^(1/12)-1,12,F10,-(D3-K3),0) -> 86902.28738 | M10: =FV((1+IF(K10>N$5,N$5,IF(K10<N$6,N$6,K10)))^(1/12)-1,12,F10,-(D3-K3),0) -> 83506.57611 | N10: =FV((1+IF(K10>N$5,N$5,IF(K10<N$6,N$6,K10))+N$9)^(1/12)-1,12,F10,-(D3-K3),0) -> 82758.63992 | R10: A | S10: B | V10: A | W10: B | X10: Invest A-B
A11: 2 | B11: =B10*(1+G$5) -> 1224 | C11: 1612.123652 | D11: =B11-C11 -> -388.1236518 | E11: =((K$6*12-(G10-G11))*N$3+G$6*H$6)/12 -> 435.1194047 | F11: =D11+E11 -> 46.99575294 | G11: 218191.0203 | H11: =H10*(1+D$4) -> 318270 | I11: =H11*(1-D$6)-G11-(H11-D$3)*N$4-G$6*A11*MAX(H$6,N$3) -> 76624.97966 | J11: =FV((1+J$9)^(1/12)-1,12,F11,-J10,0) -> 84768.82834 | K11: =LOOKUP(K$9+A11-1,Investment!AG$7:AG$99,Investment!AH$7:AH$99) -> 0.3148 | L11: =FV((1+K11)^(1/12)-1,12,F11,-L10,0) -> 113617.8258 | M11: =FV((1+IF(K11>N$5,N$5,IF(K11<N$6,N$6,K11)))^(1/12)-1,12,F11,-M10,0) -> 92933.03355 | N11: =FV((1+IF(K11>N$5,N$5,IF(K11<N$6,N$6,K11))+N$9)^(1/12)-1,12,F11,-N10,0) -> 91270.24449 | Q11: 1 | R11: =FV(S$4/12,Q11*12,V$4,-Y$3) -> 491933.8665 | S11: =FV(S$4/12,Q11*12,V$4+V$5,-Y$3) -> 490708.8045 | T11: =FV((1+Y$4)^(1/12)-1,Q11*12,-V$5,0) -> 1264.649791 | U11: =S11-R11+T11 -> 39.58778975 | V11: =(V4*12-Y3+R11)*Y5 -> 7370.545093 | W11: =((V4+V5)*12-Y3+S11)*Y5 -> 7362.274633 | X11: =(V11-W11) -> 8.270460357 | Y11: =U11+X11 -> 47.85825011
A12: 3 | B12: =B11*(1+G$5) -> 1248.48 | C12: 1624.251902 | D12: -375.7719018 | E12: =((K$6*12-(G11-G12))*N$3+G$6*H$6)/12 -> 430.6562868 | F12: 54.88438502 | G12: 214523.088 | H12: 327818.1 | I12: 85531.39201 | J12: 90023.16133 | K12: =LOOKUP(K$9+A12-1,Investment!AG$7:AG$99,Investment!AH$7:AH$99) -> -0.0306 | L12: 109491.7965 | M12: 92274.42093 | N12: 89701.95355 | Q12: 2 | R12: 483497.1763 | S12: 480990.7732 | T12: 2681.057557 | U12: =S12-R12+T12 -> 174.6544204 | V12: =(V$4*12-R11+R12)*Y$5 -> 7248.261363 | W12: =((V$4+V$5)*12-S11+S12)*Y$5 -> 7221.418788 | X12: =X11*(1+Y$4)+V12-W12 -> 36.10549018 | Y12: =U12+X12 -> 210.7599106
A13: 4 | B13: =B12*(1+G$5) -> 1273.4496 | C13: 1636.743999 | D13: -363.2943993 | E13: 425.9648273 | F13: 62.67042801 | G13: 210667.4973 | H13: 337652.643 | I13: 94854.61714 | J13: 95548.90411 | K13: =LOOKUP(K$9+A13-1,Investment!AG$7:AG$99,Investment!AH$7:AH$99) -> 0.3023 | L13: 141739.886 | M13: 102554.79 | N13: 98779.92199 | Q13: 3 | R13: 474672.906 | S13: 470826.2972 | T13: 4267.434254 | U13: 420.8253954 | V13: 7120.359939 | W13: 7074.09205 | X13: 86.70603747 | Y13: 507.5314329
A14: 5 | B14: 1298.918592 | C14: 1649.61086 | D14: -350.6922677 | E14: 421.0333438 | F14: 70.3410761 | G14: 206614.6472 | H14: 347782.2223 | I14: 104611.1306 | J14: 101366.484 | K14: =LOOKUP(K$9+A14-1,Investment!AG$7:AG$99,Investment!AH$7:AH$99) -> 0.0749 | L14: 151483.5114 | M14: 109363.4517 | N14: 104321.8228 | Q14: 4 | R14: 465443.2503 | S14: 460194.8669 | T14: 6044.176156 | U14: 795.7927577 | V14: 6986.582746 | W14: 6919.997148 | X14: 163.6963599 | Y14: 959.4891175
A15: 6 | B15: 1324.896964 | C15: 1662.863726 | D15: -337.9667621 | E15: 415.8495563 | F15: 77.88279417 | G15: 202354.4456 | H15: 358215.689 | I15: 114818.1055 | J15: 107497.9257 | K15: =LOOKUP(K$9+A15-1,Investment!AG$7:AG$99,Investment!AH$7:AH$99) -> 0.0997 | L15: 165609.8497 | M15: 119290.42 | N15: 112707.0692 | Q15: 5 | R15: 455789.5858 | S15: 449075.0306 | T15: 8034.127085 | U15: 1319.571871 | V15: 6846.659852 | W15: 6758.823152 | X15: 271.1766224 | Y15: 1590.748493
A16: 7 | B16: 1351.394903 | C16: 1676.514178 | D16: -325.119275 | E16: 410.4005563 | F16: 85.28128128 | G16: 197876.2841 | H16: 368962.1596 | I16: 125493.4436 | J16: 113966.9729 | K16: =LOOKUP(K$9+A16-1,Investment!AG$7:AG$99,Investment!AH$7:AH$99) -> 0.0133 | L16: 166782.8618 | M16: 119847.3838 | N16: 112054.0802 | Q16: 6 | R16: 445692.4337 | S16: 437444.351 | T16: 10262.87213 | U16: 2014.789419 | V16: 6700.308925 | W16: 6590.244852 | X16: 413.7818897 | Y16: 2428.571309
A17: 8 | B17: 1378.422801 | C17: 1690.574144 | D17: -312.1513428 | E17: 404.6727752 | F17: 92.52143243 | G17: 193169.0112 | H17: 380031.0244 | I17: 136655.8083 | J17: 120799.2182 | K17: =LOOKUP(K$9+A17-1,Investment!AG$7:AG$99,Investment!AH$7:AH$99) -> 0.372 | L17: 227537.3221 | M17: 133058.9977 | N17: 123214.8509 | Q17: 7 | R17: 435131.4201 | S17: 425279.3599 | T17: 12759.06657 | U17: 2907.006388 | V17: 6547.234662 | W17: 6413.922094 | X17: 596.748284 | Y17: 3503.754672
A18: 9 | B18: 1405.991257 | C18: 1705.055909 | D18: -299.0646515 | E18: 398.6519499 | F18: 99.58729842 | G18: 188220.9054 | H18: 391431.9551 | I18: 148324.6587 | J18: 128022.2431 | K18: =LOOKUP(K$9+A18-1,Investment!AG$7:AG$99,Investment!AH$7:AH$99) -> 0.2382 | L18: 280416.2246 | M18: 147766.6469 | N18: 135514.3217 | Q18: 8 | R18: 424085.2354 | S18: 412555.5113 | T18: 15554.80435 | U18: 4025.080245 | V18: 6387.128194 | W18: 6229.499099 | X18: 825.9871725 | Y18: 4851.067417
A19: 10 | B19: 1434.111082 | C19: 1719.972126 | D19: -285.8610441 | E19: 392.3230878 | F19: 106.4620437 | G19: 183019.6451 | H19: 403174.9138 | I19: 160520.2859 | J19: 135665.7684 | K19: =LOOKUP(K$9+A19-1,Investment!AG$7:AG$99,Investment!AH$7:AH$99) -> 0.3186 | L19: 368302.0396 | M19: 164152.2725 | N19: 149080.1565 | Q19: 9 | R19: 412531.591 | S19: 399247.1314 | T19: 18686.03066 | U19: 5401.571049 | V19: 6219.666463 | W19: 6036.603745 | X19: 1108.168351 | Y19: 6509.7394
A20: 11 | B20: 1462.793304 | C20: 1735.335831 | D20: -272.5425267 | E20: 385.6704291 | F20: 113.1279024 | G20: 177552.2784 | H20: 415270.1612 | I20: 173263.8505 | J20: 143761.8151 | K20: =LOOKUP(K$9+A20-1,Investment!AG$7:AG$99,Investment!AH$7:AH$99) -> 0.2834 | L20: 471152.906 | M20: 182419.8734 | N20: 164054.2859 | Q20: 10 | R20: 400447.1741 | S20: 385327.3667 | T20: 22193.00414 | U20: 7073.196768 | V20: 6044.511569 | W20: 5834.846811 | X20: 1450.813311 | Y20: 8524.010079
A21: 12 | B21: 1492.04917 | C21: 1751.160446 | D21: -259.111276 | E21: 378.6774077 | F21: 119.5661318 | G21: 171805.1909 | H21: 427728.2661 | I21: 186577.4219 | J21: 152344.878 | K21: =LOOKUP(K$9+A21-1,Investment!AG$7:AG$99,Investment!AH$7:AH$99) -> 0.2089 | L21: 568009.2817 | M21: 202798.1654 | N21: 180594.489 | Q21: 11 | R21: 387807.6013 | S21: 370768.1306 | T21: 26120.81442 | U21: 9081.343748 | V21: 5861.31009 | W21: 5623.821199 | X21: 1862.3998 | Y21: 10943.74355
A22: 13 | B22: 1521.890153 | C22: 1767.4598 | D22: -245.5696464 | E22: 371.3266101 | F22: 125.7569637 | G22: 165764.0715 | H22: 440560.114 | I22: 200484.0197 | J22: 161452.1108 | K22: =LOOKUP(K$9+A22-1,Investment!AG$7:AG$99,Investment!AH$7:AH$99) -> -0.0903 | L22: 515272.4843 | M22: 201289.0818 | N22: 177286.3898 | Q22: 12 | R22: 374587.3686 | S22: 355540.0456 | T22: 30519.96194 | U22: 11472.63897 | V22: 5669.692367 | W22: 5403.101108 | X22: 2352.479036 | Y22: 13825.118
A23: 14 | B23: 1552.327957 | C23: 1784.248134 | D23: -231.9201778 | E23: 363.5997318 | F23: 131.679554 | G23: 159413.877 | H23: 453776.9175 | I23: 215007.657 | J23: 171123.5266 | K23: =LOOKUP(K$9+A23-1,Investment!AG$7:AG$99,Investment!AH$7:AH$99) -> -0.1185 | L23: 452720.3164 | M23: 199708.9272 | N23: 173940.6267 | Q23: 13 | R23: 360759.8008 | S23: 339612.3852 | T23: 35447.00717 | U23: 14299.59151 | V23: 5469.27176 | W23: 5172.241174 | X23: 2931.807106 | Y23: 17231.39861
A24: 15 | B24: 1583.374516 | C24: 1801.540119 | D24: -218.1656031 | E24: 355.4775316 | F24: 137.3119285 | G24: 152738.7944 | H24: 467390.225 | I24: 230173.3856 | J24: 181402.211 | K24: =LOOKUP(K$9+A24-1,Investment!AG$7:AG$99,Investment!AH$7:AH$99) -> -0.2197 | L24: 351783.2648 | M24: 198061.184 | N24: 170561.0432 | Q24: 14 | R24: 346296.997 | S24: 322953.0107 | T24: 40965.29782 | U24: 17621.31158 | V24: 5259.643865 | W24: 4930.775575 | X24: 3612.492249 | Y24: 21233.80383
A25: 16 | B25: 1615.042006 | C25: 1819.350863 | D25: -204.3088568 | E25: 346.9397843 | F25: 142.6309275 | G25: 145722.202 | H25: 481411.9317 | I25: 246007.3434 | J25: 192334.5525 | K25: =LOOKUP(K$9+A25-1,Investment!AG$7:AG$99,Investment!AH$7:AH$99) -> 0.2836 | L25: 449624.9704 | M25: 220024.7444 | N25: 187526.5208 | Q25: 15 | R25: 331169.7745 | S25: 305528.3076 | T25: 47145.78335 | U25: 21504.31646 | V25: 5040.385701 | W25: 4678.217088 | X25: 4408.159932 | Y25: 25912.4764
A26: 17 | B26: 1647.342846 | C26: 1837.695929 | D26: -190.353083 | E26: 337.9652297 | F26: 147.6121466 | G26: 138346.6273 | H26: 495854.2897 | I26: 262536.8044 | J26: 203970.4889 | K26: =LOOKUP(K$9+A26-1,Investment!AG$7:AG$99,Investment!AH$7:AH$99) -> 0.1074 | L26: 496057.7577 | M26: 241798.4675 | N26: 203942.5091 | Q26: 16 | R26: 315347.61 | S26: 287303.1166 | T26: 54067.92714 | U26: 26023.43375 | V26: 4811.054856 | W26: 4414.056109 | X26: 5334.13787 | Y26: 31357.57162
A27: 18 | B27: 1680.289703 | C27: 1856.591347 | D27: -176.3016444 | E27: 328.5315198 | F27: 152.2298753 | G27: 130593.7043 | H27: 510729.9184 | I27: 279790.2304 | J27: 216363.772 | K27: =LOOKUP(K$9+A27-1,Investment!AG$7:AG$99,Investment!AH$7:AH$99) -> 0.0483 | L27: 518150.4934 | M27: 251610.4795 | N27: 209894.8991 | Q27: 17 | R27: 298798.578 | S27: 268240.6635 | T27: 61820.72819 | U27: 31262.81368 | V27: 4571.188591 | W27: 4137.759621 | X27: 6407.663384 | Y27: 37670.47706
A28: 19 | B28: 1713.895497 | C28: 1876.053628 | D28: -162.1581312 | E28: 318.6151633 | F28: 156.4570321 | G28: 122444.127 | H28: 526051.8159 | I28: 297797.3257 | J28: 229572.2515 | K28: =LOOKUP(K$9+A28-1,Investment!AG$7:AG$99,Investment!AH$7:AH$99) -> 0.1561 | L28: 597025.4917 | M28: 279825.1035 | N28: 231012.9804 | Q28: 18 | R28: 281489.2864 | S28: 248302.4847 | T28: 70503.86536 | U28: 37317.06361 | V28: 4320.302912 | W28: 3848.770121 | X28: 7648.115782 | Y28: 44965.17939
A29: 20 | B29: 1748.173407 | C29: 1896.099778 | D29: =B29-C29 -> -147.9263706 | E29: 308.1914673 | F29: 160.2650967 | G29: 113877.6019 | H29: 541833.3704 | I29: 316589.0944 | J29: 243658.1796 | K29: =LOOKUP(K$9+A29-1,Investment!AG$7:AG$99,Investment!AH$7:AH$99) -> 0.0548 | L29: 627771.4688 | M29: 293188.4994 | N29: 239400.0039 | Q29: 19 | R29: 263384.809 | S29: 227448.3494 | T29: 80228.979 | U29: 44292.51937 | V29: 4057.89159 | W29: 3546.504493 | X29: 9077.276772 | Y29: 53369.79615
A30: 21 | B30: 1783.136875 | C30: 1916.747311 | D30: -133.6104362 | E30: 297.2344752 | F30: 163.624039 | G30: 104872.7971 | H30: 558088.3715 | I30: 336197.9001 | J30: 258688.538 | K30: =LOOKUP(K$9+A30-1,Investment!AG$7:AG$99,Investment!AH$7:AH$99) -> -0.3655 | L30: 396713.3576 | M30: 291225.0109 | N30: 235051.531 | Q30: 20 | R30: 244448.6151 | S30: 205636.1788 | T30: 91121.10627 | U30: 52308.66997 | V30: 3783.425136 | W30: 3230.352836 | X30: 10719.62229 | Y30: 63028.29226
A31: 22 | B31: 1818.799613 | C31: 1938.014271 | D31: -119.2146585 | E31: 285.7169026 | F31: 166.5022441 | G31: 95407.28935 | H31: 574831.0227 | I31: 356657.5288 | J31: 274735.3884 | K31: =LOOKUP(K$9+A31-1,Investment!AG$7:AG$99,Investment!AH$7:AH$99) -> 0.2594 | L31: 497395.1102 | M31: 324066.342 | N31: 258810.3364 | Q31: 21 | R31: 224642.4957 | S31: 182821.9609 | T31: 103320.2888 | U31: 61499.75398 | V31: 3496.349743 | W31: 2899.677226 | X31: 12602.64948 | Y31: 74102.40346
A32: 23 | B32: 1855.175605 | C32: 1959.91924 | D32: -104.7436348 | E32: 273.6100691 | F32: 168.8664343 | G32: 85457.5083 | H32: 592075.9533 | I32: 378003.2544 | J32: 291876.2489 | K32: =LOOKUP(K$9+A32-1,Investment!AG$7:AG$99,Investment!AH$7:AH$99) -> 0.1482 | L32: 568948.4586 | M32: 360818.734 | N32: 285152.8367 | Q32: 22 | R32: 203926.4867 | S32: 158959.6618 | T32: 116983.3733 | U32: 72016.54838 | V32: 3196.086155 | W32: 2553.810437 | X32: 14757.24313 | Y32: 86773.79151
A33: 24 | B33: 1892.279117 | C33: 1982.481357 | D33: -90.20224036 | E33: 260.8838271 | F33: 170.6815867 | G33: 74998.67756 | H33: 609838.2319 | I33: 400271.908 | J33: 310194.4976 | K33: =LOOKUP(K$9+A33-1,Investment!AG$7:AG$99,Investment!AH$7:AH$99) -> 0.021 | L33: 578828.5575 | M33: 366328.1086 | N33: 286231.033 | Q33: 23 | R33: 182258.7878 | S33: 134001.1329 | T33: 132286.0278 | U33: 84028.37289 | V33: 2882.028511 | W33: 2192.054589 | X33: 17218.08623 | Y33: 101246.4591
A34: 25 | B34: 1930.124699 | C34: 2005.720339 | D34: -75.59563919 | E34: 247.5064863 | F34: 171.9108471 | G34: 64004.75319 | H34: 628133.3789 | I34: 423501.9499 | J34: 329779.8051 | K34: =LOOKUP(K$9+A34-1,Investment!AG$7:AG$99,Investment!AH$7:AH$99) -> 0.1589 | L34: 668595.2426 | M34: 408113.4115 | N34: 315551.4699 | Q34: 24 | R34: 159595.6787 | S34: 107896.0135 | T34: 149425.001 | U34: 97725.3358 | V34: 2553.543114 | W34: 1813.679739 | X34: 20024.11995 | Y34: 117749.4557
A35: 26 | B35: 1968.727193 | C35: 2029.656489 | D35: -60.92929581 | E35: 233.4447354 | F35: 172.5154396 | G35: 52448.35879 | H35: 646977.3803 | I35: 447733.5454 | J35: 350728.599 | K35: =LOOKUP(K$9+A35-1,Investment!AG$7:AG$99,Investment!AH$7:AH$99) -> 0.3215 | L35: 881188.7115 | M35: 454905.3047 | N35: 348089.5407 | Q35: 25 | R35: 135891.4303 | S35: 80591.62951 | T35: 168620.6509 | U35: 113320.8501 | V35: 2209.967155 | W35: 1417.922416 | X35: 23219.05908 | Y35: 136539.9092
A36: 27 | B36: 2008.101737 | C36: 2054.310724 | D36: -46.20898706 | E36: 218.6635587 | F36: 172.4545716 | G36: 40300.71731 | H36: 666386.7017 | I36: 473008.644 | J36: 373144.5621 | K36: =LOOKUP(K$9+A36-1,Investment!AG$7:AG$99,Investment!AH$7:AH$99) -> 0.1352 | L36: 998130.6686 | M36: 507312.9949 | N36: 384207.5659 | Q36: 26 | R36: 111098.2128 | S36: 52032.88689 | T36: 190119.7788 | U36: 131054.4529 | V36: 1850.607377 | W36: 1003.98407 | X36: 26851.96948 | Y36: 157906.4223
A37: 28 | B37: 2048.263772 | C37: 2079.704586 | D37: -31.44081449 | E37: 203.1261489 | F37: 171.6853344 | G37: 27531.57944 | H37: 686378.3027 | I37: 499371.0627 | J37: 397139.166 | K37: =LOOKUP(K$9+A37-1,Investment!AG$7:AG$99,Investment!AH$7:AH$99) -> 0.0138 | L37: 1009831.649 | M37: 512240.6915 | N37: 383603.7449 | Q37: 27 | R37: 85165.99929 | S37: 22162.16063 | T37: 214198.802 | U37: 151194.9634 | V37: 1474.738673 | W37: 571.0294689 | X37: 30977.91502 | Y37: 182172.8784
A38: 29 | B38: 2089.229047 | C38: 2105.860265 | D38: -16.6312171 | E38: 186.7938157 | F38: 170.1625986 | G38: 14109.14825 | H38: 706969.6518 | I38: 526866.5732 | J38: 422832.2441 | K38: =LOOKUP(K$9+A38-1,Investment!AG$7:AG$99,Investment!AH$7:AH$99) -> 0.1174 | L38: 1126236.261 | M38: 570228.1253 | N38: 422662.172 | Q38: 28 | R38: 58042.46442 | S38: -9080.821563 | T38: 241167.308 | U38: 174044.0221 | V38: 1081.602627 | W38: 118.1850093 | X38: 35658.68244 | Y38: 209702.7045
A39: 30 | B39: 2131.013628 | C39: 2132.800613 | D39: -1.786984529 | E39: 169.6258893 | F39: 167.8389048 | G39: -1.746229827e-09 | H39: 728178.7414 | I39: 555542.9931 | J39: 450352.6056 | K39: =LOOKUP(K$9+A39-1,Investment!AG$7:AG$99,Investment!AH$7:AH$99) -> 0.2183 | L39: 1369885.234 | M39: 636532.9259 | N39: 467041.3145 | Q39: 29 | R39: 29672.8791 | S39: -41759.1009 | T39: 271372.0348 | U39: 199940.0548 | V39: 670.4059795 | W39: -355.4630455 | X39: 40963.59336 | Y39: 240903.6482
A40: 31 | B40: 2173.633901 | C40: =0+H40/(1+D$4)*(D$5+G$4)/12 -> 952.7005199 | D40: 1220.933381 | E40: 0 | F40: 1220.933381 | G40: 0 | H40: 750024.1036 | I40: =H40*(1-D$6)-G40-(H40-D$3)*N$4-G$6*30*MAX(H$6,N$3) -> 573019.2829 | J40: 466761.77 | K40: =LOOKUP(K$9+A40-1,Investment!AG$7:AG$99,Investment!AH$7:AH$99) -> -0.0438 | L40: 1295529.562 | M40: 621881.7254 | N40: 447786.974 | Q40: 30 | R40: 1.862645149e-08 | S40: -75938.61467 | T40: 305201.3288 | U40: 229262.7141 | V40: 240.3190302 | W40: -850.8704092 | X40: 46970.41401 | Y40: 276233.1281
A41: 32 | B41: 2217.106579 | C41: 981.2815355 | D41: 1235.825043 | E41: 0 | F41: 1235.825043 | G41: 0 | H41: 772524.8267 | I41: =H41*(1-D$6)-G41-(H41-D$3)*N$4-G$6*30*MAX(H$6,N$3) -> 591019.8614 | J41: 484135.2126 | K41: =LOOKUP(K$9+A41-1,Investment!AG$7:AG$99,Investment!AH$7:AH$99) -> 0.3149 | L41: 1686627.197 | M41: 680878.6736 | N41: 481480.0521
A42: 33 | B42: 2261.448711 | C42: 1010.719982 | D42: 1250.728729 | E42: 0 | F42: 1250.728729 | G42: 0 | H42: 795700.5715 | I42: 609560.4572 | J42: 502540.2842 | K42: =LOOKUP(K$9+A42-1,Investment!AG$7:AG$99,Investment!AH$7:AH$99) -> 0.184 | L42: 1980730.7 | M42: 746766.7761 | N42: 518691.6778
A43: 34 | B43: 2306.677685 | C43: 1041.041581 | D43: 1265.636104 | E43: 0 | F43: 1265.636104 | G43: 0 | H43: =H42*(1+D$4) -> 819571.5887 | I43: 628657.2709 | J43: =FV((1+J$9)^(1/12)-1,12,F43,-J42,0) -> 522049.1531 | K43: =LOOKUP(K$9+A43-1,Investment!AG$7:AG$99,Investment!AH$7:AH$99) -> 0.184 | L43: =FV((1+K43)^(1/12)-1,12,F43,-L42,0) -> 2328755.733 | M43: =FV((1+IF(K43>N$5,N$5,IF(K43<N$6,N$6,K43)))^(1/12)-1,12,F43,-M42,0) -> 820372.9249 | N43: =FV((1+IF(K43>N$5,N$5,IF(K43<N$6,N$6,K43))+N$9)^(1/12)-1,12,F43,-N42,0) -> 559808.8447
A44: 35 | B44: 2352.811238 | C44: 1072.272828 | D44: 1280.53841 | E44: 0 | F44: 1280.53841 | G44: 0 | H44: 844158.7363 | I44: 648326.989 | J44: 542739.1477 | K44: =LOOKUP(K$9+A44-1,Investment!AG$7:AG$99,Investment!AH$7:AH$99) -> 0.184 | L44: 2740623.922 | M44: 902623.3496 | N44: 605261.2263
A45: 36 | B45: 2399.867463 | C45: 1104.441013 | D45: 1295.42645 | E45: 0 | F45: 1295.42645 | G45: 0 | H45: 869483.4984 | I45: 668586.7987 | J45: 564693.1237 | K45: =LOOKUP(K$9+A45-1,Investment!AG$7:AG$99,Investment!AH$7:AH$99) -> 0.184 | L45: 3228082.595 | M45: 994555.5437 | N45: 655525.8758
A46: 37 | B46: 2447.864812 | C46: 1137.574244 | D46: 1310.290569 | E46: 0 | F46: 1310.290569 | G46: 0 | H46: 895568.0034 | I46: 689454.4027 | J46: 587999.8558 | K46: =LOOKUP(K$9+A46-1,Investment!AG$7:AG$99,Investment!AH$7:AH$99) -> 0.184 | L46: 3805040.709 | M46: 1097331.622 | N46: 711132.4439
A47: 38 | B47: 2496.822109 | C47: 1171.701471 | D47: 1325.120638 | E47: 0 | F47: 1325.120638 | G47: 0 | H47: 922435.0435 | I47: 710948.0348 | J47: 612754.4584 | K47: =LOOKUP(K$9+A47-1,Investment!AG$7:AG$99,Investment!AH$7:AH$99) -> 0.184 | L47: 4487966.606 | M47: 1212253.281 | N47: 772668.9706
A48: 39 | B48: 2546.758551 | C48: 1206.852515 | D48: 1339.906036 | E48: 0 | F48: 1339.906036 | G48: 0 | H48: 950108.0948 | I48: 733086.4758 | J48: 639058.8357 | K48: =LOOKUP(K$9+A48-1,Investment!AG$7:AG$99,Investment!AH$7:AH$99) -> 0.184 | L48: 5296358.936 | M48: 1340778.556 | N48: 840788.3138
A49: 40 | B49: 2597.693722 | C49: 1243.058091 | D49: 1354.635631 | E49: 0 | F49: 1354.635631 | G49: 0 | H49: 978611.3376 | I49: 755889.0701 | J49: 667022.1625 | K49: =LOOKUP(K$9+A49-1,Investment!AG$7:AG$99,Investment!AH$7:AH$99) -> 0.184 | L49: 6253304.247 | M49: 1484540.586 | N49: 916215.286
A50: 41 | B50: 2649.647596 | C50: 1280.349833 | D50: 1369.297763 | E50: 0 | F50: 1369.297763 | G50: 0 | H50: 1007969.678 | I50: 779375.7422 | J50: 696761.4007 | K50: =LOOKUP(K$9+A50-1,Investment!AG$7:AG$99,Investment!AH$7:AH$99) -> 0.184 | L50: 7386137.165 | M50: 1645368.635 | N50: 999754.5761
A51: 42 | B51: 2702.640548 | C51: 1318.760328 | D51: 1383.88022 | E51: 0 | F51: 1383.88022 | G51: 0 | H51: 1038208.768 | I51: 803567.0144 | J51: 728401.8504 | K51: =LOOKUP(K$9+A51-1,Investment!AG$7:AG$99,Investment!AH$7:AH$99) -> 0.184 | L51: 8727222.042 | M51: 1825311.633 | N51: 1092299.543
A52: 43 | B52: 2756.693359 | C52: 1358.323138 | D52: 1398.370221 | E52: 0 | F52: 1398.370221 | G52: 0 | H52: 1069355.031 | I52: 828484.0249 | J52: 762077.7411 | K52: =LOOKUP(K$9+A52-1,Investment!AG$7:AG$99,Investment!AH$7:AH$99) -> 0.184 | L52: 10314878.44 | M52: 2026664.543 | N52: 1194841.974
A53: 44 | B53: 2811.827226 | C53: 1399.072832 | D53: 1412.754394 | E53: 0 | F53: 1412.754394 | G53: 0 | H53: 1101435.682 | I53: 854148.5456 | J53: 797932.8638 | K53: =LOOKUP(K$9+A53-1,Investment!AG$7:AG$99,Investment!AH$7:AH$99) -> 0.184 | L53: 12194476.89 | M53: 2251997.893 | N53: 1308482.924
A54: 45 | B54: 2868.063771 | C54: 1441.045017 | D54: 1427.018754 | E54: 0 | F54: 1427.018754 | G54: 0 | H54: 1134478.752 | I54: 880583.002 | J54: 836121.248 | K54: =LOOKUP(K$9+A54-1,Investment!AG$7:AG$99,Investment!AH$7:AH$99) -> 0.184 | L54: 14419736.29 | M54: 2504190.85 | N54: 1434444.739
A55: 46 | B55: 2925.425046 | C55: 1484.276368 | D55: 1441.148679 | E55: 0 | F55: 1441.148679 | G55: 0 | H55: 1168513.115 | I55: 907810.4921 | J55: 876807.8865 | K55: =LOOKUP(K$9+A55-1,Investment!AG$7:AG$99,Investment!AH$7:AH$99) -> 0.184 | L55: 17054260 | M55: 2786468.268 | N55: 1574084.408
A56: 47 | B56: 2983.933547 | C56: 1528.804659 | D56: 1455.128888 | E56: 0 | F56: 1455.128888 | G56: 0 | H56: 1203568.509 | I56: 935854.8068 | J56: 920169.5106 | K56: =LOOKUP(K$9+A56-1,Investment!AG$7:AG$99,Investment!AH$7:AH$99) -> 0.184 | L56: 20173354.58 | M56: 3102442.176 | N56: 1728908.378
A57: 48 | B57: 3043.612218 | C57: 1574.668799 | D57: 1468.94342 | E57: 0 | F57: 1468.94342 | G57: 0 | H57: 1239675.564 | I57: 964740.451 | J57: 966395.4203 | K57: =LOOKUP(K$9+A57-1,Investment!AG$7:AG$99,Investment!AH$7:AH$99) -> 0.184 | L57: 23866183.25 | M57: 3456158.247 | N57: 1900589.01
A58: 49 | B58: 3104.484463 | C58: 1621.908863 | D58: 1482.5756 | E58: 0 | F58: 1482.5756 | G58: 0 | H58: 1276865.831 | I58: 994492.6646 | J58: 1015688.373 | K58: =LOOKUP(K$9+A58-1,Investment!AG$7:AG$99,Investment!AH$7:AH$99) -> 0.184 | L58: 28238315.42 | M58: 3852147.848 | N58: 2090982.834
A59: 50 | B59: 3166.574152 | C59: 1670.566128 | D59: 1496.008023 | E59: 0 | F59: 1496.008023 | G59: 0 | H59: 1315171.806 | I59: 1025137.444 | J59: 1068265.535 | K59: =LOOKUP(K$9+A59-1,Investment!AG$7:AG$99,Investment!AH$7:AH$99) -> 0.184 | L59: 33414745.55 | M59: 4295486.327 | N59: 2302150.816
A61: 1: cost = mortgage payment + property tax + maintainence
A62: 2: income = rent - cost
A63: 3: tax saving = mortgage interest * income tax + depreciation * tax saving for depreciation
A64: 4: net incomde = income + tax saving
A65: 5: net value after selling = property value - selling cost - mortgage balance - capital gain tax - recapture of depreciation
A66: 6: fixed return = invest (down payment + draw monthly income) assuming fixed return
A67: 7: invest (down payment + draw monthly income) using historical SP 500 return
A68: 8: invest (down payment + draw monthly income) using historical SP 500 return with CAP and Floor
A69: 9: invest (down payment + draw monthly income) using historical (SP 500 return with CAP and Floor - IUL cost)

Sheet EquityFunds
B1: Family | C1: Fund Name | D1: Net Assets ($MM) | E1: Rtn 20 Yr Load Qtr End | F1: Return 20 Yr | G1: 1$ =>
A2: 1 | B2: Shelton Greater China Fund | C2: Shelton Greater China Fund | D2: 8.5 | E2: -2.59 | F2: -3.02 | G2: 0.541556279 | H2: <==(1+F2/100)^20
A3: 2 | B3: Commonwealth Funds | C3: Commonwealth Japan | D3: 5.2 | E3: -2.24 | F3: -2.11 | G3: 0.652779594
A4: 3 | B4: AIG Funds | C4: AIG Intl Dividend Strat C | D4: 13.8 | E4: -0.57 | F4: -0.58 | G4: 0.890174555
A5: 4 | B5: Guggenheim Investments Funds | C5: Rydex Precious Metal Investor | D5: 41.3 | E5: -0.17 | F5: -0.11 | G5: 0.97822839 | J5: Return 20 Yr
A6: 5 | B6: AIG Funds | C6: AIG Intl Dividend Strat A | D6: 72.8 | E6: -0.23 | F6: 0.06 | G6: 1.012068647 | I6: Min | J6: =QUARTILE(F$2:F$3220,0) -> -3.02
A7: 6 | B7: Pioneer Investments | C7: Pioneer International Equity C | D7: 10.4 | E7: 0.59 | F7: 0.48 | G7: 1.100506287 | I7: 0.25 | J7: =QUARTILE(F$2:F$3220,1) -> 5.72
A8: 7 | B8: Saratoga Advantage Trust | C8: Saratoga Adv Tr Intl Equity I | D8: 4.7 | E8: 0.73 | F8: 0.74 | G8: 1.158881234 | I8: 0.5 | J8: =QUARTILE(F$2:F$3220,2) -> 6.99
A9: 8 | B9: Fidelity Select Funds | C9: Fidelity Select Consumer Finance | D9: 95.2 | E9: 1.16 | F9: 0.84 | G9: 1.182106867 | I9: 0.75 | J9: =QUARTILE(F$2:F$3220,3) -> 8.41
A10: 9 | B10: Calvert Group | C10: Calvert International Equity C | D10: 12.1 | E10: 0.93 | F10: 0.92 | G10: 1.201005059 | I10: Max | J10: =QUARTILE(F$2:F$3220,4) -> 15.11
A11: 10 | B11: Harbor Funds | C11: Harbor International Growth Inv | D11: 15.4 | E11: 1.24 | F11: 1.21 | G11: 1.271945482
A12: 11 | B12: Sit Mutual Funds | C12: Sit International Growth Fund | D12: 23.4 | E12: 1.33 | F12: 1.25 | G12: 1.282037232
A13: 12 | B13: Harbor Funds | C13: Harbor International Growth Admin | D13: 0.5 | E13: 1.33 | F13: 1.3 | G13: 1.294758907 | I13: Data up to 2017-08-31
A14: 13 | B14: US Global Investors Funds | C14: US Global Inv Gold & PMetals Fd | D14: 97 | E14: 1.38 | F14: 1.3 | G14: 1.294758907
A15: 14 | B15: Legg Mason Partners Funds | C15: ClearBridge International Value C | D15: 17.7 | E15: 1.39 | F15: 1.42 | G15: 1.325782018
A16: 15 | B16: Pioneer Investments | C16: Pioneer International Equity A | D16: 76.3 | E16: 1.23 | F16: 1.42 | G16: 1.325782018
A17: 16 | B17: Harbor Funds | C17: Harbor International Growth Inst | D17: 336.8 | E17: 1.57 | F17: 1.53 | G17: 1.354839106
A18: 17 | B18: Pioneer Investments | C18: Pioneer International Equity Y | D18: 87.8 | E18: 1.7 | F18: 1.6 | G18: 1.373643891
A19: 18 | B19: American Century Investment Funds | C19: American Century Global Gold C | D19: 2.4 | E19: 1.62 | F19: 1.81 | G19: 1.431557343
A20: 19 | B20: Calvert Group | C20: Calvert International Equity A | D20: 126.4 | E20: 1.6 | F20: 1.83 | G20: 1.437192279
A21: 20 | B21: Guinness Atkinson Funds | C21: Guinness Atkinson Asia Focus | D21: 18.1 | E21: 1.75 | F21: 1.84 | G21: 1.440017642
A22: 21 | B22: UTC North American Fund | C22: UTC North American Fund | D22: 43.3 | E22: 2.16 | F22: 1.92 | G22: 1.462811277
A23: 22 | B23: Calvert Group | C23: Calvert International Equity Y | D23: 23 | E23: 2.01 | F23: 1.99 | G23: 1.483036486
A24: 23 | B24: Invesco Investments Funds | C24: Invesco Pacific Growth B | D24: 0.1 | E24: 1.86 | F24: 2.07 | G24: 1.506476271
A25: 24 | B25: Legg Mason Funds | C25: QS International Eq R | D25: 2.9 | E25: 1.91 | F25: 2.1 | G25: 1.515356589
A26: 25 | B26: US Global Investors Funds | C26: US Global Inv World Prec Min | D26: 133.8 | E26: 1.64 | F26: 2.1 | G26: 1.515356589
A27: 26 | B27: Invesco Investments Funds | C27: Invesco Pacific Growth C | D27: 5 | E27: - | F27: 2.12 | G27: 1.521304404
A28: 27 | B28: Fidelity Investments | C28: Fidelity Adv Japan C | D28: 13.4 | E28: 2.19 | F28: 2.15 | G28: 1.530267728
A29: 28 | B29: Legg Mason Partners Funds | C29: ClearBridge International Value A | D29: 136.6 | E29: 1.89 | F29: 2.23 | G29: 1.55441585
A30: 29 | B30: US Global Investors Funds | C30: US Global Inv China Region Opport | D30: 25.2 | E30: 2.24 | F30: 2.23 | G30: 1.55441585
A31: 30 | B31: American Century Investment Funds | C31: American Century Global Gold R | D31: 4.7 | E31: 2.13 | F31: 2.32 | G31: 1.582015118
A32: 31 | B32: Ivy Funds | C32: Ivy Global Growth B | D32: 1.6 | E32: 2.28 | F32: 2.33 | G32: 1.58511028
A33: 32 | B33: Invesco Investments Funds | C33: Invesco Gold and Precious Mtls Iv | D33: 79.2 | E33: 1.87 | F33: 2.41 | G33: 1.610079509
A34: 33 | B34: Ivy Funds | C34: Ivy Global Growth C | D34: 23.9 | E34: 2.39 | F34: 2.44 | G34: 1.619538945
A35: 34 | B35: Deutsche Funds | C35: Deutsche CROCI International C | D35: 65.5 | E35: 2.66 | F35: 2.48 | G35: 1.632233679
A36: 35 | B36: Goldman Sachs Funds | C36: Goldman Sachs Focused Intl Eqty Svc | D36: 0.1 | E36: 2.57 | F36: 2.49 | G36: 1.635422102
A37: 36 | B37: Goldman Sachs Funds | C37: Goldman Sachs Focused Intl Eqty A | D37: 39 | E37: 2.3 | F37: 2.51 | G37: 1.641816706
A38: 37 | B38: Invesco Investments Funds | C38: Invesco Gold and Precious Mtls Y | D38: 49 | E38: 1.98 | F38: 2.52 | G38: 1.645022908
A39: 38 | B39: Touchstone Funds | C39: Touchstone Internatl Value C | D39: 0.2 | E39: 2.49 | F39: 2.52 | G39: 1.645022908
A40: 39 | B40: Wright Funds | C40: Wright Intl Blue Chip Equities | D40: 10.6 | E40: 2.42 | F40: 2.54 | G40: 1.651453167
A41: 40 | B41: American Century Investment Funds | C41: American Century Global Gold A | D41: 8.2 | E41: 2.09 | F41: 2.58 | G41: 1.664385389
A42: 41 | B42: Legg Mason Funds | C42: QS International Eq C | D42: 38.5 | E42: 2.64 | F42: 2.6 | G42: 1.670887521
A43: 42 | B43: Deutsche Funds | C43: Deutsche Gold & Prec Metals Fund C | D43: 8.6 | E43: 2.26 | F43: 2.63 | G43: 1.680685983
A44: 43 | B44: Fidelity Advisor | C44: Fidelity Adv Gold C | D44: 101.1 | E44: 2.44 | F44: 2.63 | G44: 1.680685983
A45: 44 | B45: Fidelity Investments | C45: Fidelity Adv Japan M | D45: 4.4 | E45: 2.49 | F45: 2.63 | G45: 1.680685983
A46: 45 | B46: Columbia Threadneedle Investments | C46: Columbia Select Intl Eqty B | D46: 0.1 | E46: 2.57 | F46: 2.66 | G46: 1.690539017
A47: 46 | B47: Jacob Funds | C47: Jacob Small Cap Growth Inst | D47: 10.7 | E47: 3.09 | F47: 2.67 | G47: 1.693835538
A48: 47 | B48: Columbia Threadneedle Investments | C48: Columbia Select Intl Eqty C | D48: 12.6 | E48: 2.65 | F48: 2.74 | G48: 1.71708276
A49: 48 | B49: Fidelity Investments | C49: Fidelity Adv Japan A | D49: 15.9 | E49: 2.48 | F49: 2.74 | G49: 1.71708276
A50: 49 | B50: Vanguard Funds | C50: Vanguard Pacific Stock Index Inv | D50: 300.8 | E50: 2.49 | F50: 2.77 | G50: 1.727138362
A51: 50 | B51: American Century Investment Funds | C51: American Century Global Gold Inv | D51: 361.6 | E51: 2.64 | F51: 2.83 | G51: 1.747417642
A52: 51 | B52: T. Rowe Price Funds | C52: T Rowe Price Japan | D52: 590.4 | E52: 2.7 | F52: 2.83 | G52: 1.747417642
A53: 52 | B53: Deutsche Funds | C53: Deutsche Emerging Markets Eqty C | D53: 2.7 | E53: 2.6 | F53: 2.85 | G53: 1.754227523
A54: 53 | B54: Goldman Sachs Funds | C54: Goldman Sachs Asia Equity A | D54: 12.8 | E54: 2.32 | F54: 2.85 | G54: 1.754227523
A55: 54 | B55: Invesco Investments Funds | C55: Invesco Pacific Growth A | D55: 72.8 | E55: - | F55: 2.86 | G55: 1.757641911
A56: 55 | B56: SEI Financial Management Corp | C56: SEI Inst Intl International Eqty F | D56: 3693.5 | E56: 2.75 | F56: 2.86 | G56: 1.757641911
A57: 56 | B57: GMO Funds | C57: GMO Alpha Only III | D57: 12.3 | E57: 2.93 | F57: 2.9 | G57: 1.771362699
A58: 57 | B58: American Century Investment Funds | C58: American Century Global Gold I | D58: 15 | E58: 2.74 | F58: 2.93 | G58: 1.781720002
A59: 58 | B59: Icon Funds | C59: ICON Emerging Markets S | D59: 51.3 | E59: 2.68 | F59: 2.93 | G59: 1.781720002
A60: 59 | B60: Legg Mason Funds | C60: QS International Eq A | D60: 10.8 | E60: 2.65 | F60: 2.93 | G60: 1.781720002
A61: 60 | B61: Mellon Funds | C61: BNY Mellon International App Fd Inv | D61: 1.4 | E61: 3.01 | F61: 2.93 | G61: 1.781720002
A62: 61 | B62: Invesco Investments Funds | C62: Invesco Pacific Growth R5 | D62: 0.1 | E62: - | F62: 2.99 | G62: 1.802607455
A63: 62 | B63: Goldman Sachs Funds | C63: Goldman Sachs Focused Intl Eqty I | D63: 109.1 | E63: 3.08 | F63: 3 | G63: 1.806111235
A64: 63 | B64: Fidelity Advisor | C64: Fidelity Adv Gold M | D64: 23.9 | E64: 2.63 | F64: 3.01 | G64: 1.809621483
A65: 64 | B65: Invesco Investments Funds | C65: Invesco Pacific Growth Y | D65: 10.9 | E65: - | F65: 3.11 | G65: 1.845082277
A66: 65 | B66: Legg Mason Funds | C66: QS International Eq FI | D66: 6.3 | E66: 3.17 | F66: 3.14 | G66: 1.855848591
A67: 66 | B67: Fidelity Advisor | C67: Fidelity Adv Gold A | D67: 73.9 | E67: 2.66 | F67: 3.15 | G67: 1.859450605
A68: 67 | B68: AIG Funds | C68: VALIC Company International Eq Idx | D68: 1168.2 | E68: 3.07 | F68: 3.16 | G68: 1.863059261
A69: 68 | B69: American Century Investment Funds | C69: American Century Intl Value C | D69: 4.4 | E69: 3.04 | F69: 3.16 | G69: 1.863059261
A70: 69 | B70: JPMorgan Funds | C70: JPMorgan Intl Opps C | D70: 1.4 | E70: 3.12 | F70: 3.16 | G70: 1.863059261
A71: 70 | B71: Mellon Funds | C71: BNY Mellon International App Fd M | D71: 76.2 | E71: 3.25 | F71: 3.17 | G71: 1.866674569
A72: 71 | B72: Putnam Funds | C72: Putnam Global Natural Resources B | D72: 6.1 | E72: 3.26 | F72: 3.18 | G72: 1.870296541
A73: 72 | B73: Putnam Funds | C73: Putnam Global Natural Resources C | D73: 10.4 | E73: 3.27 | F73: 3.18 | G73: 1.870296541
A74: 73 | B74: Columbia Threadneedle Investments | C74: Columbia Select Intl Eqty R | D74: 1.1 | E74: 3.11 | F74: 3.19 | G74: 1.873925189
A75: 74 | B75: Fidelity Investments | C75: Fidelity Japan Fund | D75: 235.2 | E75: 3.24 | F75: 3.19 | G75: 1.873925189
A76: 75 | B76: Old Westbury Funds | C76: Old Westbury Large Cap Strategies | D76: 16783.5 | E76: 3.1 | F76: 3.19 | G76: 1.873925189
A77: 76 | B77: Fidelity Investments | C77: Fidelity Adv Japan I | D77: 160.2 | E77: 3.25 | F77: 3.2 | G77: 1.877560525
A78: 77 | B78: Deutsche Funds | C78: Deutsche CROCI International A | D78: 139.6 | E78: 3.15 | F78: 3.27 | G78: 1.903196106
A79: 78 | B79: Columbia Threadneedle Investments | C79: Columbia Pacific/Asia C | D79: 1 | E79: 2.99 | F79: 3.28 | G79: 1.906885363
A80: 79 | B80: World Funds | C80: Global Strategic Income A | D80: 12.8 | E80: 3.32 | F80: 3.28 | G80: 1.906885363
A81: 80 | B81: Touchstone Funds | C81: Touchstone Internatl Value A | D81: 3.6 | E81: 2.95 | F81: 3.29 | G81: 1.910581413
A82: 81 | B82: Gabelli Funds LLC | C82: Gabelli Global Rising Inc & Div C | D82: 0.9 | E82: 3.41 | F82: 3.31 | G82: 1.917993941
A83: 82 | B83: US Global Investors Funds | C83: US Global Inv All American Equity | D83: 16.5 | E83: 3.6 | F83: 3.31 | G83: 1.917993941
A84: 83 | B84: Sit Mutual Funds | C84: Sit Developing Mkts Growth Fund | D84: 10.3 | E84: 3.2 | F84: 3.33 | G84: 1.925433784
A85: 84 | B85: Goldman Sachs Funds | C85: Goldman Sachs Asia Equity Inst | D85: 55.6 | E85: 3.14 | F85: 3.39 | G85: 1.94791816
A86: 85 | B86: JPMorgan Funds | C86: JPMorgan International Value C | D86: 22 | E86: 3.27 | F86: 3.39 | G86: 1.94791816
A87: 86 | B87: Deutsche Funds | C87: Deutsche Gold & Prec Metals Fund A | D87: 21.4 | E87: 2.73 | F87: 3.4 | G87: 1.951689723
A88: 87 | B88: Ivy Funds | C88: Ivy Global Growth A | D88: 117.1 | E88: 3.03 | F88: 3.4 | G88: 1.951689723
A89: 88 | B89: Alger Funds | C89: Alger Small Cap Growth Fund B | D89: 5.1 | E89: 3.92 | F89: 3.41 | G89: 1.955468221
A90: 89 | B90: Fidelity Advisor | C90: Fidelity Adv Overseas Fund C | D90: 16.1 | E90: 3.46 | F90: 3.41 | G90: 1.955468221
A91: 90 | B91: Legg Mason Funds | C91: QS International Eq A2 | D91: 0.4 | E91: 3.16 | F91: 3.43 | G91: 1.963046078
A92: 91 | B92: Pioneer Investments | C92: Pioneer Emerging Markets C | D92: 14.3 | E92: 3.28 | F92: 3.43 | G92: 1.963046078
A93: 92 | B93: Putnam Funds | C93: Putnam Global Natural Resources M | D93: 2 | E93: 3.33 | F93: 3.43 | G93: 1.963046078
A94: 93 | B94: Columbia Threadneedle Investments | C94: Columbia Select Intl Eqty T | D94: 1.3 | E94: 3.23 | F94: 3.45 | G94: 1.970651826
A95: 94 | B95: Alliance Bernstein Funds | C95: AB Sustainable Global Thematic B | D95: 9.5 | E95: 4.04 | F95: 3.46 | G95: 1.97446519
A96: 95 | B96: Staar Investment Trust | C96: STAAR AltCat | D96: 2.8 | E96: 3.61 | F96: 3.49 | G96: 1.985947388
A97: 96 | B97: USAA Group | C97: USAA Growth Fund | D97: 1375.2 | E97: 3.92 | F97: 3.49 | G97: 1.985947388
A98: 97 | B98: Alliance Bernstein Funds | C98: AB Sustainable Global Thematic C | D98: 22.7 | E98: 4.09 | F98: 3.51 | G98: 1.993637397
A99: 98 | B99: Columbia Threadneedle Investments | C99: Columbia Select Intl Eqty A | D99: 220.5 | E99: 3.11 | F99: 3.51 | G99: 1.993637397
A100: 99 | B100: Staar Investment Trust | C100: STAAR Inv Trust Lg Comp Stock Fund | D100: 2.7 | E100: 3.75 | F100: 3.52 | G100: 1.997493002
A101: 100 | B101: Touchstone Funds | C101: Touchstone Internatl Value Y | D101: 3.3 | E101: 3.49 | F101: 3.52 | G101: 1.997493002
A102: 101 | B102: JPMorgan Funds | C102: JPMorgan Intl Opps A | D102: 222.5 | E102: 3.2 | F102: 3.53 | G102: 2.00135569
A103: 102 | B103: Eaton Vance Funds | C103: Eaton Vance Greater China Gr C | D103: 12.7 | E103: 3.46 | F103: 3.54 | G103: 2.005225473
A104: 103 | B104: Putnam Funds | C104: Putnam Global Natural Resources R | D104: 8.3 | E104: 3.62 | F104: 3.54 | G104: 2.005225473
A105: 104 | B105: Ivy Funds | C105: Ivy Emerging Markets Equity B | D105: 4.1 | E105: 3.36 | F105: 3.57 | G105: 2.016877518
A106: 105 | B106: Alger Funds | C106: Alger International Growth B | D106: 24.2 | E106: 3.94 | F106: 3.58 | G106: 2.020775806
A107: 106 | B107: Deutsche Funds | C107: Deutsche CROCI International S | D107: 825 | E107: 3.76 | F107: 3.58 | G107: 2.020775806
A108: 107 | B108: Fidelity Advisor | C108: Fidelity Adv Financial Serv C | D108: 90 | E108: 4.02 | F108: 3.6 | G108: 2.028593867
A109: 108 | B109: Fidelity Select Funds | C109: Fidelity Select Envir and Alt Ener | D109: 174.9 | E109: 3.77 | F109: 3.6 | G109: 2.028593867
A110: 109 | B110: Ivy Funds | C110: Ivy Global Growth I | D110: 249.6 | E110: 3.58 | F110: 3.63 | G110: 2.040374856
A111: 110 | B111: Deutsche Funds | C111: Deutsche Gold & Prec Metals Fund S | D111: 71.7 | E111: 3.27 | F111: 3.64 | G111: 2.044316276
A112: 111 | B112: Fidelity Advisor | C112: Fidelity Adv Divers Stk C | D112: 28 | E112: 3.88 | F112: 3.64 | G112: 2.044316276
A113: 112 | B113: Franklin Templeton Investments | C113: Templeton Developing Markets C | D113: 155.8 | E113: 3.54 | F113: 3.64 | G113: 2.044316276
A114: 113 | B114: Legg Mason Funds | C114: QS International Eq I | D114: 24.4 | E114: 3.66 | F114: 3.64 | G114: 2.044316276
A115: 114 | B115: Deutsche Funds | C115: Deutsche Gold & Prec Metals Fund I | D115: 1.8 | E115: 3.29 | F115: 3.66 | G115: 2.052220824
A116: 115 | B116: Ivy Funds | C116: Ivy Global Growth N | D116: 26.8 | E116: 3.6 | F116: 3.66 | G116: 2.052220824
A117: 116 | B117: American Century Investment Funds | C117: American Century Intl Value R | D117: 0.5 | E117: 3.55 | F117: 3.67 | G117: 2.056183978
A118: 117 | B118: Deutsche Funds | C118: Deutsche Emerging Markets Eqty A | D118: 8.5 | E118: 3.11 | F118: 3.67 | G118: 2.056183978
A119: 118 | B119: Fidelity Select Funds | C119: Fidelity Select Gold | D119: 1178.6 | E119: 3.48 | F119: 3.67 | G119: 2.056183978
A120: 119 | B120: BlackRock Funds | C120: BlackRock Emerg Mkt Inv C | D120: 56.8 | E120: 3.52 | F120: 3.68 | G120: 2.060154402
A121: 120 | B121: Columbia Threadneedle Investments | C121: Columbia Select Intl Eqty K | D121: 0.1 | E121: 3.59 | F121: 3.68 | G121: 2.060154402
A122: 121 | B122: Bernstein Funds | C122: Sanford Bernstein T/M Intl | D122: 3442.5 | E122: 3.79 | F122: 3.69 | G122: 2.064132109
A123: 122 | B123: Fidelity Advisor | C123: Fidelity Adv Gold I | D123: 66.7 | E123: 3.5 | F123: 3.69 | G123: 2.064132109
A124: 123 | B124: Putnam Funds | C124: Putnam Global Utilities Fund B | D124: 3.8 | E124: 3.57 | F124: 3.7 | G124: 2.068117111
A125: 124 | B125: Putnam Funds | C125: Putnam Global Utilities Fund C | D125: 4.9 | E125: 3.57 | F125: 3.7 | G125: 2.068117111
A126: 125 | B126: Putnam Funds | C126: Putnam International Value B | D126: 2.2 | E126: 3.81 | F126: 3.7 | G126: 2.068117111
A127: 126 | B127: Victory Funds | C127: Victory RS International A | D127: 17.6 | E127: 3.52 | F127: 3.7 | G127: 2.068117111
A128: 127 | B128: Columbia Threadneedle Investments | C128: Columbia Select Intl Eqty R4 | D128: 0.3 | E128: 3.62 | F128: 3.71 | G128: 2.072109421
A129: 128 | B129: Columbia Threadneedle Investments | C129: Columbia Select Intl Eqty Z | D129: 97.1 | E129: 3.62 | F129: 3.71 | G129: 2.072109421
A130: 129 | B130: Putnam Funds | C130: Putnam International Value C | D130: 6.2 | E130: 3.83 | F130: 3.71 | G130: 2.072109421
A131: 130 | B131: T. Rowe Price Funds | C131: T Rowe Price Intl Stock R | D131: 7.5 | E131: 3.68 | F131: 3.71 | G131: 2.072109421
A132: 131 | B132: Dreyfus Funds | C132: Dreyfus Intl Stock Index Inv | D132: 448.9 | E132: 3.62 | F132: 3.72 | G132: 2.076109052
A133: 132 | B133: MainStay Funds | C133: MainStay Intl Equity B | D133: 6.4 | E133: 3.66 | F133: 3.72 | G133: 2.076109052
A134: 133 | B134: MainStay Funds | C134: MainStay Intl Equity C | D134: 7.5 | E134: 3.66 | F134: 3.72 | G134: 2.076109052
A135: 134 | B135: Putnam Funds | C135: Putnam International Growth B | D135: 3.9 | E135: 3.66 | F135: 3.73 | G135: 2.080116016
A136: 135 | B136: Putnam Funds | C136: Putnam International Growth C | D136: 8 | E136: 3.67 | F136: 3.73 | G136: 2.080116016
A137: 136 | B137: Nationwide Funds | C137: Nationwide Growth R6 | D137: 160.8 | E137: 3.94 | F137: 3.74 | G137: 2.084130327
A138: 137 | B138: SEI Financial Management Corp | C138: SEI Inst Intl Emerging Mkts Eqty F | D138: 1801.3 | E138: 3.51 | F138: 3.74 | G138: 2.084130327
A139: 138 | B139: Columbia Threadneedle Investments | C139: Columbia Select Intl Eqty R5 | D139: 0.2 | E139: 3.66 | F139: 3.75 | G139: 2.088151996
A140: 139 | B140: Prudential-Target Funds | C140: Target International Equity R | D140: 334.6 | E140: 3.72 | F140: 3.77 | G140: 2.096217463
A141: 140 | B141: Columbia Threadneedle Investments | C141: Columbia Select Intl Eqty Y | D141: 9.3 | E141: 3.69 | F141: 3.78 | G141: 2.100261286
A142: 141 | B142: Saratoga Advantage Trust | C142: Saratoga Adv Tr Large Cap Value I | D142: 17.6 | E142: 3.99 | F142: 3.78 | G142: 2.100261286
A143: 142 | B143: JPMorgan Funds | C143: JPMorgan International Value A | D143: 312.7 | E143: 3.39 | F143: 3.79 | G143: 2.10431252
A144: 143 | B144: JPMorgan Funds | C144: JPMorgan Intl Opps I | D144: 57.6 | E144: 3.76 | F144: 3.81 | G144: 2.112437268
A145: 144 | B145: Dreyfus Premier Funds | C145: Dreyfus Sustainable US Equity C | D145: 5.1 | E145: 4.22 | F145: 3.82 | G145: 2.11651081
A146: 145 | B146: Ivy Funds | C146: Ivy Emerging Markets Equity C | D146: 48.5 | E146: 3.62 | F146: 3.83 | G146: 2.120591812
A147: 146 | B147: Victory Funds | C147: Victory RS International Y | D147: 3.5 | E147: 3.94 | F147: 3.83 | G147: 2.120591812
A148: 147 | B148: Macquarie Investment Management | C148: Delaware Intl Value Equity C | D148: 20.5 | E148: 3.79 | F148: 3.84 | G148: 2.12468029
A149: 148 | B149: Morgan Stanley Funds | C149: Morgan Stanley European Eq L | D149: 2.3 | E149: - | F149: 3.86 | G149: 2.132879722
A150: 149 | B150: UBS Asset Management | C150: PACE Intrntl Eq Inve P | D150: 1104.4 | E150: 3.83 | F150: 3.86 | G150: 2.132879722
A151: 150 | B151: Columbia Threadneedle Investments | C151: Columbia Select Global Equity C | D151: 12.6 | E151: 3.97 | F151: 3.88 | G151: 2.141109208
A152: 151 | B152: US Global Investors Funds | C152: US Global Inv Global Resources | D152: 91.7 | E152: 4.15 | F152: 3.88 | G152: 2.141109208
A153: 152 | B153: BlackRock Funds | C153: BlackRock Energy & Resources Inv B | D153: 0.1 | E153: 4.13 | F153: 3.89 | G153: 2.145235254
A154: 153 | B154: BlackRock Funds | C154: BlackRock Energy & Resources Inv C | D154: 25.2 | E154: 4.12 | F154: 3.89 | G154: 2.145235254
A155: 154 | B155: Waddell & Reed Funds | C155: Waddell & Reed Adv Glbl Growth B | D155: 0.5 | E155: 4.06 | F155: 3.89 | G155: 2.145235254
A156: 155 | B156: Russell Funds | C156: Russell Investments Int Dev Mkt E | D156: 4.6 | E156: 3.85 | F156: 3.9 | G156: 2.149368853
A157: 156 | B157: UBS Asset Management | C157: UBS Internatl Sustainable Equity A | D157: 16.6 | E157: 3.51 | F157: 3.9 | G157: 2.149368853
A158: 157 | B158: American Century Investment Funds | C158: American Century Intl Value A | D158: 9.9 | E158: 3.48 | F158: 3.91 | G158: 2.153510018
A159: 158 | B159: Columbia Threadneedle Investments | C159: Columbia Select Global Equity B | D159: 0.1 | E159: 3.99 | F159: 3.91 | G159: 2.153510018
A160: 159 | B160: Deutsche Funds | C160: Deutsche Emerging Markets Eqty S | D160: 60.1 | E160: 3.67 | F160: 3.92 | G160: 2.157658762
A161: 160 | B161: Virtus Funds | C161: Virtus WCM International Equity A | D161: 15.1 | E161: 3.66 | F161: 3.93 | G161: 2.161815099
A162: 161 | B162: Deutsche Funds | C162: Deutsche Communication C | D162: 4.4 | E162: 3.94 | F162: 3.95 | G162: 2.170150601
A163: 162 | B163: Goldman Sachs Funds | C163: Goldman Sachs Equity Income Svc | D163: 0.1 | E163: 4.33 | F163: 3.95 | G163: 2.170150601
A164: 163 | B164: Deutsche Funds | C164: Deutsche Emerging Markets Eqty Inst | D164: 6.1 | E164: 3.71 | F164: 3.96 | G164: 2.174329793
A165: 164 | B165: Putnam Funds | C165: Putnam Global Natural Resources A | D165: 120.7 | E165: 3.73 | F165: 3.96 | G165: 2.174329793
A166: 165 | B166: Putnam Funds | C166: Putnam Global Utilities Fund M | D166: 1.2 | E166: 3.65 | F166: 3.96 | G166: 2.174329793
A167: 166 | B167: Putnam Funds | C167: Putnam International Value M | D167: 2.3 | E167: 3.88 | F167: 3.96 | G167: 2.174329793
A168: 167 | B168: USAA Group | C168: USAA Emerging Markets Fund | D168: 399.8 | E168: 3.77 | F168: 3.97 | G168: 2.17851663
A169: 168 | B169: JPMorgan Funds | C169: JPMorgan International Value I | D169: 138.3 | E169: 3.87 | F169: 3.99 | G169: 2.186913292
A170: 169 | B170: OppenheimerFunds | C170: Oppenheimer International Equity B | D170: 0.9 | E170: 4.12 | F170: 3.99 | G170: 2.186913292
A171: 170 | B171: Putnam Funds | C171: Putnam International Growth M | D171: 5.1 | E171: 3.74 | F171: 3.99 | G171: 2.186913292
A172: 171 | B172: Deutsche Funds | C172: Deutsche EAFE Equity Index Inst | D172: 59.8 | E172: 3.93 | F172: 4.01 | G172: 2.195340693
A173: 172 | B173: OppenheimerFunds | C173: Oppenheimer International Equity C | D173: 35.6 | E173: 4.15 | F173: 4.01 | G173: 2.195340693
A174: 173 | B174: Wells Fargo Advantage Funds | C174: Wells Fargo Intl Equity C | D174: 27.9 | E174: 4 | F174: 4.01 | G174: 2.195340693
A175: 174 | B175: American Century Investment Funds | C175: American Century Intl Gr C | D175: 6.1 | E175: 4.08 | F175: 4.02 | G175: 2.199565954
A176: 175 | B176: Fidelity Advisor | C176: Fidelity Adv Overseas Fund M | D176: 258.8 | E176: 3.88 | F176: 4.02 | G176: 2.199565954
A177: 176 | B177: MainStay Funds | C177: MainStay Epoch US All Cap B | D177: 4 | E177: 4.46 | F177: 4.02 | G177: 2.199565954
A178: 177 | B178: MainStay Funds | C178: MainStay Epoch US All Cap C | D178: 4.1 | E178: 4.46 | F178: 4.02 | G178: 2.199565954
A179: 178 | B179: Vanguard Funds | C179: Vanguard US Growth Inv | D179: 4034.3 | E179: 4.2 | F179: 4.02 | G179: 2.199565954
A180: 179 | B180: Deutsche Funds | C180: Deutsche World Dividend C | D180: 24.7 | E180: 4.22 | F180: 4.03 | G180: 2.20379894
A181: 180 | B181: Natixis Funds | C181: Gateway C | D181: 340.1 | E181: 4.07 | F181: 4.03 | G181: 2.20379894
A182: 181 | B182: Columbia Threadneedle Investments | C182: Columbia Pacific/Asia A | D182: 3 | E182: 3.45 | F182: 4.04 | G182: 2.208039664
A183: 182 | B183: Goldman Sachs Funds | C183: Goldman Sachs Equity Income A | D183: 335.8 | E183: 4.13 | F183: 4.04 | G183: 2.208039664
A184: 183 | B184: State Street Global Advisors Funds | C184: SSgA Intl Stock Selection N | D184: 217.2 | E184: 3.94 | F184: 4.04 | G184: 2.208039664
A185: 184 | B185: American Century Investment Funds | C185: American Century Intl Value Inv | D185: 17 | E185: 3.92 | F185: 4.05 | G185: 2.212288139
A186: 185 | B186: Columbia Threadneedle Investments | C186: Columbia Pacific/Asia T | D186: 0.1 | E186: 3.64 | F186: 4.05 | G186: 2.212288139
A187: 186 | B187: Pioneer Investments | C187: Pioneer Emerging Markets R | D187: 21.5 | E187: 3.9 | F187: 4.05 | G187: 2.212288139
A188: 187 | B188: BlackRock Funds | C188: iShares MSCI EAFE Intl Idx Inv A | D188: 323 | E188: 4.06 | F188: 4.06 | G188: 2.21654438
A189: 188 | B189: Fidelity Advisor | C189: Fidelity Adv Divers Stk M | D189: 35.9 | E189: 4.12 | F189: 4.06 | G189: 2.21654438
A190: 189 | B190: Invesco Investments Funds | C190: Invesco Global Growth B | D190: 1.4 | E190: 4.24 | F190: 4.06 | G190: 2.21654438
A191: 190 | B191: Putnam Funds | C191: Putnam Global Utilities Fund R | D191: 0.5 | E191: 3.93 | F191: 4.06 | G191: 2.21654438
A192: 191 | B192: Putnam Funds | C192: Putnam International Value R | D192: 2 | E192: 4.17 | F192: 4.06 | G192: 2.21654438
A193: 192 | B193: First Investors Funds | C193: First Inv Global B | D193: 2.7 | E193: 4.2 | F193: 4.07 | G193: 2.220808399
A194: 193 | B194: T. Rowe Price Funds | C194: T Rowe Price Intl Stock Adv | D194: 149.7 | E194: 4.03 | F194: 4.07 | G194: 2.220808399
A195: 194 | B195: Hartford Mutual Funds | C195: Hartford Intl Opportunities C | D195: 62.3 | E195: 4.06 | F195: 4.08 | G195: 2.22508021
A196: 195 | B196: Ivy Funds | C196: Ivy Natural Resources B | D196: 5.3 | E196: 4.12 | F196: 4.08 | G196: 2.22508021
A197: 196 | B197: JPMorgan Funds | C197: JPMorgan Intl Opps R6 | D197: 2853.3 | E197: 4.04 | F197: 4.08 | G197: 2.22508021
A198: 197 | B198: Putnam Funds | C198: Putnam International Growth R | D198: 0.8 | E198: 4.02 | F198: 4.09 | G198: 2.229359826
A199: 198 | B199: Deutsche Funds | C199: Deutsche Core Equity C | D199: 39.6 | E199: 4.3 | F199: 4.1 | G199: 2.233647261
A200: 199 | B200: Fidelity Advisor | C200: Fidelity Adv Financial Serv M | D200: 44.6 | E200: 4.34 | F200: 4.1 | G200: 2.233647261
... 3022 more rows

Sheet Indexes
W1: Euro Stoxx 50 Index (SX5E) Yearly Returns | AD1: Hang Seng Index (Hong Kong) Yearly Returns
A2: Year | B2: Dow Jones | C2: S&P500 | D2: NASDAQ | E2: Euro 50 | F2: HengSeng | G2: Dow Jones | H2: S&P500 | I2: NASDAQ | J2: Euro 50 | K2: HengSeng | L2: Dow Jones | M2: S&P500 | N2: NASDAQ | O2: Euro 50 | P2: HengSeng | W2: Year | X2: Beginning Price | Y2: Ending Price | Z2: Gain or Loss | AA2: Percent Gain or Loss | AD2: Year | AE2: Beginning Price | AF2: Ending Price | AG2: Gain or Loss | AH2: Percent Gain or Loss
A3: 1975 | B3: 38.32% | C3: 0.3155 | D3: 0.2976 | W3: 1987 | X3: 900.82 | Y3: 648.18 | Z3: -252.69 | AA3: -0.2805 | AD3: 1987 | AE3: 2568.3 | AF3: 2302.8 | AG3: -265.5 | AH3: -0.1034
A4: 1976 | B4: 0.1786 | C4: 0.1915 | D4: 0.261 | W4: 1988 | X4: 648.18 | Y4: 861.36 | Z4: 213.23 | AA4: 0.329 | AD4: 1988 | AE4: 2302.8 | AF4: 2687.4 | AG4: 384.6 | AH4: 0.167
A5: 1977 | B5: -0.1727 | C5: -0.115 | D5: 0.0733 | W5: 1989 | X5: 861.36 | Y5: 1098.49 | Z5: 237.13 | AA5: 0.2753 | AD5: 1989 | AE5: 2687.4 | AF5: 2836.6 | AG5: 149.2 | AH5: 0.0555
A6: 1978 | B6: -0.0315 | C6: 0.0171 | D6: 0.1231 | W6: 1990 | X6: 1098.49 | Y6: 858.72 | Z6: -239.77 | AA6: -0.2183 | AD6: 1990 | AE6: 2836.6 | AF6: 3024 | AG6: 187.4 | AH6: 0.0661
A7: 1979 | B7: 0.0419 | C7: 0.1159 | D7: 0.2811 | W7: 1991 | X7: 858.72 | Y7: 1000 | Z7: 141.28 | AA7: 0.1645 | AD7: 1991 | AE7: 3024 | AF7: 4297.3 | AG7: 1273.3 | AH7: 0.4211
A8: 1980 | B8: 0.1493 | C8: 0.2577 | D8: 0.3388 | L8: Cap | M8: 0.13 | W8: 1992 | X8: 1000 | Y8: 1033.51 | Z8: 33.51 | AA8: 0.0335 | AD8: 1992 | AE8: 4297.3 | AF8: 5512.4 | AG8: 1215.1 | AH8: 0.2828
A9: 1981 | B9: -0.0923 | C9: -0.0973 | D9: -0.0321 | L9: Floor | M9: 0 | W9: 1993 | X9: 1033.51 | Y9: 1433.34 | Z9: 399.83 | AA9: 0.3869 | AD9: 1993 | AE9: 5512.4 | AF9: 11888.4 | AG9: 6376 | AH9: 1.1567
A10: 1982 | B10: 0.1961 | C10: 0.1476 | D10: 0.1867 | L10: IAMC | M10: 0.01 | W10: 1994 | X10: 1433.34 | Y10: 1320.59 | Z10: -112.75 | AA10: -0.0787 | AD10: 1994 | AE10: 11888.4 | AF10: 8191 | AG10: -3697.4 | AH10: -0.311
A11: 1983 | B11: 0.2027 | C11: 0.1727 | D11: 0.1987 | W11: 1995 | X11: 1320.59 | Y11: 1506.82 | Z11: 186.23 | AA11: 0.141 | AD11: 1995 | AE11: 8191 | AF11: 10073.4 | AG11: 1882.4 | AH11: 0.2298
A12: 1984 | B12: -0.0374 | C12: 0.014 | D12: -0.1122 | W12: 1996 | X12: 1506.82 | Y12: 1850.32 | Z12: 343.5 | AA12: 0.228 | AD12: 1996 | AE12: 10073.4 | AF12: 13451.5 | AG12: 3378.1 | AH12: 0.3353
A13: 1985 | B13: 0.2766 | C13: 0.2633 | D13: 0.3136 | W13: 1997 | X13: 1850.32 | Y13: 2531.99 | Z13: 681.67 | AA13: 0.3684 | AD13: 1997 | AE13: 13451.5 | AF13: 10722.8 | AG13: -2728.7 | AH13: -0.2029
A14: 1986 | B14: 0.2258 | C14: 0.1462 | D14: 0.0736 | G14: 1 | H14: 1 | I14: 1 | J14: 1 | K14: 1 | L14: 1 | M14: 1 | N14: 1 | O14: 1 | P14: 1 | W14: 1998 | X14: 2531.99 | Y14: 3342.32 | Z14: 810.33 | AA14: 0.32 | AD14: 1998 | AE14: 10722.8 | AF14: 10048.58 | AG14: -674.22 | AH14: -0.0629
A15: 1987 | B15: 0.0226 | C15: 0.0203 | D15: -0.0526 | E15: =AA3 -> -0.2805 | F15: =AH3 -> -0.1034 | G15: =G14*(1+B15) -> 1.0226 | H15: =H14*(1+C15) -> 1.0203 | I15: 0.9474 | J15: 0.7195 | K15: 0.8966 | L15: =L14*(1+(MIN(MAX($M$9,B15),$M$8)-$M$10)) -> 1.0126 | M15: =M14*(1+(MIN(MAX($M$9,C15),$M$8)-$M$10)) -> 1.0103 | N15: 0.99 | O15: 0.99 | P15: 0.99 | W15: 1999 | X15: 3342.32 | Y15: 4904.46 | Z15: 1562.14 | AA15: 0.4674 | AD15: 1999 | AE15: 10048.58 | AF15: 16962.1 | AG15: 6913.52 | AH15: 0.688
A16: 1988 | B16: 0.1185 | C16: 0.124 | D16: 0.1541 | E16: =AA4 -> 0.329 | F16: =AH4 -> 0.167 | G16: =G15*(1+B16) -> 1.1437781 | H16: =H15*(1+C16) -> 1.1468172 | I16: =I15*(1+D16) -> 1.09339434 | J16: =J15*(1+E16) -> 0.9562155 | K16: =K15*(1+F16) -> 1.0463322 | L16: =L15*(1+(MIN(MAX($M$9,B16),$M$8)-$M$10)) -> 1.1224671 | M16: =M15*(1+(MIN(MAX($M$9,C16),$M$8)-$M$10)) -> 1.1254742 | N16: =N15*(1+(MIN(MAX($M$9,D16),$M$8)-$M$10)) -> 1.1088 | O16: =O15*(1+(MIN(MAX($M$9,E16),$M$8)-$M$10)) -> 1.1088 | P16: =P15*(1+(MIN(MAX($M$9,F16),$M$8)-$M$10)) -> 1.1088 | W16: 2000 | X16: 4904.46 | Y16: 4772.39 | Z16: -132.07 | AA16: -0.0269 | AD16: 2000 | AE16: 16962.1 | AF16: 15095.53 | AG16: -1866.57 | AH16: -0.11
A17: 1989 | B17: 0.2696 | C17: 0.2725 | D17: 0.1926 | E17: 0.2753 | F17: 0.0555 | G17: 1.452140676 | H17: 1.459324887 | I17: 1.30398209 | J17: 1.219461627 | K17: 1.104403637 | L17: 1.257163152 | M17: 1.260531104 | N17: 1.241856 | O17: 1.241856 | P17: 1.1592504 | W17: 2001 | X17: 4772.39 | Y17: 3806.13 | Z17: -966.26 | AA17: -0.2025 | AD17: 2001 | AE17: 15095.53 | AF17: 11397.21 | AG17: -3698.32 | AH17: -0.245
A18: 1990 | B18: -0.0434 | C18: -0.0656 | D18: -0.178 | E18: -0.2183 | F18: 0.0661 | G18: 1.38911777 | H18: 1.363593174 | I18: 1.071873278 | J18: 0.9532531539 | K18: 1.177404718 | L18: 1.24459152 | M18: 1.247925793 | N18: 1.22943744 | O18: 1.22943744 | P18: 1.224284347 | W18: 2002 | X18: 3806.13 | Y18: 2386.41 | Z18: -1419.72 | AA18: -0.373 | AD18: 2002 | AE18: 11397.21 | AF18: 9321.29 | AG18: -2075.92 | AH18: -0.1821
A19: 1991 | B19: 0.2032 | C19: 0.2631 | D19: 0.5684 | E19: 0.1645 | F19: 0.4211 | G19: 1.671386501 | H19: 1.722354539 | I19: 1.681126049 | J19: 1.110063298 | K19: 1.673209844 | L19: 1.393942503 | M19: 1.397676888 | N19: 1.376969933 | O19: 1.376969933 | P19: 1.371198469 | W19: 2003 | X19: 2386.41 | Y19: 2760.66 | Z19: 374.25 | AA19: 0.1568 | AD19: 2003 | AE19: 9321.29 | AF19: 12575.94 | AG19: 3254.65 | AH19: 0.3492
A20: 1992 | B20: 0.0417 | C20: 0.0446 | D20: 0.1545 | E20: 0.0335 | F20: 0.2828 | G20: 1.741083318 | H20: 1.799171551 | I20: 1.940860024 | J20: 1.147250418 | K20: 2.146393588 | L20: 1.43813048 | M20: 1.446036508 | N20: 1.542206325 | O20: 1.409328726 | P20: 1.535742285 | W20: 2004 | X20: 2760.66 | Y20: 2951.01 | Z20: 190.35 | AA20: 0.069 | AD20: 2004 | AE20: 12575.94 | AF20: 14230.14 | AG20: 1654.2 | AH20: 0.1315
A21: 1993 | B21: 0.1372 | C21: 0.0706 | D21: 0.1475 | E21: 0.3869 | F21: 1.1567 | G21: 1.97995995 | H21: 1.926193063 | I21: 2.227136877 | J21: 1.591121605 | K21: 4.629127051 | L21: 1.610706138 | M21: 1.533666321 | N21: 1.727271084 | O21: 1.578448173 | P21: 1.72003136 | W21: 2005 | X21: 2951.01 | Y21: 3578.93 | Z21: 627.92 | AA21: 0.2128 | AD21: 2005 | AE21: 14230.14 | AF21: 14876.43 | AG21: 646.29 | AH21: 0.0454
A22: 1994 | B22: 0.0214 | C22: -0.0154 | D22: -0.032 | E22: -0.0787 | F22: -0.311 | G22: 2.022331093 | H22: 1.896529689 | I22: 2.155868497 | J22: 1.465900335 | K22: 3.189468538 | L22: 1.629068188 | M22: 1.518329658 | N22: 1.709998373 | O22: 1.562663692 | P22: 1.702831046 | W22: 2006 | X22: 3578.93 | Y22: 4119.94 | Z22: 541.01 | AA22: 0.1512 | AD22: 2006 | AE22: 14876.43 | AF22: 19964.72 | AG22: 5088.29 | AH22: 0.342
A23: 1995 | B23: 0.3345 | C23: 0.3411 | D23: 0.3992 | E23: 0.141 | F23: 0.2298 | G23: 2.698800843 | H23: 2.543435966 | I23: 3.016491201 | J23: 1.672592282 | K23: 3.922408408 | L23: 1.82455637 | M23: 1.700529217 | N23: 1.915198178 | O23: 1.750183335 | P23: 1.907170772 | W23: 2007 | X23: 4119.94 | Y23: 4399.72 | Z23: 279.78 | AA23: 0.0679 | AD23: 2007 | AE23: 19964.72 | AF23: 27812.65 | AG23: 7847.93 | AH23: 0.3931
A24: 1996 | B24: 0.2601 | C24: 0.2026 | D24: 0.2271 | E24: 0.228 | F24: 0.3353 | G24: 3.400758943 | H24: 3.058736093 | I24: 3.701536353 | J24: 2.053943322 | K24: 5.237591948 | L24: 2.043503135 | M24: 1.904592723 | N24: 2.145021959 | O24: 1.960205335 | P24: 2.136031264 | W24: 2008 | X24: 4399.72 | Y24: 2447.62 | Z24: -1952.1 | AA24: -0.4437 | AD24: 2008 | AE24: 27812.65 | AF24: 14387.48 | AG24: -13425.17 | AH24: -0.4827
A25: 1997 | B25: 0.2264 | C25: 0.3101 | D25: 0.2164 | E25: 0.3684 | F25: -0.2029 | G25: 4.170690767 | H25: 4.007250156 | I25: 4.50254882 | J25: 2.810616042 | K25: 4.174884541 | L25: 2.288723511 | M25: 2.133143849 | N25: 2.402424594 | O25: 2.195429975 | P25: 2.114670952 | W25: 2009 | X25: 2447.62 | Y25: 2964.96 | Z25: 517.34 | AA25: 0.2114 | AD25: 2009 | AE25: 14387.48 | AF25: 21872.5 | AG25: 7485.02 | AH25: 0.5202
A26: 1998 | B26: 0.161 | C26: 0.2667 | D26: 0.3963 | E26: 0.32 | F26: -0.0629 | G26: 4.842171981 | H26: 5.075983772 | I26: 6.286908917 | J26: 3.710013176 | K26: 3.912284304 | L26: 2.563370332 | M26: 2.389121111 | N26: 2.690715545 | O26: 2.458881572 | P26: 2.093524242 | W26: 2010 | X26: 2964.96 | Y26: 2792.82 | Z26: -172.14 | AA26: -0.0581 | AD26: 2010 | AE26: 21872.5 | AF26: 23035.45 | AG26: 1162.95 | AH26: 0.0532
A27: 1999 | B27: 0.2522 | C27: 0.1953 | D27: 0.8559 | E27: 0.4674 | F27: 0.688 | G27: 6.063367754 | H27: 6.067323403 | I27: 11.66787426 | J27: 5.444073334 | K27: 6.603935905 | L27: 2.870974772 | M27: 2.675815645 | N27: 3.013601411 | O27: 2.753947361 | P27: 2.344747151 | W27: 2011 | X27: 2792.82 | Y27: 2316.55 | Z27: -476.27 | AA27: -0.1705 | AD27: 2011 | AE27: 23035.45 | AF27: 18434.39 | AG27: -4601.06 | AH27: -0.1997
A28: 2000 | B28: -0.0618 | C28: -0.1014 | D28: -0.3929 | E28: -0.0269 | F28: -0.11 | G28: 5.688651627 | H28: 5.45209681 | I28: 7.083566462 | J28: 5.297627761 | K28: 5.877502955 | L28: 2.842265025 | M28: 2.649057488 | N28: 2.983465397 | O28: 2.726407887 | P28: 2.32129968 | W28: 2012 | X28: 2316.55 | Y28: 2635.93 | Z28: 319.38 | AA28: 0.1379 | AD28: 2012 | AE28: 18434.39 | AF28: 22656.92 | AG28: 4222.53 | AH28: 0.2291
A29: 2001 | B29: -0.071 | C29: -0.1304 | D29: -0.2105 | E29: -0.2025 | F29: -0.245 | G29: 5.284757361 | H29: 4.741143386 | I29: 5.592475722 | J29: 4.22485814 | K29: 4.437514731 | L29: 2.813842374 | M29: 2.622566913 | N29: 2.953630743 | O29: 2.699143808 | P29: 2.298086683 | W29: 2013 | X29: 2635.93 | Y29: 3109 | Z29: 473.07 | AA29: 0.1795 | AD29: 2013 | AE29: 22656.92 | AF29: 23306.39 | AG29: 649.47 | AH29: 0.0287
A30: 2002 | B30: -0.1676 | C30: -0.2337 | D30: -0.3153 | E30: -0.373 | F30: -0.1821 | G30: 4.399032028 | H30: 3.633138177 | I30: 3.829168127 | J30: 2.648986054 | K30: 3.629443299 | L30: 2.785703951 | M30: 2.596341244 | N30: 2.924094435 | O30: 2.67215237 | P30: 2.275105816 | W30: 2014 | X30: 3109 | Y30: 3146.43 | Z30: 37.43 | AA30: 0.012 | AD30: 2014 | AE30: 23306.39 | AF30: 23605.04 | AG30: 298.65 | AH30: 0.0128
A31: 2003 | B31: 0.2532 | C31: 0.2638 | D31: 0.5001 | E31: 0.1568 | F31: 0.3492 | G31: 5.512866937 | H31: 4.591560028 | I31: 5.744135107 | J31: 3.064347067 | K31: 4.896844899 | L31: 3.119988425 | M31: 2.907902193 | N31: 3.274985767 | O31: 2.992810654 | P31: 2.548118514 | W31: 2015 | X31: 3146.43 | Y31: 3267.52 | Z31: 121.09 | AA31: 0.0385 | AD31: 2015 | AE31: 23605.04 | AF31: 21914.4 | AG31: -1690.64 | AH31: -0.0716
A32: 2004 | B32: 0.0315 | C32: 0.0899 | D32: 0.0859 | E32: 0.069 | F32: 0.1315 | G32: 5.686522246 | H32: 5.004341274 | I32: 6.237556313 | J32: 3.275787014 | K32: 5.540780003 | L32: 3.187068176 | M32: 3.140243579 | N32: 3.523557187 | O32: 3.169386483 | P32: 2.853892736 | W32: 2016 | X32: 3267.52 | Y32: 3290.52 | Z32: 23 | AA32: 0.007 | AD32: 2016 | AE32: 21914.4 | AF32: 22000.56 | AG32: 86.16 | AH32: 0.0039
A33: 2005 | B33: -0.0061 | C33: 0.03 | D33: 0.0137 | E33: 0.2128 | F33: 0.0454 | G33: 5.65183446 | H33: 5.154471512 | I33: 6.323010834 | J33: 3.972874491 | K33: 5.792331415 | L33: 3.155197494 | M33: 3.20304845 | N33: 3.536594349 | O33: 3.549712861 | P33: 2.954920538 | W33: 2017 | X33: 3290.52 | Y33: 3503.96 | Z33: 213.44 | AA33: 0.0649 | AD33: 2017 | AE33: 22000.56 | AF33: 29919.15 | AG33: 7918.56 | AH33: 0.3599
A34: 2006 | B34: 0.1629 | C34: 0.1362 | D34: 0.0952 | E34: 0.1512 | F34: 0.342 | G34: 6.572518293 | H34: 5.856510532 | I34: 6.924961466 | J34: 4.573573114 | K34: 7.773308759 | L34: 3.533821193 | M34: 3.587414264 | N34: 3.837912187 | O34: 3.975678404 | P34: 3.309511003 | W34: 2018 | X34: 3503.96 | Y34: 3001.42 | Z34: -502.54 | AA34: -0.1434 | AD34: 2018 | AE34: 29919.15 | AF34: 25845.7 | AG34: -4073.45 | AH34: -0.1361
A35: 2007 | B35: 0.0643 | C35: 0.0352 | D35: 0.0981 | E35: 0.0679 | F35: 0.3931 | G35: 6.99513122 | H35: 6.062659703 | I35: 7.604300186 | J35: 4.884118728 | K35: 10.82899643 | L35: 3.725707684 | M35: 3.677817104 | N35: 4.176032251 | O35: 4.205870184 | P35: 3.706652323
A36: 2008 | B36: -0.3384 | C36: -0.3849 | D36: -0.4054 | E36: -0.4437 | F36: -0.4827 | G36: 4.627978815 | H36: 3.729141983 | I36: 4.52151689 | J36: 2.717035249 | K36: 5.601839854 | L36: 3.688450607 | M36: 3.641038933 | N36: 4.134271928 | O36: 4.163811482 | P36: 3.6695858
A37: 2009 | B37: 0.1882 | C37: 0.2345 | D37: 0.4389 | E37: 0.2114 | F37: 0.5202 | G37: 5.498964428 | H37: 4.603625778 | I37: 6.506010653 | J37: 3.2914165 | K37: 8.515916946 | L37: 4.13106468 | M37: 4.077963605 | N37: 4.63038456 | O37: 4.66346886 | P37: 4.109936096
A38: 2010 | B38: 0.1102 | C38: 0.1278 | D38: 0.1691 | E38: -0.0581 | F38: 0.0532 | G38: 6.104950308 | H38: 5.191969153 | I38: 7.606177055 | J38: 3.100185202 | K38: 8.968963728 | L38: 4.544997361 | M38: 4.558347717 | N38: 5.186030707 | O38: 4.616834171 | P38: 4.287485335
A39: 2011 | B39: 0.0553 | C39: 0 | D39: -0.018 | E39: -0.1705 | F39: -0.1997 | G39: 6.44255406 | H39: 5.191969153 | I39: 7.469265868 | J39: 2.571603625 | K39: 7.177861671 | L39: 4.750885742 | M39: 4.51276424 | N39: 5.1341704 | O39: 4.57066583 | P39: 4.244610482
A40: 2012 | B40: 0.0726 | C40: 0.1341 | D40: 0.1591 | E40: 0.1379 | F40: 0.2291 | G40: 6.910283485 | H40: 5.888212216 | I40: 8.657626068 | J40: 2.926227764 | K40: 8.82230978 | L40: 5.048291189 | M40: 5.054295949 | N40: 5.750270848 | O40: 5.119145729 | P40: 4.75396374
A41: 2013 | B41: 0.265 | C41: 0.296 | D41: 0.3832 | E41: 0.1795 | F41: 0.0287 | G41: 8.741508608 | H41: 7.631123032 | I41: 11.97522838 | J41: 3.451485648 | K41: 9.075510071 | L41: 5.654086132 | M41: 5.660811463 | N41: 6.44030335 | O41: 5.733443217 | P41: 4.842862862
A42: 2014 | B42: 0.0752 | C42: 0.1139 | D42: 0.134 | E42: 0.012 | F42: 0.0128 | G42: 9.398870055 | H42: 8.500307946 | I42: 13.57990898 | J42: 3.492903476 | K42: 9.1916766 | L42: 6.022732547 | M42: 6.248969774 | N42: 7.213139752 | O42: 5.744910103 | P42: 4.856422878
A43: 2015 | B43: -0.0223 | C43: -0.0073 | D43: 0.0573 | E43: 0.0385 | F43: -0.0716 | G43: 9.189275253 | H43: 8.438255698 | I43: 14.35803776 | J43: 3.62738026 | K43: 8.533552555 | L43: 5.962505222 | M43: 6.186480076 | N43: 7.554321262 | O43: 5.908640041 | P43: 4.807858649
A44: 2016 | B44: 0.1342 | C44: 0.0954 | D44: 0.075 | E44: 0.007 | F44: 0.0039 | G44: 10.42247599 | H44: 9.243265291 | I44: 15.4348906 | J44: 3.652771922 | K44: 8.56683341 | L44: 6.678005849 | M44: 6.714805474 | N44: 8.045352144 | O44: 5.890914121 | P44: 4.778530711
A45: 2017 | B45: 0.2508 | C45: 0.1942 | D45: 0.2824 | E45: 0.0649 | F45: 0.3599 | G45: 13.03643297 | H45: 11.03830741 | I45: 19.7937037 | J45: 3.889836819 | K45: 11.65003675 | L45: 7.47936655 | M45: 7.520582131 | N45: 9.010794401 | O45: 6.214325306 | P45: 5.351954397
A46: 2018 | B46: -0.0563 | C46: -0.0624 | D46: -0.0388 | E46: -0.1434 | F46: -0.1361 | G46: 12.30248179 | H46: 10.34951703 | I46: 19.025708 | J46: 3.332034219 | K46: 10.06446675 | L46: 7.404572885 | M46: 7.44537631 | N46: 8.920686457 | O46: 6.152182053 | P46: 5.298434853

Sheet SP500
O1: Yearly Invest | W1: Cap | X1: Floor
B2: Period End | C2: Invest | D2: Income | E2: Capital Gain | F2: Reinvest | G2: Taxes Paid | H2: Market Value | I2: Shares | J2: NAV | K2: Cum.P | L2: Tax at Sell | M2: Value | O2: 15000 | R2: SP500 Index return without dividends | U2: SP500 with dividends | W2: 0.13 | X2: 0
B3: 1997-12-31 | C3: 0 | D3: 0 | E3: 0 | F3: 0 | G3: 0 | H3: 0 | I3: 0 | J3: 90.07 | K3: =0 -> 0 | L3: 0 | M3: 0 | Q3: Year | R3: Beginning Price | S3: Ending Price | T3: % Gain or Loss | U3: % Gain or Loss | W3: Without Dividends | X3: With dividends | Z3: Without Dividends | AA3: With dividends
B4: 1998-12-31 | C4: 10000 | D4: 147 | E4: 46 | F4: 135 | G4: 58 | H4: 12658 | I4: 111 | J4: 113.95 | K4: =C4+K3+F4 -> 10135 | L4: =MAX(0.2*(H4-K4),0) -> 504.6 | M4: =H4-L4 -> 12153.4 | O4: =M4*O$2/10000 -> 18230.1 | Q4: 1975 | R4: 68.56 | S4: 90.19 | T4: 0.3155 | U4: 0.37 | W4: =IF(T4>W$2,W$2,IF(T4<X$2,X$2,T4)) -> 0.13 | X4: =IF(U4>W$2,W$2,IF(U4<X$2,X$2,U4)) -> 0.13 | Y4: =IF(X4>W4,"*","") ->  | Z4: =1*(1+W4) -> 1.13 | AA4: =1*(1+X4) -> 1.13 | AB4: =(1+U4) -> 1.37
B5: 1999-12-31 | C5: 10000 | D5: 277 | E5: 195 | F5: 342 | G5: 130 | H5: 26800 | I5: 198 | J5: 135.33 | K5: =C5+K4+F5 -> 20477 | L5: =MAX(0.2*(H5-K5),0) -> 1264.6 | M5: =H5-L5 -> 25535.4 | O5: =M5*O$2/10000 -> 38303.1 | Q5: 1976 | R5: 90.19 | S5: 107.46 | T5: 0.1915 | U5: 0.2383 | W5: =IF(T5>W$2,W$2,IF(T5<X$2,X$2,T5)) -> 0.13 | X5: =IF(U5>W$2,W$2,IF(U5<X$2,X$2,U5)) -> 0.13 | Y5: =IF(X5>W5,"*","") ->  | Z5: =Z4*(1+W5) -> 1.2769 | AA5: =AA4*(1+X5) -> 1.2769 | AB5: =AB4*(1+U5) -> 1.696471
B6: 2000-12-31 | C6: 10000 | D6: 359 | E6: 0 | F6: 241 | G6: 119 | H6: 33839 | I6: 278 | J6: 121.86 | K6: 30718 | L6: 624.2 | M6: 33214.8 | O6: 49822.2 | Q6: 1977 | R6: 107.46 | S6: 95.1 | T6: -0.115 | U6: -0.0698 | W6: 0 | X6: 0 | Z6: =Z5*(1+W6) -> 1.2769 | AA6: =AA5*(1+X6) -> 1.2769 | AB6: =AB5*(1+U6) -> 1.578057324
B7: 2001-12-31 | C7: 10000 | D7: 456 | E7: 0 | F7: 306 | G7: 151 | H7: 38111 | I7: 360 | J7: 105.89 | K7: 41024 | L7: 0 | M7: 38111 | O7: 57166.5 | Q7: 1978 | R7: 95.1 | S7: 96.73 | T7: 0.0171 | U7: 0.0651 | W7: 0.0171 | X7: 0.0651 | Y7: * | Z7: 1.29873499 | AA7: 1.36002619 | AB7: 1.680788856
B8: 2002-12-31 | C8: 10000 | D8: 622 | E8: 0 | F8: 417 | G8: 205 | H8: 37378 | I8: 461 | J8: 81.15 | K8: 51441 | L8: 0 | M8: 37378 | O8: 56067 | Q8: 1979 | R8: 96.73 | S8: 107.94 | T8: 0.1159 | U8: 0.1852 | W8: 0.1159 | X8: 0.13 | Y8: * | Z8: 1.449258375 | AA8: 1.536829595 | AB8: 1.992070952
B9: 2003-12-31 | C9: 10000 | D9: 843 | E9: 0 | F9: 565 | G9: 278 | H9: 60915 | I9: 593 | J9: 102.67 | K9: 62006 | L9: 0 | M9: 60915 | O9: 91372.5 | Q9: 1980 | R9: 107.94 | S9: 135.76 | T9: 0.2577 | U9: 0.3174 | W9: 0.13 | X9: 0.13 | Z9: 1.637661964 | AA9: 1.736617442 | AB9: 2.624354272
B10: 2004-12-31 | C10: 10000 | D10: 1350 | E10: 0 | F10: 904 | G10: 445 | H10: 77864 | I10: 697 | J10: 111.64 | K10: 72910 | L10: 990.8 | M10: 76873.2 | O10: 115309.8 | Q10: 1981 | R10: 135.76 | S10: 122.55 | T10: -0.0973 | U10: -0.047 | W10: 0 | X10: 0 | Z10: 1.637661964 | AA10: 1.736617442 | AB10: 2.501009622
B11: 2005-12-31 | C11: 10000 | D11: 1570 | E11: 0 | F11: 1052 | G11: 518 | H11: 91786 | I11: 799 | J11: 114.92 | K11: 83962 | L11: 1564.8 | M11: 90221.2 | O11: 135331.8 | Q11: 1982 | R11: 122.55 | S11: 140.64 | T11: 0.1476 | U11: 0.2042 | W11: =IF(T11>W$2,W$2,IF(T11<X$2,X$2,T11)) -> 0.13 | X11: =IF(U11>W$2,W$2,IF(U11<X$2,X$2,U11)) -> 0.13 | Z11: 1.850558019 | AA11: 1.962377709 | AB11: 3.011715786
B12: 2006-12-31 | C12: 10000 | D12: 1899 | E12: 0 | F12: 1272 | G12: 627 | H12: 116734 | I12: 894 | J12: 130.59 | K12: 95234 | L12: 4300 | M12: 112434 | O12: 168651 | Q12: 1983 | R12: 140.64 | S12: 164.93 | T12: 0.1727 | U12: 0.2234 | W12: 0.13 | X12: 0.13 | Z12: 2.091130562 | AA12: 2.217486812 | AB12: 3.684533093
B13: 2007-12-31 | C13: 10000 | D13: 2425 | E13: 0 | F13: 1625 | G13: 800 | H13: 132611 | I13: 981 | J13: 135.15 | K13: 106859 | L13: 5150.4 | M13: 127460.6 | O13: 191190.9 | Q13: 1984 | R13: 164.93 | S13: 167.24 | T13: 0.014 | U13: 0.0615 | W13: 0.014 | X13: 0.0615 | Y13: * | Z13: 2.12040639 | AA13: 2.353862251 | AB13: 3.911131878
B14: 2008-12-31 | C14: 10000 | D14: 2669 | E14: 0 | F14: 1788 | G14: 881 | H14: 89505 | I14: 1077 | J14: 83.09 | K14: 118647 | L14: 0 | M14: 89505 | O14: 134257.5 | Q14: 1985 | R14: 167.24 | S14: 211.28 | T14: 0.2633 | U14: 0.3124 | W14: 0.13 | X14: 0.13 | Z14: 2.396059221 | AA14: 2.659864343 | AB14: 5.132969477
B15: 2009-12-31 | C15: 10000 | D15: 2559 | E15: 0 | F15: 1715 | G15: 845 | H15: 126048 | I15: 1228 | J15: 102.67 | K15: 130362 | L15: 0 | M15: 126048 | O15: 189072 | Q15: 1986 | R15: 211.28 | S15: 242.17 | T15: 0.1462 | U15: 0.1849 | W15: 0.13 | X15: 0.13 | Z15: 2.707546919 | AA15: 3.005646708 | AB15: 6.082055533
B16: 2010-12-31 | C16: 10000 | D16: 2625 | E16: 0 | F16: 1759 | G16: 866 | H16: 155815 | I16: 1345 | J16: 115.82 | K16: 142121 | L16: 2738.8 | M16: 153076.2 | O16: 229614.3 | Q16: 1987 | R16: 242.17 | S16: 247.08 | T16: 0.0203 | U16: 0.0581 | W16: 0.0203 | X16: 0.0581 | Y16: * | Z16: 2.762510122 | AA16: 3.180274782 | AB16: 6.43542296
B17: 2011-12-31 | C17: 10000 | D17: 3227 | E17: 0 | F17: 2162 | G17: 1065 | H17: 167751 | I17: 1449 | J17: 115.8 | K17: 154283 | L17: 2693.6 | M17: 165057.4 | O17: 247586.1 | Q17: 1988 | R17: 247.08 | S17: 277.72 | T17: 0.124 | U17: 0.1654 | W17: 0.124 | X17: 0.13 | Y17: * | Z17: 3.105061377 | AA17: 3.593710503 | AB17: 7.499841917
B18: 2012-12-31 | C18: 10000 | D18: 4155 | E18: 0 | F18: 2784 | G18: 1371 | H18: 203985 | I18: 1553 | J18: 131.37 | K18: 167067 | L18: 7383.6 | M18: 196601.4 | O18: 294902.1 | Q18: 1989 | R18: 277.72 | S18: 353.4 | T18: 0.2725 | U18: 0.3148 | W18: 0.13 | X18: 0.13 | Z18: 3.508719356 | AA18: 4.060892869 | AB18: 9.860792153
B19: 2013-12-31 | C19: 10000 | D19: 4815 | E19: 0 | F19: 3226 | G19: 1589 | H19: 280419 | I19: 1646 | J19: 170.36 | K19: 180293 | L19: 20025.2 | M19: 260393.8 | O19: 390590.7 | Q19: 1990 | R19: 353.4 | S19: 330.22 | T19: -0.0656 | U19: -0.0306 | W19: 0 | X19: 0 | Z19: 3.508719356 | AA19: 4.060892869 | AB19: 9.559051913
B20: 2014-12-31 | C20: 10000 | D20: 5664 | E20: 0 | F20: 3795 | G20: 1869 | H20: 328087 | I20: 1728 | J20: 189.89 | K20: 194088 | L20: 26799.8 | M20: 301287.2 | O20: 451930.8 | Q20: 1991 | R20: 330.22 | S20: 417.09 | T20: 0.2631 | U20: 0.3023 | W20: 0.13 | X20: 0.13 | Z20: 3.964852872 | AA20: 4.588808941 | AB20: 12.44875331
B21: 2015-12-31 | C21: 10000 | D21: 6710 | E21: 0 | F21: 4496 | G21: 2214 | H21: 340389 | I21: 1806 | J21: 188.48 | K21: 208584 | L21: 26361 | M21: 314028 | O21: 471042 | Q21: 1992 | R21: 417.09 | S21: 435.71 | T21: 0.0446 | U21: 0.0749 | W21: 0.0446 | X21: 0.0749 | Y21: * | Z21: 4.14168531 | AA21: 4.932510731 | AB21: 13.38116493
B22: 2016-12-31 | C22: 10000 | D22: 7441 | E22: 0 | F22: 4985 | G22: 2455 | H22: 389797 | I22: 1887 | J22: 206.57 | K22: 223569 | L22: 33245.6 | M22: 356551.4 | O22: 534827.1 | Q22: 1993 | R22: 435.71 | S22: 466.45 | T22: 0.0706 | U22: 0.0997 | W22: 0.0706 | X22: 0.0997 | Y22: * | Z22: 4.434088293 | AA22: 5.424282051 | AB22: 14.71526707
B23: 2017-12-31 | C23: 10000 | D23: 8117 | E23: 0 | F23: 5438 | G23: 2679 | H23: 483307 | I23: 1958 | J23: 246.82 | K23: 239007 | L23: 48860 | M23: 434447 | O23: 651670.5 | Q23: 1994 | R23: 466.45 | S23: 459.27 | T23: -0.0154 | U23: 0.0133 | W23: 0 | X23: 0.0133 | Y23: * | Z23: 4.434088293 | AA23: 5.496425002 | AB23: 14.91098012
B24: Total | C24: 200000 | D24: 57930 | E24: 242 | F24: 39006 | G24: 19165 | Q24: 1995 | R24: 459.27 | S24: 615.93 | T24: 0.3411 | U24: 0.372 | W24: 0.13 | X24: 0.13 | Z24: 5.010519771 | AA24: 6.210960253 | AB24: 20.45786473
Q25: 1996 | R25: 615.93 | S25: 740.74 | T25: 0.2026 | U25: 0.2382 | W25: 0.13 | X25: 0.13 | Z25: 5.661887341 | AA25: 7.018385086 | AB25: 25.33092811
Q26: 1997 | R26: 740.74 | S26: 970.43 | T26: 0.3101 | U26: 0.3186 | W26: 0.13 | X26: 0.13 | Z26: 1 | AA26: 1 | AB26: 1
Q27: 1998 | R27: 970.43 | S27: 1229.23 | T27: 0.2667 | U27: 0.2834 | W27: 0.13 | X27: 0.13 | Z27: 1.13 | AA27: 1.13 | AB27: 1.2834
O28: Yearly Invest | Q28: 1999 | R28: 1229.23 | S28: 1469.25 | T28: 0.1953 | U28: 0.2089 | W28: 0.13 | X28: 0.13 | Z28: 1.2769 | AA28: 1.2769 | AB28: 1.55150226
B29: Period End | C29: Invest | D29: Income | E29: Capital Gain | F29: Reinvest | G29: Taxes Paid | H29: Market Value | I29: Shares | J29: NAV | K29: Cum.P | L29: Tax at Sell | M29: Value | O29: =Investment!D7 -> -50000 | Q29: 2000 | R29: 1469.25 | S29: 1320.28 | T29: -0.1014 | U29: -0.0903 | W29: 0 | X29: 0 | Z29: 1.2769 | AA29: 1.2769 | AB29: 1.411401606
B30: 1997-12-31 | C30: 0 | D30: 0 | E30: 0 | F30: 0 | G30: 0 | H30: 0 | I30: 0 | J30: 90.07 | K30: =0 -> 0 | L30: 0 | M30: 0 | Q30: 2001 | R30: 1320.28 | S30: 1148.08 | T30: -0.1304 | U30: -0.1185 | W30: 0 | X30: 0 | Z30: 1.2769 | AA30: 1.2769 | AB30: 1.244150516
B31: 1998-12-31 | C31: 10000 | D31: 147 | E31: 46 | F31: 135 | G31: 58 | H31: 12658 | I31: 111 | J31: 113.95 | K31: =C31+K30+F31 -> 10135 | L31: =MAX(0.2*(H31-K31),0) -> 504.6 | M31: =H31-L31 -> 12153.4 | O31: =M31*O$29/10000 -> -60767 | Q31: 2002 | R31: 1148.08 | S31: 879.82 | T31: -0.2337 | U31: -0.2197 | W31: 0 | X31: 0 | Z31: 1.2769 | AA31: 1.2769 | AB31: 0.9708106473
B32: 1999-12-31 | C32: 10000 | D32: 277 | E32: 195 | F32: 342 | G32: 130 | H32: 26800 | I32: 198 | J32: 135.33 | K32: =C32+K31+F32 -> 20477 | L32: =MAX(0.2*(H32-K32),0) -> 1264.6 | M32: =H32-L32 -> 25535.4 | O32: =M32*O$29/10000 -> -127677 | Q32: 2003 | R32: 879.82 | S32: 1111.92 | T32: 0.2638 | U32: 0.2836 | W32: 0.13 | X32: 0.13 | Z32: 1.442897 | AA32: 1.442897 | AB32: 1.246132547
B33: 2000-12-31 | C33: 10000 | D33: 359 | E33: 0 | F33: 241 | G33: 119 | H33: 33839 | I33: 278 | J33: 121.86 | K33: 30718 | L33: 624.2 | M33: 33214.8 | O33: -166074 | Q33: 2004 | R33: 1111.92 | S33: 1211.92 | T33: 0.0899 | U33: 0.1074 | W33: 0.0899 | X33: 0.1074 | Y33: * | Z33: 1.57261344 | AA33: 1.597864138 | AB33: 1.379967182
B34: 2001-12-31 | C34: 10000 | D34: 456 | E34: 0 | F34: 306 | G34: 151 | H34: 38111 | I34: 360 | J34: 105.89 | K34: 41024 | L34: 0 | M34: 38111 | O34: -190555 | Q34: 2005 | R34: 1211.92 | S34: 1248.29 | T34: 0.03 | U34: 0.0483 | W34: 0.03 | X34: 0.0483 | Y34: * | Z34: 1.619791844 | AA34: 1.675040976 | AB34: 1.446619597
B35: 2002-12-31 | C35: 10000 | D35: 622 | E35: 0 | F35: 417 | G35: 205 | H35: 37378 | I35: 461 | J35: 81.15 | K35: 51441 | L35: 0 | M35: 37378 | O35: -186890 | Q35: 2006 | R35: 1248.29 | S35: 1418.3 | T35: 0.1362 | U35: 0.1561 | W35: 0.13 | X35: 0.13 | Z35: 1.830364783 | AA35: 1.892796302 | AB35: 1.672436917
B36: 2003-12-31 | C36: 10000 | D36: 843 | E36: 0 | F36: 565 | G36: 278 | H36: 60915 | I36: 593 | J36: 102.67 | K36: 62006 | L36: 0 | M36: 60915 | O36: -304575 | Q36: 2007 | R36: 1418.3 | S36: 1468.36 | T36: 0.0353 | U36: 0.0548 | W36: 0.0353 | X36: 0.0548 | Y36: * | Z36: 1.89497666 | AA36: 1.99652154 | AB36: 1.76408646
B37: 2004-12-31 | C37: 10000 | D37: 1350 | E37: 0 | F37: 904 | G37: 445 | H37: 77864 | I37: 697 | J37: 111.64 | K37: 72910 | L37: 990.8 | M37: 76873.2 | O37: -384366 | Q37: 2008 | R37: 1468.36 | S37: 903.25 | T37: -0.3849 | U37: -0.3655 | W37: 0 | X37: 0 | Z37: 1.89497666 | AA37: 1.99652154 | AB37: 1.119312859
B38: 2005-12-31 | C38: 10000 | D38: 1570 | E38: 0 | F38: 1052 | G38: 518 | H38: 91786 | I38: 799 | J38: 114.92 | K38: 83962 | L38: 1564.8 | M38: 90221.2 | O38: -451106 | Q38: 2009 | R38: 903.25 | S38: 1115.1 | T38: 0.2345 | U38: 0.2594 | W38: 0.13 | X38: 0.13 | Z38: 2.141323626 | AA38: 2.25606934 | AB38: 1.409662614
B39: 2006-12-31 | C39: 10000 | D39: 1899 | E39: 0 | F39: 1272 | G39: 627 | H39: 116734 | I39: 894 | J39: 130.59 | K39: 95234 | L39: 4300 | M39: 112434 | O39: -562170 | Q39: 2010 | R39: 1115.1 | S39: 1257.64 | T39: 0.1278 | U39: 0.1482 | W39: =IF(T39>W$2,W$2,IF(T39<X$2,X$2,T39)) -> 0.1278 | X39: =IF(U39>W$2,W$2,IF(U39<X$2,X$2,U39)) -> 0.13 | Y39: * | Z39: 2.414984785 | AA39: 2.549358354 | AB39: 1.618574614
B40: 2007-12-31 | C40: 10000 | D40: 2425 | E40: 0 | F40: 1625 | G40: 800 | H40: 132611 | I40: 981 | J40: 135.15 | K40: 106859 | L40: 5150.4 | M40: 127460.6 | O40: -637303 | Q40: 2011 | R40: 1257.64 | S40: 1257.6 | T40: 0 | U40: 0.021 | W40: =IF(T40>W$2,W$2,IF(T40<X$2,X$2,T40)) -> 0 | X40: =IF(U40>W$2,W$2,IF(U40<X$2,X$2,U40)) -> 0.021 | Y40: * | Z40: 2.414984785 | AA40: 2.60289488 | AB40: 1.65256468
B41: 2008-12-31 | C41: 0 | D41: 2471 | E41: 0 | F41: 1656 | G41: 815 | H41: 82857 | I41: 997 | J41: 83.09 | K41: 108515 | L41: 0 | M41: 82857 | O41: -414285 | Q41: 2012 | R41: 1257.6 | S41: 1426.19 | T41: 0.1341 | U41: 0.1589 | W41: 0.13 | X41: 0.13 | Z41: 2.728932807 | AA41: 2.941271214 | AB41: 1.915157208
B42: 2009-12-31 | C42: 0 | D42: 2112 | E42: 0 | F42: 1415 | G42: 697 | H42: 103999 | I42: 1013 | J42: 102.67 | K42: 109930 | L42: 0 | M42: 103999 | O42: -519995 | Q42: 2013 | R42: 1426.19 | S42: 1848.36 | T42: 0.296 | U42: 0.3215 | W42: 0.13 | X42: 0.13 | Z42: 3.083694072 | AA42: 3.323636472 | AB42: 2.530880251
B43: 2010-12-31 | C43: 0 | D43: 2001 | E43: 0 | F43: 1341 | G43: 660 | H43: 118783 | I43: 1026 | J43: 115.82 | K43: 111271 | L43: 1502.4 | M43: 117280.6 | O43: -586403 | Q43: 2014 | R43: 1848.36 | S43: 2058.9 | T43: 0.1139 | U43: 0.1352 | W43: 0.1139 | X43: 0.13 | Y43: * | Z43: 3.434926827 | AA43: 3.755709213 | AB43: 2.87305526
B44: 2011-12-31 | C44: 0 | D44: 2315 | E44: 0 | F44: 1551 | G44: 764 | H44: 120337 | I44: 1039 | J44: 115.8 | K44: 112822 | L44: 1503 | M44: 118834 | O44: -594170 | Q44: 2015 | R44: 2058.9 | S44: 2043.94 | T44: -0.0073 | U44: 0.0138 | W44: 0 | X44: 0.0138 | Y44: * | Z44: 3.434926827 | AA44: 3.807538 | AB44: 2.912703423
B45: 2012-12-31 | C45: 0 | D45: 2819 | E45: 0 | F45: 1889 | G45: 930 | H45: 138431 | I45: 1054 | J45: 131.37 | K45: 114711 | L45: 4744 | M45: 133687 | O45: -668435 | Q45: 2016 | R45: 2043.94 | S45: 2238.83 | T45: 0.0954 | U45: 0.1174 | W45: 0.0954 | X45: 0.1174 | Y45: * | Z45: 3.762618846 | AA45: 4.254542962 | AB45: 3.254654805
B46: 2013-12-31 | C46: 0 | D46: 3122 | E46: 0 | F46: 2092 | G46: 1030 | H46: 181826 | I46: 1067 | J46: 170.36 | K46: 116803 | L46: 13004.6 | M46: 168821.4 | O46: -844107 | Q46: 2017 | R46: 2238.83 | S46: 2673.61 | T46: 0.1942 | U46: 0.2183 | W46: 0.13 | X46: 0.13 | Z46: 4.251759296 | AA46: 4.807633547 | AB46: 3.965145949
B47: 2014-12-31 | C47: 0 | D47: 3542 | E47: 0 | F47: 2373 | G47: 1169 | H47: 205155 | I47: 1080 | J47: 189.89 | K47: 119176 | L47: 17195.8 | M47: 187959.2 | O47: -939796
B48: 2015-12-31 | C48: 0 | D48: 4068 | E48: 0 | F48: 2726 | G48: 1342 | H48: 206362 | I48: 1095 | J48: 188.48 | K48: 121902 | L48: 16892 | M48: 189470 | O48: =M48*O$29/10000 -> -947350 | Z48: Average return
B49: 2016-12-31 | C49: 0 | D49: 4376 | E49: 0 | F49: 2932 | G49: 1444 | H49: 229229 | I49: 1110 | J49: 206.57 | K49: 124834 | L49: 20879 | M49: 208350 | O49: -1041750 | Z49: =(Z46^(1/($Q46-$Q4+1))-1) -> 0.03423177369 | AA49: =(AA46^(1/($Q46-$Q4+1))-1) -> 0.03719130843 | AB49: =(AB46^(1/($Q46-$Q4+1))-1) -> 0.03255454846
B50: 2017-12-31 | C50: 0 | D50: 4656 | E50: 0 | F50: 3120 | G50: 1537 | H50: 277239 | I50: 1123 | J50: 246.82 | K50: 127954 | L50: 29857 | M50: 247382 | O50: -1236910 | Z50: =(Z46^(1/20)-1) -> 0.07504943059 | AA50: =(AA46^(1/20)-1) -> 0.08167444102 | AB50: 0.07130457328
B51: Total | C51: =SUM(C31:C50) -> 100000 | D51: =SUM(D31:D50) -> 41430 | E51: =SUM(E31:E50) -> 241 | F51: 27954 | G51: 13719
